Workbook

Sheet Sheep - EU reference prices
A2: EU sheep reference prices
A3: Source: EU Commission, AHDB, DAERA
A4: Units: €/100kg dw and p/kg dw
A5: Last updated: 01/07/2021
D7: Week ending: | E7: 2021-06-27 | F7: <----- click here to select week
D9: Light lambs
D10: €/100kg dw | E10: % change on week | F10: % change on year | G10: p/kg dw * | I10: =E7-7 -> 2021-06-20 | J10: =E7-364 -> 2020-06-28
B11: Bulgaria | C11: BG | D11: =INDEX('Sheep euro'!$C$7:$R$998,MATCH('Sheep - EU reference prices'!$E$7,'Sheep euro'!$A$7:$A$998,0),MATCH('Sheep - EU reference prices'!$C11,'Sheep euro'!$C$6:$R$6,0)) -> 715.4106 | E11: =IF(D11="na","na",IF(D11="","",IF(I11="","",D11/I11*100-100))) -> 4.32138443 | F11: =IF(J11="na","na",IF(ISERROR(IF(D11="","",IF(J11="","",D11/J11*100-100))),0,IF(D11="","",IF(J11="","",D11/J11*100-100)))) -> 9.861817871 | G11: =IF(D11="na","na",D11*$E$60) -> 613.4472152 | H11: Light lambs | I11: =INDEX('Sheep euro'!$C$7:$R$998,MATCH('Sheep - EU reference prices'!$I$10,'Sheep euro'!$A$7:$A$998,0),MATCH('Sheep - EU reference prices'!$C11,'Sheep euro'!$C$6:$R$6,0)) -> 685.7756 | J11: =IF(ISERROR(INDEX('Sheep euro'!$C$7:$R$998,MATCH('Sheep - EU reference prices'!$J$10,'Sheep euro'!$A$7:$A$998,0),MATCH('Sheep - EU reference prices'!$C11,'Sheep euro'!$C$6:$R$6,0))),0,INDEX('Sheep euro'!$C$7:$R$998,MATCH('Sheep - EU reference prices'!$J$10,'Sheep euro'!$A$7:$A$998,0),MATCH('Sheep - EU reference prices'!$C11,'Sheep euro'!$C$6:$R$6,0))) -> 651.1913 | U11: 2021-08-08
B12: Greece | C12: GR | D12: =INDEX('Sheep euro'!$C$7:$R$998,MATCH('Sheep - EU reference prices'!$E$7,'Sheep euro'!$A$7:$A$998,0),MATCH('Sheep - EU reference prices'!$C12,'Sheep euro'!$C$6:$R$6,0)) -> na | E12: =IF(D12="na","na",(IF(I12="na","na",IF(ISERROR(IF(D12="","",IF(I12="","",D12/I12*100-100))),0,IF(D12="","",IF(I12="","",D12/I12*100-100)))))) -> na | F12: =IF(D12="na","na",IF(ISERROR(IF(D12="","",IF(J12="","",D12/J12*100-100))),0,IF(D12="","",IF(J12="","",D12/J12*100-100)))) -> na | G12: =IF(D12="na","na",D12*$E$60) -> na | I12: =INDEX('Sheep euro'!$C$7:$R$998,MATCH('Sheep - EU reference prices'!$I$10,'Sheep euro'!$A$7:$A$998,0),MATCH('Sheep - EU reference prices'!$C12,'Sheep euro'!$C$6:$R$6,0)) -> na | J12: =IF(ISERROR(INDEX('Sheep euro'!$C$7:$R$998,MATCH('Sheep - EU reference prices'!$J$10,'Sheep euro'!$A$7:$A$998,0),MATCH('Sheep - EU reference prices'!$C12,'Sheep euro'!$C$6:$R$6,0))),0,INDEX('Sheep euro'!$C$7:$R$998,MATCH('Sheep - EU reference prices'!$J$10,'Sheep euro'!$A$7:$A$998,0),MATCH('Sheep - EU reference prices'!$C12,'Sheep euro'!$C$6:$R$6,0))) -> 465 | U12: 2021-08-01
B13: Spain | C13: ES | D13: =INDEX('Sheep euro'!$C$7:$R$998,MATCH('Sheep - EU reference prices'!$E$7,'Sheep euro'!$A$7:$A$998,0),MATCH('Sheep - EU reference prices'!$C13,'Sheep euro'!$C$6:$R$6,0)) -> 651.31 | E13: 0.03225311012 | F13: 7.777465208 | G13: 558.4825075 | I13: =INDEX('Sheep euro'!$C$7:$R$998,MATCH('Sheep - EU reference prices'!$I$10,'Sheep euro'!$A$7:$A$998,0),MATCH('Sheep - EU reference prices'!$C13,'Sheep euro'!$C$6:$R$6,0)) -> 651.1 | J13: =IF(ISERROR(INDEX('Sheep euro'!$C$7:$R$998,MATCH('Sheep - EU reference prices'!$J$10,'Sheep euro'!$A$7:$A$998,0),MATCH('Sheep - EU reference prices'!$C13,'Sheep euro'!$C$6:$R$6,0))),0,INDEX('Sheep euro'!$C$7:$R$998,MATCH('Sheep - EU reference prices'!$J$10,'Sheep euro'!$A$7:$A$998,0),MATCH('Sheep - EU reference prices'!$C13,'Sheep euro'!$C$6:$R$6,0))) -> 604.31 | U13: 2021-07-25
B14: Croatia | C14: HR | D14: =INDEX('Sheep euro'!$C$7:$R$998,MATCH('Sheep - EU reference prices'!$E$7,'Sheep euro'!$A$7:$A$998,0),MATCH('Sheep - EU reference prices'!$C14,'Sheep euro'!$C$6:$R$6,0)) -> 768.9362 | E14: 8.917453409 | F14: 18.20158809 | G14: 659.3441173 | I14: =INDEX('Sheep euro'!$C$7:$R$998,MATCH('Sheep - EU reference prices'!$I$10,'Sheep euro'!$A$7:$A$998,0),MATCH('Sheep - EU reference prices'!$C14,'Sheep euro'!$C$6:$R$6,0)) -> 705.9807 | J14: =IF(ISERROR(INDEX('Sheep euro'!$C$7:$R$998,MATCH('Sheep - EU reference prices'!$J$10,'Sheep euro'!$A$7:$A$998,0),MATCH('Sheep - EU reference prices'!$C14,'Sheep euro'!$C$6:$R$6,0))),0,INDEX('Sheep euro'!$C$7:$R$998,MATCH('Sheep - EU reference prices'!$J$10,'Sheep euro'!$A$7:$A$998,0),MATCH('Sheep - EU reference prices'!$C14,'Sheep euro'!$C$6:$R$6,0))) -> 650.5295 | U14: 2021-07-18
B15: Italy | C15: IT | D15: =INDEX('Sheep euro'!$C$7:$R$998,MATCH('Sheep - EU reference prices'!$E$7,'Sheep euro'!$A$7:$A$998,0),MATCH('Sheep - EU reference prices'!$C15,'Sheep euro'!$C$6:$R$6,0)) -> 570 | E15: -0.6968641115 | F15: -4.201680672 | G15: 488.7611571 | I15: =INDEX('Sheep euro'!$C$7:$R$998,MATCH('Sheep - EU reference prices'!$I$10,'Sheep euro'!$A$7:$A$998,0),MATCH('Sheep - EU reference prices'!$C15,'Sheep euro'!$C$6:$R$6,0)) -> 574 | J15: =IF(ISERROR(INDEX('Sheep euro'!$C$7:$R$998,MATCH('Sheep - EU reference prices'!$J$10,'Sheep euro'!$A$7:$A$998,0),MATCH('Sheep - EU reference prices'!$C15,'Sheep euro'!$C$6:$R$6,0))),0,INDEX('Sheep euro'!$C$7:$R$998,MATCH('Sheep - EU reference prices'!$J$10,'Sheep euro'!$A$7:$A$998,0),MATCH('Sheep - EU reference prices'!$C15,'Sheep euro'!$C$6:$R$6,0))) -> 595 | U15: 2021-07-11
B16: Hungary | C16: HU | D16: =INDEX('Sheep euro'!$C$7:$R$998,MATCH('Sheep - EU reference prices'!$E$7,'Sheep euro'!$A$7:$A$998,0),MATCH('Sheep - EU reference prices'!$C16,'Sheep euro'!$C$6:$R$6,0)) -> 723.9377 | E16: -2.176714865 | F16: 23.80378831 | G16: 620.7589964 | I16: =INDEX('Sheep euro'!$C$7:$R$998,MATCH('Sheep - EU reference prices'!$I$10,'Sheep euro'!$A$7:$A$998,0),MATCH('Sheep - EU reference prices'!$C16,'Sheep euro'!$C$6:$R$6,0)) -> 740.0464 | J16: =IF(ISERROR(INDEX('Sheep euro'!$C$7:$R$998,MATCH('Sheep - EU reference prices'!$J$10,'Sheep euro'!$A$7:$A$998,0),MATCH('Sheep - EU reference prices'!$C16,'Sheep euro'!$C$6:$R$6,0))),0,INDEX('Sheep euro'!$C$7:$R$998,MATCH('Sheep - EU reference prices'!$J$10,'Sheep euro'!$A$7:$A$998,0),MATCH('Sheep - EU reference prices'!$C16,'Sheep euro'!$C$6:$R$6,0))) -> 584.746 | U16: 2021-07-04
B17: Portugal | C17: PT | D17: =INDEX('Sheep euro'!$C$7:$R$998,MATCH('Sheep - EU reference prices'!$E$7,'Sheep euro'!$A$7:$A$998,0),MATCH('Sheep - EU reference prices'!$C17,'Sheep euro'!$C$6:$R$6,0)) -> 654.1 | E17: =IF(D17=I17,"-",(IF(D17="na","na",IF(D17="","",IF(I17="","",D17/I17*100-100))))) -> - | F17: 14.04212288 | G17: 560.8748647 | I17: =INDEX('Sheep euro'!$C$7:$R$998,MATCH('Sheep - EU reference prices'!$I$10,'Sheep euro'!$A$7:$A$998,0),MATCH('Sheep - EU reference prices'!$C17,'Sheep euro'!$C$6:$R$6,0)) -> 654.1 | J17: =IF(ISERROR(INDEX('Sheep euro'!$C$7:$R$998,MATCH('Sheep - EU reference prices'!$J$10,'Sheep euro'!$A$7:$A$998,0),MATCH('Sheep - EU reference prices'!$C17,'Sheep euro'!$C$6:$R$6,0))),0,INDEX('Sheep euro'!$C$7:$R$998,MATCH('Sheep - EU reference prices'!$J$10,'Sheep euro'!$A$7:$A$998,0),MATCH('Sheep - EU reference prices'!$C17,'Sheep euro'!$C$6:$R$6,0))) -> 573.56 | U17: 2021-06-27
B18: Slovenia | C18: SI | D18: =INDEX('Sheep euro'!$C$7:$R$998,MATCH('Sheep - EU reference prices'!$E$7,'Sheep euro'!$A$7:$A$998,0),MATCH('Sheep - EU reference prices'!$C18,'Sheep euro'!$C$6:$R$6,0)) -> 541.71 | E18: -1.920987833 | F18: -0.5014326648 | G18: 464.5031692 | I18: =INDEX('Sheep euro'!$C$7:$R$998,MATCH('Sheep - EU reference prices'!$I$10,'Sheep euro'!$A$7:$A$998,0),MATCH('Sheep - EU reference prices'!$C18,'Sheep euro'!$C$6:$R$6,0)) -> 552.32 | J18: =IF(ISERROR(INDEX('Sheep euro'!$C$7:$R$998,MATCH('Sheep - EU reference prices'!$J$10,'Sheep euro'!$A$7:$A$998,0),MATCH('Sheep - EU reference prices'!$C18,'Sheep euro'!$C$6:$R$6,0))),0,INDEX('Sheep euro'!$C$7:$R$998,MATCH('Sheep - EU reference prices'!$J$10,'Sheep euro'!$A$7:$A$998,0),MATCH('Sheep - EU reference prices'!$C18,'Sheep euro'!$C$6:$R$6,0))) -> 544.44 | U18: 2021-06-20
B19: Slovakia | C19: SK | D19: =INDEX('Sheep euro'!$C$7:$R$998,MATCH('Sheep - EU reference prices'!$E$7,'Sheep euro'!$A$7:$A$998,0),MATCH('Sheep - EU reference prices'!$C19,'Sheep euro'!$C$6:$R$6,0)) -> na | E19: na | F19: =IF(J19="na","na",IF(ISERROR(IF(D19="","",IF(J19="","",D19/J19*100-100))),0,IF(D19="","",IF(J19="","",D19/J19*100-100)))) -> na | G19: na | I19: =INDEX('Sheep euro'!$C$7:$R$998,MATCH('Sheep - EU reference prices'!$I$10,'Sheep euro'!$A$7:$A$998,0),MATCH('Sheep - EU reference prices'!$C19,'Sheep euro'!$C$6:$R$6,0)) -> na | J19: =IF(ISERROR(INDEX('Sheep euro'!$C$7:$R$998,MATCH('Sheep - EU reference prices'!$J$10,'Sheep euro'!$A$7:$A$998,0),MATCH('Sheep - EU reference prices'!$C19,'Sheep euro'!$C$6:$R$6,0))),0,INDEX('Sheep euro'!$C$7:$R$998,MATCH('Sheep - EU reference prices'!$J$10,'Sheep euro'!$A$7:$A$998,0),MATCH('Sheep - EU reference prices'!$C19,'Sheep euro'!$C$6:$R$6,0))) -> na | U19: 2021-06-13
B20: Latvia | C20: LV | D20: =INDEX('Sheep euro'!$C$7:$R$998,MATCH('Sheep - EU reference prices'!$E$7,'Sheep euro'!$A$7:$A$998,0),MATCH('Sheep - EU reference prices'!$C20,'Sheep euro'!$C$6:$R$6,0)) -> 497.74 | E20: =IF(D20=I20,"-",(IF(D20="na","na",IF(D20="","",IF(I20="","",D20/I20*100-100))))) -> - | F20: 4.666616199 | G20: 426.799962 | I20: =INDEX('Sheep euro'!$C$7:$R$998,MATCH('Sheep - EU reference prices'!$I$10,'Sheep euro'!$A$7:$A$998,0),MATCH('Sheep - EU reference prices'!$C20,'Sheep euro'!$C$6:$R$6,0)) -> 497.74 | J20: =IF(ISERROR(INDEX('Sheep euro'!$C$7:$R$998,MATCH('Sheep - EU reference prices'!$J$10,'Sheep euro'!$A$7:$A$998,0),MATCH('Sheep - EU reference prices'!$C20,'Sheep euro'!$C$6:$R$6,0))),0,INDEX('Sheep euro'!$C$7:$R$998,MATCH('Sheep - EU reference prices'!$J$10,'Sheep euro'!$A$7:$A$998,0),MATCH('Sheep - EU reference prices'!$C20,'Sheep euro'!$C$6:$R$6,0))) -> 475.548 | U20: 2021-06-06
B21: Poland | C21: PL | D21: =INDEX('Sheep euro'!$C$7:$R$998,MATCH('Sheep - EU reference prices'!$E$7,'Sheep euro'!$A$7:$A$998,0),MATCH('Sheep - EU reference prices'!$C21,'Sheep euro'!$C$6:$R$6,0)) -> na | E21: na | F21: na | G21: na | I21: =INDEX('Sheep euro'!$C$7:$R$998,MATCH('Sheep - EU reference prices'!$I$10,'Sheep euro'!$A$7:$A$998,0),MATCH('Sheep - EU reference prices'!$C21,'Sheep euro'!$C$6:$R$6,0)) -> na | J21: =IF(ISERROR(INDEX('Sheep euro'!$C$7:$R$998,MATCH('Sheep - EU reference prices'!$J$10,'Sheep euro'!$A$7:$A$998,0),MATCH('Sheep - EU reference prices'!$C21,'Sheep euro'!$C$6:$R$6,0))),0,INDEX('Sheep euro'!$C$7:$R$998,MATCH('Sheep - EU reference prices'!$J$10,'Sheep euro'!$A$7:$A$998,0),MATCH('Sheep - EU reference prices'!$C21,'Sheep euro'!$C$6:$R$6,0))) -> na | U21: 2021-05-30
B22: Romania | C22: RO | D22: =INDEX('Sheep euro'!$C$7:$R$998,MATCH('Sheep - EU reference prices'!$E$7,'Sheep euro'!$A$7:$A$998,0),MATCH('Sheep - EU reference prices'!$C22,'Sheep euro'!$C$6:$R$6,0)) -> na | E22: na | F22: na | G22: na | I22: =INDEX('Sheep euro'!$C$7:$R$998,MATCH('Sheep - EU reference prices'!$I$10,'Sheep euro'!$A$7:$A$998,0),MATCH('Sheep - EU reference prices'!$C22,'Sheep euro'!$C$6:$R$6,0)) -> na | J22: =IF(ISERROR(INDEX('Sheep euro'!$C$7:$R$998,MATCH('Sheep - EU reference prices'!$J$10,'Sheep euro'!$A$7:$A$998,0),MATCH('Sheep - EU reference prices'!$C22,'Sheep euro'!$C$6:$R$6,0))),0,INDEX('Sheep euro'!$C$7:$R$998,MATCH('Sheep - EU reference prices'!$J$10,'Sheep euro'!$A$7:$A$998,0),MATCH('Sheep - EU reference prices'!$C22,'Sheep euro'!$C$6:$R$6,0))) -> na | U22: 2021-05-23
B23: Estonia | C23: EE | D23: =INDEX('Sheep euro'!$C$7:$R$998,MATCH('Sheep - EU reference prices'!$E$7,'Sheep euro'!$A$7:$A$998,0),MATCH('Sheep - EU reference prices'!$C23,'Sheep euro'!$C$6:$R$6,0)) -> na | E23: na | F23: na | G23: na | I23: =INDEX('Sheep euro'!$C$7:$R$998,MATCH('Sheep - EU reference prices'!$I$10,'Sheep euro'!$A$7:$A$998,0),MATCH('Sheep - EU reference prices'!$C23,'Sheep euro'!$C$6:$R$6,0)) -> na | J23: =IF(ISERROR(INDEX('Sheep euro'!$C$7:$R$998,MATCH('Sheep - EU reference prices'!$J$10,'Sheep euro'!$A$7:$A$998,0),MATCH('Sheep - EU reference prices'!$C23,'Sheep euro'!$C$6:$R$6,0))),0,INDEX('Sheep euro'!$C$7:$R$998,MATCH('Sheep - EU reference prices'!$J$10,'Sheep euro'!$A$7:$A$998,0),MATCH('Sheep - EU reference prices'!$C23,'Sheep euro'!$C$6:$R$6,0))) -> na | U23: 2021-05-16
B24: Sweden | C24: SE | D24: =INDEX('Sheep euro'!$C$7:$R$998,MATCH('Sheep - EU reference prices'!$E$7,'Sheep euro'!$A$7:$A$998,0),MATCH('Sheep - EU reference prices'!$C24,'Sheep euro'!$C$6:$R$6,0)) -> na | E24: na | F24: na | G24: na | I24: =INDEX('Sheep euro'!$C$7:$R$998,MATCH('Sheep - EU reference prices'!$I$10,'Sheep euro'!$A$7:$A$998,0),MATCH('Sheep - EU reference prices'!$C24,'Sheep euro'!$C$6:$R$6,0)) -> na | J24: na | U24: 2021-05-09
B25: EU | C25: EU 28 | D25: =INDEX('Sheep euro'!$C$7:$R$998,MATCH('Sheep - EU reference prices'!$E$7,'Sheep euro'!$A$7:$A$998,0),MATCH('Sheep - EU reference prices'!$C25,'Sheep euro'!$C$6:$R$6,0)) -> 617.6285086 | E25: -0.04968268869 | F25: 9.763977154 | G25: 529.6014466 | I25: =INDEX('Sheep euro'!$C$7:$R$998,MATCH('Sheep - EU reference prices'!$I$10,'Sheep euro'!$A$7:$A$998,0),MATCH('Sheep - EU reference prices'!$C25,'Sheep euro'!$C$6:$R$6,0)) -> 617.9355156 | J25: =IF(ISERROR(INDEX('Sheep euro'!$C$7:$R$998,MATCH('Sheep - EU reference prices'!$J$10,'Sheep euro'!$A$7:$A$998,0),MATCH('Sheep - EU reference prices'!$C25,'Sheep euro'!$C$6:$R$6,0))),0,INDEX('Sheep euro'!$C$7:$R$998,MATCH('Sheep - EU reference prices'!$J$10,'Sheep euro'!$A$7:$A$998,0),MATCH('Sheep - EU reference prices'!$C25,'Sheep euro'!$C$6:$R$6,0))) -> 562.6878003 | U25: 2021-05-02
D27: Heavy lambs | U27: 2021-04-25
D28: €/100kg dw | E28: % change on week | F28: % change on year | G28: p/kg dw * | I28: =E7-7 -> 2021-06-20 | J28: =E7-364 -> 2020-06-28
B29: Estonia | C29: EE | D29: =INDEX('Sheep euro'!$S$7:$BB$998,MATCH('Sheep - EU reference prices'!$E$7,'Sheep euro'!$A$7:$A$998,0),MATCH('Sheep - EU reference prices'!$C29,'Sheep euro'!$S$6:$BB$6,0)) -> na | E29: =IF(D29="na","na",(IF(I29="na","na",IF(ISERROR(IF(D29="","",IF(I29="","",D29/I29*100-100))),0,IF(D29="","",IF(I29="","",D29/I29*100-100)))))) -> na | F29: =IF(D29="na","na",(IF(J29="na","na",IF(ISERROR(IF(D29="","",IF(J29="","",D29/J29*100-100))),0,IF(D29="","",IF(J29="","",D29/J29*100-100)))))) -> na | G29: =IF(D29="na","na",D29*$E$60) -> na | H29: Heavy lambs | I29: =INDEX('Sheep euro'!$S$7:$AY$998,MATCH('Sheep - EU reference prices'!I$10,'Sheep euro'!$A$7:$A$998,0),MATCH('Sheep - EU reference prices'!$C29,'Sheep euro'!$S$6:$AY$6,0)) -> na | J29: =IF(ISERROR(INDEX('Sheep euro'!$S$7:$AY$998,MATCH('Sheep - EU reference prices'!J$10,'Sheep euro'!$A$7:$A$998,0),MATCH('Sheep - EU reference prices'!$C29,'Sheep euro'!$S$6:$AY$6,0))),0,INDEX('Sheep euro'!$S$7:$AY$998,MATCH('Sheep - EU reference prices'!J$10,'Sheep euro'!$A$7:$A$998,0),MATCH('Sheep - EU reference prices'!$C29,'Sheep euro'!$S$6:$AY$6,0))) -> na | U29: 2021-04-18
B30: Belgium | C30: BE | D30: =INDEX('Sheep euro'!$S$7:$BB$998,MATCH('Sheep - EU reference prices'!$E$7,'Sheep euro'!$A$7:$A$998,0),MATCH('Sheep - EU reference prices'!$C30,'Sheep euro'!$S$6:$BB$6,0)) -> 634.4 | E30: =IF(D30="na","na",(IF(I30="na","na",IF(ISERROR(IF(D30="","",IF(I30="","",D30/I30*100-100))),0,IF(D30="","",IF(I30="","",D30/I30*100-100)))))) -> -4.801920768 | F30: =IF(D30="na","na",(IF(J30="na","na",IF(ISERROR(IF(D30="","",IF(J30="","",D30/J30*100-100))),0,IF(D30="","",IF(J30="","",D30/J30*100-100)))))) -> 19.76590523 | G30: =IF(D30="na","na",D30*$E$60) -> 543.9825931 | I30: =INDEX('Sheep euro'!$S$7:$AY$998,MATCH('Sheep - EU reference prices'!I$10,'Sheep euro'!$A$7:$A$998,0),MATCH('Sheep - EU reference prices'!$C30,'Sheep euro'!$S$6:$AY$6,0)) -> 666.4 | J30: =IF(ISERROR(INDEX('Sheep euro'!$S$7:$AY$998,MATCH('Sheep - EU reference prices'!J$10,'Sheep euro'!$A$7:$A$998,0),MATCH('Sheep - EU reference prices'!$C30,'Sheep euro'!$S$6:$AY$6,0))),0,INDEX('Sheep euro'!$S$7:$AY$998,MATCH('Sheep - EU reference prices'!J$10,'Sheep euro'!$A$7:$A$998,0),MATCH('Sheep - EU reference prices'!$C30,'Sheep euro'!$S$6:$AY$6,0))) -> 529.7 | U30: 2021-04-11
B31: Germany | C31: DE | D31: =INDEX('Sheep euro'!$S$7:$BB$998,MATCH('Sheep - EU reference prices'!$E$7,'Sheep euro'!$A$7:$A$998,0),MATCH('Sheep - EU reference prices'!$C31,'Sheep euro'!$S$6:$BB$6,0)) -> 776.05 | E31: -0.1351177455 | F31: 32.0598996 | G31: =IF(D31="na","na",D31*$E$60) -> 665.4440281 | I31: =INDEX('Sheep euro'!$S$7:$AY$998,MATCH('Sheep - EU reference prices'!I$10,'Sheep euro'!$A$7:$A$998,0),MATCH('Sheep - EU reference prices'!$C31,'Sheep euro'!$S$6:$AY$6,0)) -> 777.1 | J31: =IF(ISERROR(INDEX('Sheep euro'!$S$7:$AY$998,MATCH('Sheep - EU reference prices'!J$10,'Sheep euro'!$A$7:$A$998,0),MATCH('Sheep - EU reference prices'!$C31,'Sheep euro'!$S$6:$AY$6,0))),0,INDEX('Sheep euro'!$S$7:$AY$998,MATCH('Sheep - EU reference prices'!J$10,'Sheep euro'!$A$7:$A$998,0),MATCH('Sheep - EU reference prices'!$C31,'Sheep euro'!$S$6:$AY$6,0))) -> 587.65 | U31: 2021-04-04
B32: Spain | C32: ES | D32: =INDEX('Sheep euro'!$S$7:$BB$998,MATCH('Sheep - EU reference prices'!$E$7,'Sheep euro'!$A$7:$A$998,0),MATCH('Sheep - EU reference prices'!$C32,'Sheep euro'!$S$6:$BB$6,0)) -> 638.15 | E32: 0.3648774043 | F32: 11.54518441 | G32: 547.1981271 | I32: =INDEX('Sheep euro'!$S$7:$AY$998,MATCH('Sheep - EU reference prices'!I$10,'Sheep euro'!$A$7:$A$998,0),MATCH('Sheep - EU reference prices'!$C32,'Sheep euro'!$S$6:$AY$6,0)) -> 635.83 | J32: =IF(ISERROR(INDEX('Sheep euro'!$S$7:$AY$998,MATCH('Sheep - EU reference prices'!J$10,'Sheep euro'!$A$7:$A$998,0),MATCH('Sheep - EU reference prices'!$C32,'Sheep euro'!$S$6:$AY$6,0))),0,INDEX('Sheep euro'!$S$7:$AY$998,MATCH('Sheep - EU reference prices'!J$10,'Sheep euro'!$A$7:$A$998,0),MATCH('Sheep - EU reference prices'!$C32,'Sheep euro'!$S$6:$AY$6,0))) -> 572.1 | U32: 2021-03-28
B33: France | C33: FR | D33: =INDEX('Sheep euro'!$S$7:$BB$998,MATCH('Sheep - EU reference prices'!$E$7,'Sheep euro'!$A$7:$A$998,0),MATCH('Sheep - EU reference prices'!$C33,'Sheep euro'!$S$6:$BB$6,0)) -> 706 | E33: -0.4231311707 | F33: 6.96969697 | G33: 605.3778543 | I33: =INDEX('Sheep euro'!$S$7:$AY$998,MATCH('Sheep - EU reference prices'!I$10,'Sheep euro'!$A$7:$A$998,0),MATCH('Sheep - EU reference prices'!$C33,'Sheep euro'!$S$6:$AY$6,0)) -> 709 | J33: =IF(ISERROR(INDEX('Sheep euro'!$S$7:$AY$998,MATCH('Sheep - EU reference prices'!J$10,'Sheep euro'!$A$7:$A$998,0),MATCH('Sheep - EU reference prices'!$C33,'Sheep euro'!$S$6:$AY$6,0))),0,INDEX('Sheep euro'!$S$7:$AY$998,MATCH('Sheep - EU reference prices'!J$10,'Sheep euro'!$A$7:$A$998,0),MATCH('Sheep - EU reference prices'!$C33,'Sheep euro'!$S$6:$AY$6,0))) -> 660 | U33: 2021-03-21
B34: Irish Republic | C34: IE | D34: =INDEX('Sheep euro'!$S$7:$BB$998,MATCH('Sheep - EU reference prices'!$E$7,'Sheep euro'!$A$7:$A$998,0),MATCH('Sheep - EU reference prices'!$C34,'Sheep euro'!$S$6:$BB$6,0)) -> 664.85 | E34: -5.514105024 | F34: 30.30142678 | G34: 570.0927286 | I34: =INDEX('Sheep euro'!$S$7:$AY$998,MATCH('Sheep - EU reference prices'!I$10,'Sheep euro'!$A$7:$A$998,0),MATCH('Sheep - EU reference prices'!$C34,'Sheep euro'!$S$6:$AY$6,0)) -> 703.65 | J34: =IF(ISERROR(INDEX('Sheep euro'!$S$7:$AY$998,MATCH('Sheep - EU reference prices'!J$10,'Sheep euro'!$A$7:$A$998,0),MATCH('Sheep - EU reference prices'!$C34,'Sheep euro'!$S$6:$AY$6,0))),0,INDEX('Sheep euro'!$S$7:$AY$998,MATCH('Sheep - EU reference prices'!J$10,'Sheep euro'!$A$7:$A$998,0),MATCH('Sheep - EU reference prices'!$C34,'Sheep euro'!$S$6:$AY$6,0))) -> 510.24 | U34: 2021-03-14
B35: Netherlands | C35: NL | D35: =INDEX('Sheep euro'!$S$7:$BB$998,MATCH('Sheep - EU reference prices'!$E$7,'Sheep euro'!$A$7:$A$998,0),MATCH('Sheep - EU reference prices'!$C35,'Sheep euro'!$S$6:$BB$6,0)) -> 731.18 | E35: -0.5724853479 | F35: 23.79871999 | G35: 626.9690928 | I35: =INDEX('Sheep euro'!$S$7:$AY$998,MATCH('Sheep - EU reference prices'!I$10,'Sheep euro'!$A$7:$A$998,0),MATCH('Sheep - EU reference prices'!$C35,'Sheep euro'!$S$6:$AY$6,0)) -> 735.39 | J35: =IF(ISERROR(INDEX('Sheep euro'!$S$7:$AY$998,MATCH('Sheep - EU reference prices'!J$10,'Sheep euro'!$A$7:$A$998,0),MATCH('Sheep - EU reference prices'!$C35,'Sheep euro'!$S$6:$AY$6,0))),0,INDEX('Sheep euro'!$S$7:$AY$998,MATCH('Sheep - EU reference prices'!J$10,'Sheep euro'!$A$7:$A$998,0),MATCH('Sheep - EU reference prices'!$C35,'Sheep euro'!$S$6:$AY$6,0))) -> 590.62 | U35: 2021-03-07
B36: Austria | C36: AT | D36: =INDEX('Sheep euro'!$S$7:$BB$998,MATCH('Sheep - EU reference prices'!$E$7,'Sheep euro'!$A$7:$A$998,0),MATCH('Sheep - EU reference prices'!$C36,'Sheep euro'!$S$6:$BB$6,0)) -> 600 | E36: -0.1663893511 | F36: 8.303249097 | G36: 514.4854286 | I36: =INDEX('Sheep euro'!$S$7:$AY$998,MATCH('Sheep - EU reference prices'!I$10,'Sheep euro'!$A$7:$A$998,0),MATCH('Sheep - EU reference prices'!$C36,'Sheep euro'!$S$6:$AY$6,0)) -> 601 | J36: =IF(ISERROR(INDEX('Sheep euro'!$S$7:$AY$998,MATCH('Sheep - EU reference prices'!J$10,'Sheep euro'!$A$7:$A$998,0),MATCH('Sheep - EU reference prices'!$C36,'Sheep euro'!$S$6:$AY$6,0))),0,INDEX('Sheep euro'!$S$7:$AY$998,MATCH('Sheep - EU reference prices'!J$10,'Sheep euro'!$A$7:$A$998,0),MATCH('Sheep - EU reference prices'!$C36,'Sheep euro'!$S$6:$AY$6,0))) -> 554 | U36: 2021-02-28
B37: Poland | C37: PL | D37: =INDEX('Sheep euro'!$S$7:$BB$998,MATCH('Sheep - EU reference prices'!$E$7,'Sheep euro'!$A$7:$A$998,0),MATCH('Sheep - EU reference prices'!$C37,'Sheep euro'!$S$6:$BB$6,0)) -> na | E37: na | F37: na | G37: =IF(D37="na","na",D37*$E$60) -> na | I37: =INDEX('Sheep euro'!$S$7:$AY$998,MATCH('Sheep - EU reference prices'!I$10,'Sheep euro'!$A$7:$A$998,0),MATCH('Sheep - EU reference prices'!$C37,'Sheep euro'!$S$6:$AY$6,0)) -> na | J37: =IF(ISERROR(INDEX('Sheep euro'!$S$7:$AY$998,MATCH('Sheep - EU reference prices'!J$10,'Sheep euro'!$A$7:$A$998,0),MATCH('Sheep - EU reference prices'!$C37,'Sheep euro'!$S$6:$AY$6,0))),0,INDEX('Sheep euro'!$S$7:$AY$998,MATCH('Sheep - EU reference prices'!J$10,'Sheep euro'!$A$7:$A$998,0),MATCH('Sheep - EU reference prices'!$C37,'Sheep euro'!$S$6:$AY$6,0))) -> na | U37: 2021-02-21
B38: Sweden | C38: SE | D38: =INDEX('Sheep euro'!$S$7:$BB$998,MATCH('Sheep - EU reference prices'!$E$7,'Sheep euro'!$A$7:$A$998,0),MATCH('Sheep - EU reference prices'!$C38,'Sheep euro'!$S$6:$BB$6,0)) -> 707.4955 | E38: -3.235113499 | F38: 22.09557374 | G38: 606.6602092 | I38: =INDEX('Sheep euro'!$S$7:$AY$998,MATCH('Sheep - EU reference prices'!I$10,'Sheep euro'!$A$7:$A$998,0),MATCH('Sheep - EU reference prices'!$C38,'Sheep euro'!$S$6:$AY$6,0)) -> 731.149 | J38: =IF(ISERROR(INDEX('Sheep euro'!$S$7:$AY$998,MATCH('Sheep - EU reference prices'!J$10,'Sheep euro'!$A$7:$A$998,0),MATCH('Sheep - EU reference prices'!$C38,'Sheep euro'!$S$6:$AY$6,0))),0,INDEX('Sheep euro'!$S$7:$AY$998,MATCH('Sheep - EU reference prices'!J$10,'Sheep euro'!$A$7:$A$998,0),MATCH('Sheep - EU reference prices'!$C38,'Sheep euro'!$S$6:$AY$6,0))) -> 579.4604 | U38: 2021-02-14
B39: United Kingdom | C39: UK | D39: =INDEX('Sheep euro'!$S$7:$BB$998,MATCH('Sheep - EU reference prices'!$E$7,'Sheep euro'!$A$7:$A$998,0),MATCH('Sheep - EU reference prices'!$C39,'Sheep euro'!$S$6:$BB$6,0)) -> 677.6081777 | E39: -7.415209323 | F39: 30.87027681 | G39: 581.0325562 | I39: =INDEX('Sheep euro'!$S$7:$AY$998,MATCH('Sheep - EU reference prices'!I$10,'Sheep euro'!$A$7:$A$998,0),MATCH('Sheep - EU reference prices'!$C39,'Sheep euro'!$S$6:$AY$6,0)) -> 731.8785005 | J39: =IF(ISERROR(INDEX('Sheep euro'!$S$7:$AY$998,MATCH('Sheep - EU reference prices'!J$10,'Sheep euro'!$A$7:$A$998,0),MATCH('Sheep - EU reference prices'!$C39,'Sheep euro'!$S$6:$AY$6,0))),0,INDEX('Sheep euro'!$S$7:$AY$998,MATCH('Sheep - EU reference prices'!J$10,'Sheep euro'!$A$7:$A$998,0),MATCH('Sheep - EU reference prices'!$C39,'Sheep euro'!$S$6:$AY$6,0))) -> 517.7708753 | U39: 2021-02-07
B40: Great Britain | C40: GB | D40: =INDEX('Sheep euro'!$S$7:$BB$998,MATCH('Sheep - EU reference prices'!$E$7,'Sheep euro'!$A$7:$A$998,0),MATCH('Sheep - EU reference prices'!$C40,'Sheep euro'!$S$6:$BB$6,0)) -> 684.8007357 | E40: -7.385306691 | F40: 31.46733664 | G40: 587.2 | I40: =INDEX('Sheep euro'!$S$7:$AY$998,MATCH('Sheep - EU reference prices'!I$10,'Sheep euro'!$A$7:$A$998,0),MATCH('Sheep - EU reference prices'!$C40,'Sheep euro'!$S$6:$AY$6,0)) -> 739.4083069 | J40: =IF(ISERROR(INDEX('Sheep euro'!$S$7:$AY$998,MATCH('Sheep - EU reference prices'!J$10,'Sheep euro'!$A$7:$A$998,0),MATCH('Sheep - EU reference prices'!$C40,'Sheep euro'!$S$6:$AY$6,0))),0,INDEX('Sheep euro'!$S$7:$AY$998,MATCH('Sheep - EU reference prices'!J$10,'Sheep euro'!$A$7:$A$998,0),MATCH('Sheep - EU reference prices'!$C40,'Sheep euro'!$S$6:$AY$6,0))) -> 520.8904 | U40: 2021-01-31
B41: Northern Ireland | C41: NI | D41: =INDEX('Sheep euro'!$S$7:$BB$998,MATCH('Sheep - EU reference prices'!$E$7,'Sheep euro'!$A$7:$A$998,0),MATCH('Sheep - EU reference prices'!$C41,'Sheep euro'!$S$6:$BB$6,0)) -> 584.0364038 | E41: -7.868964164 | F41: 22.40400819 | G41: 500.7970325 | I41: =INDEX('Sheep euro'!$S$7:$AY$998,MATCH('Sheep - EU reference prices'!I$10,'Sheep euro'!$A$7:$A$998,0),MATCH('Sheep - EU reference prices'!$C41,'Sheep euro'!$S$6:$AY$6,0)) -> 633.9192852 | J41: =IF(ISERROR(INDEX('Sheep euro'!$S$7:$AY$998,MATCH('Sheep - EU reference prices'!J$10,'Sheep euro'!$A$7:$A$998,0),MATCH('Sheep - EU reference prices'!$C41,'Sheep euro'!$S$6:$AY$6,0))),0,INDEX('Sheep euro'!$S$7:$AY$998,MATCH('Sheep - EU reference prices'!J$10,'Sheep euro'!$A$7:$A$998,0),MATCH('Sheep - EU reference prices'!$C41,'Sheep euro'!$S$6:$AY$6,0))) -> 477.1383 | U41: 2021-01-24
B42: Denmark | C42: DK | D42: =INDEX('Sheep euro'!$S$7:$BB$998,MATCH('Sheep - EU reference prices'!$E$7,'Sheep euro'!$A$7:$A$998,0),MATCH('Sheep - EU reference prices'!$C42,'Sheep euro'!$S$6:$BB$6,0)) -> na | E42: na | F42: na | G42: na | I42: =INDEX('Sheep euro'!$S$7:$AY$998,MATCH('Sheep - EU reference prices'!I$10,'Sheep euro'!$A$7:$A$998,0),MATCH('Sheep - EU reference prices'!$C42,'Sheep euro'!$S$6:$AY$6,0)) -> na | J42: =IF(ISERROR(INDEX('Sheep euro'!$S$7:$AY$998,MATCH('Sheep - EU reference prices'!J$10,'Sheep euro'!$A$7:$A$998,0),MATCH('Sheep - EU reference prices'!$C42,'Sheep euro'!$S$6:$AY$6,0))),0,INDEX('Sheep euro'!$S$7:$AY$998,MATCH('Sheep - EU reference prices'!J$10,'Sheep euro'!$A$7:$A$998,0),MATCH('Sheep - EU reference prices'!$C42,'Sheep euro'!$S$6:$AY$6,0))) -> na | U42: 2021-01-17
B43: Cyprus | C43: CY | D43: =INDEX('Sheep euro'!$S$7:$BB$998,MATCH('Sheep - EU reference prices'!$E$7,'Sheep euro'!$A$7:$A$998,0),MATCH('Sheep - EU reference prices'!$C43,'Sheep euro'!$S$6:$BB$6,0)) -> 569 | E43: 1.065719361 | F43: 0.176056338 | G43: 487.9036814 | I43: =INDEX('Sheep euro'!$S$7:$AY$998,MATCH('Sheep - EU reference prices'!I$10,'Sheep euro'!$A$7:$A$998,0),MATCH('Sheep - EU reference prices'!$C43,'Sheep euro'!$S$6:$AY$6,0)) -> 563 | J43: =IF(ISERROR(INDEX('Sheep euro'!$S$7:$AY$998,MATCH('Sheep - EU reference prices'!J$10,'Sheep euro'!$A$7:$A$998,0),MATCH('Sheep - EU reference prices'!$C43,'Sheep euro'!$S$6:$AY$6,0))),0,INDEX('Sheep euro'!$S$7:$AY$998,MATCH('Sheep - EU reference prices'!J$10,'Sheep euro'!$A$7:$A$998,0),MATCH('Sheep - EU reference prices'!$C43,'Sheep euro'!$S$6:$AY$6,0))) -> 568 | U43: 2021-01-10
B44: Lithuania | C44: LT | D44: =INDEX('Sheep euro'!$S$7:$BB$998,MATCH('Sheep - EU reference prices'!$E$7,'Sheep euro'!$A$7:$A$998,0),MATCH('Sheep - EU reference prices'!$C44,'Sheep euro'!$S$6:$BB$6,0)) -> 401.1 | E44: na | F44: -4.397568824 | G44: 343.933509 | I44: =INDEX('Sheep euro'!$S$7:$AY$998,MATCH('Sheep - EU reference prices'!I$10,'Sheep euro'!$A$7:$A$998,0),MATCH('Sheep - EU reference prices'!$C44,'Sheep euro'!$S$6:$AY$6,0)) -> na | J44: =IF(ISERROR(INDEX('Sheep euro'!$S$7:$AY$998,MATCH('Sheep - EU reference prices'!J$10,'Sheep euro'!$A$7:$A$998,0),MATCH('Sheep - EU reference prices'!$C44,'Sheep euro'!$S$6:$AY$6,0))),0,INDEX('Sheep euro'!$S$7:$AY$998,MATCH('Sheep - EU reference prices'!J$10,'Sheep euro'!$A$7:$A$998,0),MATCH('Sheep - EU reference prices'!$C44,'Sheep euro'!$S$6:$AY$6,0))) -> 419.55 | U44: 2021-01-03
B45: Latvia | C45: LV | D45: =INDEX('Sheep euro'!$S$7:$BB$998,MATCH('Sheep - EU reference prices'!$E$7,'Sheep euro'!$A$7:$A$998,0),MATCH('Sheep - EU reference prices'!$C45,'Sheep euro'!$S$6:$BB$6,0)) -> 558.46 | E45: 10.01103144 | F45: 25.03610298 | G45: 478.8658874 | I45: =INDEX('Sheep euro'!$S$7:$AY$998,MATCH('Sheep - EU reference prices'!I$10,'Sheep euro'!$A$7:$A$998,0),MATCH('Sheep - EU reference prices'!$C45,'Sheep euro'!$S$6:$AY$6,0)) -> 507.64 | J45: =IF(ISERROR(INDEX('Sheep euro'!$S$7:$AY$998,MATCH('Sheep - EU reference prices'!J$10,'Sheep euro'!$A$7:$A$998,0),MATCH('Sheep - EU reference prices'!$C45,'Sheep euro'!$S$6:$AY$6,0))),0,INDEX('Sheep euro'!$S$7:$AY$998,MATCH('Sheep - EU reference prices'!J$10,'Sheep euro'!$A$7:$A$998,0),MATCH('Sheep - EU reference prices'!$C45,'Sheep euro'!$S$6:$AY$6,0))) -> 446.639 | U45: 2020-12-27
B46: Finland | C46: FI | D46: =INDEX('Sheep euro'!$S$7:$BB$998,MATCH('Sheep - EU reference prices'!$E$7,'Sheep euro'!$A$7:$A$998,0),MATCH('Sheep - EU reference prices'!$C46,'Sheep euro'!$S$6:$BB$6,0)) -> 310.55 | E46: -28.32083093 | F46: -18.12765284 | G46: 266.2890831 | I46: =INDEX('Sheep euro'!$S$7:$AY$998,MATCH('Sheep - EU reference prices'!I$10,'Sheep euro'!$A$7:$A$998,0),MATCH('Sheep - EU reference prices'!$C46,'Sheep euro'!$S$6:$AY$6,0)) -> 433.25 | J46: =IF(ISERROR(INDEX('Sheep euro'!$S$7:$AY$998,MATCH('Sheep - EU reference prices'!J$10,'Sheep euro'!$A$7:$A$998,0),MATCH('Sheep - EU reference prices'!$C46,'Sheep euro'!$S$6:$AY$6,0))),0,INDEX('Sheep euro'!$S$7:$AY$998,MATCH('Sheep - EU reference prices'!J$10,'Sheep euro'!$A$7:$A$998,0),MATCH('Sheep - EU reference prices'!$C46,'Sheep euro'!$S$6:$AY$6,0))) -> 379.31 | U46: 2020-12-20
B47: Italy | C47: IT | D47: =INDEX('Sheep euro'!$S$7:$BB$998,MATCH('Sheep - EU reference prices'!$E$7,'Sheep euro'!$A$7:$A$998,0),MATCH('Sheep - EU reference prices'!$C47,'Sheep euro'!$S$6:$BB$6,0)) -> 467 | E47: -0.2136752137 | F47: -5.656565657 | G47: 400.4411586 | I47: =INDEX('Sheep euro'!$S$7:$AY$998,MATCH('Sheep - EU reference prices'!I$10,'Sheep euro'!$A$7:$A$998,0),MATCH('Sheep - EU reference prices'!$C47,'Sheep euro'!$S$6:$AY$6,0)) -> 468 | J47: =IF(ISERROR(INDEX('Sheep euro'!$S$7:$AY$998,MATCH('Sheep - EU reference prices'!J$10,'Sheep euro'!$A$7:$A$998,0),MATCH('Sheep - EU reference prices'!$C47,'Sheep euro'!$S$6:$AY$6,0))),0,INDEX('Sheep euro'!$S$7:$AY$998,MATCH('Sheep - EU reference prices'!J$10,'Sheep euro'!$A$7:$A$998,0),MATCH('Sheep - EU reference prices'!$C47,'Sheep euro'!$S$6:$AY$6,0))) -> 495 | U47: 2020-12-13
B48: Hungary | C48: HU | D48: =INDEX('Sheep euro'!$S$7:$BB$998,MATCH('Sheep - EU reference prices'!$E$7,'Sheep euro'!$A$7:$A$998,0),MATCH('Sheep - EU reference prices'!$C48,'Sheep euro'!$S$6:$BB$6,0)) -> 691.716 | E48: 0.3436876765 | F48: 34.66396501 | G48: 593.1296712 | I48: =INDEX('Sheep euro'!$S$7:$AY$998,MATCH('Sheep - EU reference prices'!I$10,'Sheep euro'!$A$7:$A$998,0),MATCH('Sheep - EU reference prices'!$C48,'Sheep euro'!$S$6:$AY$6,0)) -> 689.3468 | J48: =IF(ISERROR(INDEX('Sheep euro'!$S$7:$AY$998,MATCH('Sheep - EU reference prices'!J$10,'Sheep euro'!$A$7:$A$998,0),MATCH('Sheep - EU reference prices'!$C48,'Sheep euro'!$S$6:$AY$6,0))),0,INDEX('Sheep euro'!$S$7:$AY$998,MATCH('Sheep - EU reference prices'!J$10,'Sheep euro'!$A$7:$A$998,0),MATCH('Sheep - EU reference prices'!$C48,'Sheep euro'!$S$6:$AY$6,0))) -> 513.6608 | U48: 2020-12-13
B49: Portugal | C49: PT | D49: =INDEX('Sheep euro'!$S$7:$BB$998,MATCH('Sheep - EU reference prices'!$E$7,'Sheep euro'!$A$7:$A$998,0),MATCH('Sheep - EU reference prices'!$C49,'Sheep euro'!$S$6:$BB$6,0)) -> 512 | E49: 0 | F49: 14.41340782 | G49: 439.0275657 | I49: =INDEX('Sheep euro'!$S$7:$AY$998,MATCH('Sheep - EU reference prices'!I$10,'Sheep euro'!$A$7:$A$998,0),MATCH('Sheep - EU reference prices'!$C49,'Sheep euro'!$S$6:$AY$6,0)) -> 512 | J49: =IF(ISERROR(INDEX('Sheep euro'!$S$7:$AY$998,MATCH('Sheep - EU reference prices'!J$10,'Sheep euro'!$A$7:$A$998,0),MATCH('Sheep - EU reference prices'!$C49,'Sheep euro'!$S$6:$AY$6,0))),0,INDEX('Sheep euro'!$S$7:$AY$998,MATCH('Sheep - EU reference prices'!J$10,'Sheep euro'!$A$7:$A$998,0),MATCH('Sheep - EU reference prices'!$C49,'Sheep euro'!$S$6:$AY$6,0))) -> 447.5 | U49: 2020-12-13
B50: Slovenia | C50: SI | D50: =INDEX('Sheep euro'!$S$7:$BB$998,MATCH('Sheep - EU reference prices'!$E$7,'Sheep euro'!$A$7:$A$998,0),MATCH('Sheep - EU reference prices'!$C50,'Sheep euro'!$S$6:$BB$6,0)) -> 598 | E50: 5.707871524 | F50: 6.12244898 | G50: 512.7704771 | I50: =INDEX('Sheep euro'!$S$7:$AY$998,MATCH('Sheep - EU reference prices'!I$10,'Sheep euro'!$A$7:$A$998,0),MATCH('Sheep - EU reference prices'!$C50,'Sheep euro'!$S$6:$AY$6,0)) -> 565.71 | J50: =IF(ISERROR(INDEX('Sheep euro'!$S$7:$AY$998,MATCH('Sheep - EU reference prices'!J$10,'Sheep euro'!$A$7:$A$998,0),MATCH('Sheep - EU reference prices'!$C50,'Sheep euro'!$S$6:$AY$6,0))),0,INDEX('Sheep euro'!$S$7:$AY$998,MATCH('Sheep - EU reference prices'!J$10,'Sheep euro'!$A$7:$A$998,0),MATCH('Sheep - EU reference prices'!$C50,'Sheep euro'!$S$6:$AY$6,0))) -> 563.5 | U50: 2020-12-13
B51: Romania | C51: ROM | D51: =INDEX('Sheep euro'!$S$7:$BB$998,MATCH('Sheep - EU reference prices'!$E$7,'Sheep euro'!$A$7:$A$998,0),MATCH('Sheep - EU reference prices'!$C51,'Sheep euro'!$S$6:$BB$6,0)) -> 287.0452 | E51: 8.700543834 | F51: 14.88347167 | G51: 246.1342879 | I51: =INDEX('Sheep euro'!$S$7:$AY$998,MATCH('Sheep - EU reference prices'!I$10,'Sheep euro'!$A$7:$A$998,0),MATCH('Sheep - EU reference prices'!$C51,'Sheep euro'!$S$6:$AY$6,0)) -> 264.0697 | J51: =IF(ISERROR(INDEX('Sheep euro'!$S$7:$AY$998,MATCH('Sheep - EU reference prices'!J$10,'Sheep euro'!$A$7:$A$998,0),MATCH('Sheep - EU reference prices'!$C51,'Sheep euro'!$S$6:$AY$6,0))),0,INDEX('Sheep euro'!$S$7:$AY$998,MATCH('Sheep - EU reference prices'!J$10,'Sheep euro'!$A$7:$A$998,0),MATCH('Sheep - EU reference prices'!$C51,'Sheep euro'!$S$6:$AY$6,0))) -> 249.8577 | U51: 2020-12-06
B52: Croatia | C52: HR | D52: =INDEX('Sheep euro'!$S$7:$BB$998,MATCH('Sheep - EU reference prices'!$E$7,'Sheep euro'!$A$7:$A$998,0),MATCH('Sheep - EU reference prices'!$C52,'Sheep euro'!$S$6:$BB$6,0)) -> 692.5215 | E52: 4.211880177 | F52: 11.71440394 | G52: 593.8203679 | I52: =INDEX('Sheep euro'!$S$7:$AY$998,MATCH('Sheep - EU reference prices'!I$10,'Sheep euro'!$A$7:$A$998,0),MATCH('Sheep - EU reference prices'!$C52,'Sheep euro'!$S$6:$AY$6,0)) -> 664.5322 | J52: =IF(ISERROR(INDEX('Sheep euro'!$S$7:$AY$998,MATCH('Sheep - EU reference prices'!J$10,'Sheep euro'!$A$7:$A$998,0),MATCH('Sheep - EU reference prices'!$C52,'Sheep euro'!$S$6:$AY$6,0))),0,INDEX('Sheep euro'!$S$7:$AY$998,MATCH('Sheep - EU reference prices'!J$10,'Sheep euro'!$A$7:$A$998,0),MATCH('Sheep - EU reference prices'!$C52,'Sheep euro'!$S$6:$AY$6,0))) -> 619.9035 | U52: 2020-11-29
B53: EU (exc UK) | C53: EU27 excluding UK | D53: =INDEX('Sheep euro'!$S$7:$BB$998,MATCH('Sheep - EU reference prices'!$E$7,'Sheep euro'!$A$7:$A$998,0),MATCH('Sheep - EU reference prices'!$C53,'Sheep euro'!$S$6:$BB$6,0)) -> 663.1536198 | E53: =IF(I53="na","na",IF(ISERROR(IF(D53="","",IF(I53="","",D53/I53*100-100))),0,IF(D53="","",IF(I53="","",D53/I53*100-100)))) -> -1.454306201 | F53: =IF(D53="na","na",IF(ISERROR(IF(D53="","",IF(J53="","",D53/J53*100-100))),0,IF(D53="","",IF(J53="","",D53/J53*100-100)))) -> 15.98664098 | G53: =IF(D53="na","na",D53*$E$60) -> 568.6381238 | I53: =INDEX('Sheep euro'!$S$7:$AY$998,MATCH('Sheep - EU reference prices'!I$10,'Sheep euro'!$A$7:$A$998,0),MATCH('Sheep - EU reference prices'!$C53,'Sheep euro'!$S$6:$AY$6,0)) -> 672.9402313 | J53: =IF(ISERROR(INDEX('Sheep euro'!$S$7:$AY$998,MATCH('Sheep - EU reference prices'!J$10,'Sheep euro'!$A$7:$A$998,0),MATCH('Sheep - EU reference prices'!$C53,'Sheep euro'!$S$6:$AY$6,0))),0,INDEX('Sheep euro'!$S$7:$AY$998,MATCH('Sheep - EU reference prices'!J$10,'Sheep euro'!$A$7:$A$998,0),MATCH('Sheep - EU reference prices'!$C53,'Sheep euro'!$S$6:$AY$6,0))) -> 571.75 | U53: 2020-11-22
U54: 2020-11-15
B55: Specific sheep quotations | U55: 2020-10-11
D56: €/100kg dw | E56: % change on week | F56: % change on year | G56: p/kg dw * | I56: =E7-7 -> 2021-06-20 | J56: =E7-364 -> 2020-06-28
B57: Great Britain - SQQ | D57: =IF(ISERROR(VLOOKUP(E7-1,'SQQ 2013'!$B$2:D1000,3,FALSE)),0,VLOOKUP(E7-1,'SQQ 2013'!$B$2:D1000,3,FALSE))*100 -> 684.8007357 | E57: =IF(ISERROR(VLOOKUP(E7-1,'SQQ 2013'!$B$2:E1000,4,FALSE)),0,VLOOKUP(E7-1,'SQQ 2013'!$B$2:E1000,4,FALSE)) -> -7.385306691 | F57: =IF(ISERROR(VLOOKUP(E7-1,'SQQ 2013'!$B$2:F1000,5,FALSE)),0,VLOOKUP(E7-1,'SQQ 2013'!$B$2:F1000,5,FALSE)) -> 31.46732965 | G57: =IF(D57="na","na",D57*$E$60) -> 587.2 | U57: 2020-09-20
B58: Irish Republic - Factory price | D58: =IF(F58="na","na",IF(ISERROR(VLOOKUP(E7-1,'IRISH FACTORY 2013'!$B$2:D1000,3,FALSE)),0,VLOOKUP(E7-1,'IRISH FACTORY 2013'!$B$2:D1000,3,FALSE))*100) -> 664.85 | E58: =IF(ISERROR(VLOOKUP(E7-1,'IRISH FACTORY 2013'!$B$2:E1000,4,FALSE)),0,VLOOKUP(E7-1,'IRISH FACTORY 2013'!$B$2:E1000,4,FALSE)) -> -5.514105024 | F58: =IF(ISERROR(VLOOKUP(E7-1,'IRISH FACTORY 2013'!$B$2:F1000,5,FALSE)),0,VLOOKUP(E7-1,'IRISH FACTORY 2013'!$B$2:F1000,5,FALSE)) -> 30.43435612 | G58: =IF(D58="na","na",D58*$E$60) -> 570.0927286 | U58: 2020-09-06
U59: 2020-08-30
B60: *Converted at weekly rate of 1 € = | E60: =VLOOKUP(E7,'Sheep Pound'!A:C,3) -> 0.8574757143 | U60: 2020-08-23
U62: 2020-08-02
U63: 2020-07-26
U64: 2020-07-19
U65: 2020-07-12
U66: 2020-07-05
U67: 2020-06-28
U68: 2020-06-21
U69: 2020-06-14
U70: 2020-06-07
U71: 2020-05-31
U72: 2020-05-24
U73: 2020-05-17
U74: 2020-05-10
U75: 2020-05-03
U76: 2020-04-26
U77: 2020-04-19
U78: 2020-04-12
U79: 2020-04-05
U80: 2020-03-29
U81: 2020-03-22
U82: 2020-03-15
U83: 2020-03-08
U84: 2020-03-01
U85: 2020-02-23
U86: 2020-02-16
U87: 2020-02-09
U88: 2020-02-02
U89: 2020-01-26
U90: 2020-01-19
U91: 2020-01-12
U92: 2020-01-05
U93: 2019-12-29
U94: 2019-12-22
U95: 2019-12-15
U96: 2019-12-08
U97: 2019-12-01
U98: 2019-11-24
U99: 2019-11-17
U100: 2019-11-10
U101: 2019-11-03
U102: 2019-10-27
U103: 2019-10-20
U104: 2019-10-13
U105: 2019-10-06
U106: 2019-09-29
U107: 2019-09-22
U108: 2019-09-15
U109: 2019-09-08
U110: 2019-09-01
U111: 2019-08-25
U112: 2019-08-18
U113: 2019-08-11
U114: 2019-08-04
U115: 2019-07-28
U116: 2019-07-21
U117: 2019-07-14
U118: 2019-07-07
U119: 2019-06-30
U120: 2019-06-23
U121: 2019-06-16
U122: 2019-06-09
U123: 2019-06-02
U124: 2019-05-26
U125: 2019-05-19
U126: 2019-05-12
U127: 2019-05-05
U128: 2019-04-28
U129: 2019-04-21
U130: 2019-04-14
U131: 2019-04-07
U132: 2019-03-31
U133: 2019-03-24
U134: 2019-03-17
U135: 2019-03-10
U136: 2019-03-03
U137: 2019-02-24
U138: 2019-02-17
U139: 2019-02-10
U140: 2019-02-03
U141: 2019-01-27
U142: 2019-01-20
U143: 2019-01-13
U144: 2019-01-06
U145: 2018-12-30
U146: 2018-12-23
U147: 2018-12-16
U148: 2018-12-09
U149: 2018-12-02
U150: 2018-11-25
U151: 2018-11-18
U152: 2018-11-11
U153: 2018-11-04
U154: 2018-10-28
U155: 2018-10-21
U156: 2018-10-14
U157: 2018-10-07
U158: 2018-09-30
U159: 2018-09-23
U160: 2018-09-16
U161: 2018-09-09
U162: 2018-09-02
U163: 2018-08-26
U164: 2018-08-19
U165: 2018-08-12
U166: 2018-08-05
U167: 2018-07-29
U168: 2018-07-22
U169: 2018-07-15
U170: 2018-07-08
U171: 2018-07-01
U172: 2018-06-24
U173: 2018-06-17
U174: 2018-06-10
U175: 2018-06-03
U176: 2018-05-27
U177: 2018-05-20
U178: 2018-05-13
U179: 2018-05-06
U180: 2018-04-29
U181: 2018-04-22
U182: 2018-04-15
U183: 2018-04-08
U184: 2018-04-01
U185: 2018-03-25
U186: 2018-03-18
U187: 2018-03-11
U188: 2018-03-04
U189: 2018-02-25
U190: 2018-02-18
U191: 2018-02-11
U192: 2018-02-04
U193: 2018-01-28
U194: 2018-01-21
U195: 2018-01-14
U196: 2018-01-07
U197: 2017-12-31
U198: 2017-12-24
U199: 2017-12-17
U200: 2017-12-10
U201: 2017-12-03
U202: 2017-11-26
U203: 2017-11-19
U204: 2017-11-12
U205: 2017-11-05
... 93 more rows

Sheet Disclaimer and notes
A2: Notes
A4: These prices are subject to retrospective changes.
A5: na = not available
A6: EU (excluding UK) with effect w/e 09/02/2020. Weekly and annual change shown is compared with EU price excluding the UK.
A7: With effect w/e 02/01/2021, GB, NI and UK heavy lamb prices are no longer being reported by the EU Commission. UK, GB and NI prices reported by AHDB and DAERA.
A10: Disclaimer
A12: While AHDB seeks to ensure that the information contained within this document is accurate at the time of printing, no warranty is given in respect of the information and data provided. You are responsible for how you use the information. To the maximum extent permitted by law, AHDB accepts no liability for loss, damage or injury howsoever caused or suffered (including that caused by negligence) directly or indirectly in relation to the information or data provided in this publication.
A18: All intellectual property rights in the information and data in this document belong to or are licensed by AHDB. You are authorised to use such information for your internal business purposes only and you must not provide this information to any other third parties, including further publication of the information, or for commercial gain in any way whatsoever without the prior written permission of AHDB for each third party disclosure, publication or commercial arrangement. For more information, please see our Terms of Use and Privacy Notice or contact the Director of Corporate Affairs at info@ahdb.org.uk
A24: © Agriculture and Horticulture Development Board 2021. All rights reserved.
A26: Contact us
A28: Head office address | B28: Agriculture and Horticulture Development Board Stoneleigh Park Kenilworth Warwickshire CV8 2TL
A33: Telephone | B33: 024 7669 2051
A34: Email | B34: mi@ahdb.org.uk
A35: Website | B35: ahdb.org.uk

Sheet Dates (hidden)
A1: 2022-01-02
A2: 2021-12-26
A3: 2021-12-19
A4: 2021-12-12
A5: 2021-12-05
A6: 2021-11-28
A7: 2021-11-21
A8: 2021-11-14
A9: 2021-11-07
A10: 2021-10-31
A11: 2021-10-24
A12: 2021-10-17
A13: 2021-10-10
A14: 2021-10-03
A15: 2021-09-26
A16: 2021-09-19
A17: 2021-09-12
A18: 2021-09-05
A19: 2021-08-29
A20: 2021-08-22
A21: 2021-08-15
A22: 2021-08-08
A23: 2021-08-01
A24: 2021-07-25
A25: 2021-07-18
A26: 2021-07-11
A27: 2021-07-04
A28: 2021-06-27
A29: 2021-06-20
A30: 2021-06-13
A31: 2021-06-06
A32: 2021-05-30
A33: 2021-05-23
A34: 2021-05-16
A35: 2021-05-09
A36: 2021-05-02
A37: 2021-04-25
A38: 2021-04-18
A39: 2021-04-11
A40: 2021-04-04
A41: 2021-03-28
A42: 2021-03-21
A43: 2021-03-14
A44: 2021-03-07
A45: 2021-02-28
A46: 2021-02-21
A47: 2021-02-14
A48: 2021-02-07
A49: 2021-01-31
A50: 2021-01-24
A51: 2021-01-17
A52: 2021-01-10
A53: 2021-01-03
A54: 2020-12-27
A55: 2020-12-20
A56: 2020-12-13
A57: 2020-12-06
A58: 2020-11-29
A59: 2020-11-22
A60: 2020-11-15
A61: 2020-11-08
A62: 2020-11-01
A63: 2020-10-25
A64: 2020-10-18
A65: 2020-10-11
A66: 2020-10-04
A67: 2020-09-27
A68: 2020-09-20
A69: 2020-09-13
A70: 2020-09-06
A71: 2020-08-30
A72: 2020-08-23
A73: 2020-08-16
A74: 2020-08-09
A75: 2020-08-02
A76: 2020-07-26
A77: 2020-07-19
A78: 2020-07-12
A79: 2020-07-05
A80: 2020-06-28
A81: 2020-06-21
A82: 2020-06-14
A83: 2020-06-07
A84: 2020-05-31
A85: 2020-05-24
A86: 2020-05-17
A87: 2020-05-10
A88: 2020-05-03
A89: 2020-04-26
A90: 2020-04-19
A91: 2020-04-12
A92: 2020-04-05
A93: 2020-03-29
A94: 2020-03-22
A95: 2020-03-15
A96: 2020-03-08
A97: 2020-03-01
A98: 2020-02-23
A99: 2020-02-16
A100: 2020-02-09
A101: 2020-02-02
A102: 2020-01-26
A103: 2020-01-19
A104: 2020-01-12
A105: 2020-01-05
A106: 2019-12-29
A107: 2019-12-22
A108: 2019-12-15
A109: 2019-12-08
A110: 2019-12-01
A111: 2019-11-24
A112: 2019-11-17
A113: 2019-11-10
A114: 2019-11-03
A115: 2019-10-27
A116: 2019-10-20
A117: 2019-10-13
A118: 2019-10-06
A119: 2019-09-29
A120: 2019-09-22
A121: 2019-09-15
A122: 2019-09-08
A123: 2019-09-01
A124: 2019-08-25
A125: 2019-08-18
A126: 2019-08-11
A127: 2019-08-04
A128: 2019-07-28
A129: 2019-07-21
A130: 2019-07-14
A131: 2019-07-07
A132: 2019-06-30
A133: 2019-06-23
A134: 2019-06-16
A135: 2019-06-09
A136: 2019-06-02
A137: 2019-05-26
A138: 2019-05-19
A139: 2019-05-12
A140: 2019-05-05
A141: 2019-04-28
A142: 2019-04-21
A143: 2019-04-14
A144: 2019-04-07
A145: 2019-03-31
A146: 2019-03-24
A147: 2019-03-17
A148: 2019-03-10
A149: 2019-03-03
A150: 2019-02-24
A151: 2019-02-17
A152: 2019-02-10
A153: 2019-02-03
A154: 2019-01-27
A155: 2019-01-20
A156: 2019-01-13
A157: 2019-01-06
A158: 2018-12-30
A159: 2018-12-23
A160: 2018-12-16
A161: 2018-12-09
A162: 2018-12-02
A163: 2018-11-25
A164: 2018-11-18
A165: 2018-11-11
A166: 2018-11-04
A167: 2018-10-28
A168: 2018-10-21
A169: 2018-10-14
A170: 2018-10-07
A171: 2018-09-30
A172: 2018-09-23
A173: 2018-09-16
A174: 2018-09-09
A175: 2018-09-02
A176: 2018-08-26
A177: 2018-08-19
A178: 2018-08-12
A179: 2018-08-05
A180: 2018-07-29
A181: 2018-07-22
A182: 2018-07-15
A183: 2018-07-08
A184: 2018-07-01
A185: 2018-06-24
A186: 2018-06-17
A187: 2018-06-10
A188: 2018-06-03
A189: 2018-05-27
A190: 2018-05-20
A191: 2018-05-13
A192: 2018-05-06
A193: 2018-04-29
A194: 2018-04-22
A195: 2018-04-15
A196: 2018-04-08
A197: 2018-04-01
A198: 2018-03-25
A199: 2018-03-18
A200: 2018-03-11
... 62 more rows

Sheet Sheet1 (hidden)

Sheet Sheep euro (hidden)
A1: Weekly sheepmeat reference prices
A3: euro per 100 kg dw
D5: Light lambs | T5: Heavy lambs
A6: 2013 | C6: BG | D6: GR | E6: ES | F6: HR | G6: IT | H6: CY | I6: HU | J6: PT | K6: SI | L6: SK | M6: EE | N6: LV | O6: PL | P6: RO | Q6: SE | R6: EU 28 | S6: EE | T6: BE | U6: DE | V6: ES | W6: FR | X6: IE | Y6: NL | Z6: AT | AA6: PL | AB6: SE | AC6: UK | AD6: GB | AE6: NI | AF6: DK | AG6: CY | AH6: LT | AI6: CZ | AJ6: LV | AK6: FI | AL6: EL | AM6: IT | AN6: LU | AO6: HU | AP6: MT | AQ6: PT | AR6: SI | AS6: SK | AT6: EU 25 | AU6: ROM | AV6: BG | AW6: HR | AX6: EU 28 | AY6: EU27 excluding UK
A7: 2010-01-03 | B7: 1 | D7: 549.068 | E7: 824.76 | G7: 671.5 | H7: 815 | I7: 683.9868 | J7: 496 | K7: 417.23 | L7: 687.31 | R7: 717.561 | T7: 429.77 | U7: 421.63 | V7: 565.52 | W7: 612 | X7: 405.8 | Y7: 454.13 | Z7: 522 | AA7: 430.86 | AB7: 277.26 | AC7: 467.59 | AD7: 472.68 | AE7: 401.39 | AT7: 492.12 | AU7: 165.71 | AX7: 449.2 | BC7: 2008-01-06 | BD7: 292.6713 | BE7: 325.5747941
A8: =A7+7 -> 2010-01-10 | B8: 2 | D8: 531.47 | E8: 834.53 | G8: 647.42 | H8: 826 | I8: 686.55 | J8: 496 | K8: 414.81 | L8: 687.31 | R8: 714.02 | T8: 428.42 | U8: 423.52 | V8: 537.81 | W8: 615 | X8: 406.98 | Y8: 460.34 | Z8: 491 | AA8: 433.3 | AB8: 279.48 | AC8: 464.64 | AD8: 468.16 | AE8: 418.74 | AT8: 488.8874121 | AU8: 167.14 | AX8: 446.5773 | BC8: =BC7+7 -> 2008-01-13 | BD8: 296.8469 | BE8: 368.2480155
A9: 2010-01-17 | B9: 3 | D9: 521.386 | E9: 744.34 | G9: 532.16 | H9: 839 | I9: 667.5375 | J9: 496 | K9: 405.28 | L9: 309.48 | R9: 642.1222 | T9: 428.42 | U9: 426.14 | V9: 509.67 | W9: 619 | X9: 423.29 | Y9: 461.46 | Z9: 510 | AA9: 437.7 | AB9: 278.91 | AC9: 484.42 | AD9: 488.8 | AE9: 427.43 | AT9: 499.3551622 | AU9: 169.61 | AX9: 455.9937 | BC9: 2008-01-20 | BD9: 311.7598 | BE9: 385.0453178
A10: 2010-01-24 | B10: 4 | D10: 489.1 | E10: 690.6 | G10: 520.53 | H10: 804 | I10: 558.61 | J10: 496 | K10: 404.28 | L10: 309.48 | R10: 603.66 | T10: 452.22 | U10: 425.71 | V10: 480.97 | W10: 615 | X10: 409.78 | Y10: 461.27 | Z10: 503 | AA10: 438.81 | AB10: 292.78 | AC10: 464.96 | AD10: 468.56 | AE10: 418.13 | AT10: 484.861235 | AU10: 169.68 | AX10: 443.4145 | BC10: 2008-01-27 | BD10: 324.432 | BE10: 372.2001137
A11: 2010-01-31 | B11: 5 | D11: 494.37 | E11: 657.48 | G11: 481.62 | H11: 809 | I11: 547.38 | J11: 484 | K11: 447.45 | L11: 309.48 | R11: 579.72 | T11: 439.92 | U11: 424.53 | V11: 461.12 | W11: 600 | X11: 413.09 | Y11: 454.93 | Z11: 502 | AA11: 376.08 | AB11: 289.51 | AC11: 476.69 | AD11: 480.32 | AE11: 429.38 | AT11: 486.223747 | AU11: 169.81 | AX11: 444.6157 | BC11: 2008-02-03 | BD11: 335.8822 | BE11: 374.0225909
A12: 2010-02-07 | B12: 6 | D12: 511.79 | E12: 623.1 | G12: 481.49 | H12: 758 | I12: 562.47 | J12: 484 | K12: 407.83 | L12: 309.48 | R12: 565.47 | T12: 437.75 | U12: 428.45 | V12: 456.84 | W12: 589 | X12: 419.2 | Y12: 444.85 | Z12: 499 | AA12: 380.73 | AB12: 295.83 | AC12: 479.44 | AD12: 483.05 | AE12: 423.37 | AT12: 485.8758045 | AU12: 170.16 | AX12: 444.3597 | BC12: 2008-02-10 | BD12: 357.6841 | BE12: 411.7137636
A13: 2010-02-14 | B13: 7 | D13: 529.43 | E13: 634.26 | G13: 477.06 | H13: 746 | I13: 531.04 | J13: 484 | K13: 400 | L13: 309.48 | R13: 574.07 | T13: 440.73 | U13: 424.92 | V13: 455.54 | W13: 585 | X13: 424.74 | Y13: 454.57 | Z13: 507 | AA13: 378.45 | AB13: 299.22 | AC13: 467.52 | AD13: 470.95 | AE13: 422.86 | AT13: 479.6948227 | AU13: 169.64 | AX13: 438.9227 | BC13: 2008-02-17 | BD13: 363.2588 | BE13: 416.2063955
A14: 2010-02-21 | B14: 8 | D14: 514.75 | E14: 631.87 | G14: 467.42 | H14: 743 | I14: 553.62 | J14: 464 | K14: 400 | L14: 509.48 | R14: 566.91 | T14: 448.62 | U14: 365.79 | V14: 455.57 | W14: 582 | X14: 418.81 | Y14: 452.42 | Z14: 498 | AA14: 383.37 | AB14: 307.41 | AC14: 468.08 | AD14: 471.74 | AE14: 420.5 | AT14: 474.7809306 | AU14: 169.72 | AX14: 434.6654 | BC14: 2008-02-24 | BD14: 360.4428 | BE14: 417.9052188
A15: 2010-02-28 | B15: 9 | D15: 509.94 | E15: 629.99 | G15: 476.43 | H15: 731 | I15: 531.07 | J15: 440 | K15: 375.41 | L15: 288.05 | R15: 565.38 | T15: 428.42 | U15: 429.63 | V15: 457.05 | W15: 582 | X15: 425.82 | Y15: 470.45 | Z15: 496 | AA15: 385.74 | AB15: 316.28 | AC15: 459.81 | AD15: 462.78 | AE15: 421.09 | AT15: 476.2190155 | AU15: 169.77 | AX15: 435.9206 | BC15: 2008-03-02 | BD15: 367.5481 | BE15: 411.4811505
A16: 2010-03-07 | B16: 10 | D16: 517.24 | E16: 627.75 | G16: 474.9 | H16: 739 | I16: 528.8 | J16: 440 | K16: 405.34 | L16: 288.05 | R16: 565.76 | T16: 443.97 | U16: 432.66 | V16: 442.12 | W16: 582 | X16: 435.32 | Y16: 468.45 | Z16: 502 | AA16: 392.57 | AB16: 319.84 | AC16: 450.93 | AD16: 453.9 | AE16: 412.22 | AT16: 471.6833412 | AU16: 170.71 | AX16: 432.1058 | BC16: 2008-03-09 | BD16: 370.3013 | BE16: 409.1292659
A17: 2010-03-14 | B17: 11 | D17: 516.97 | E17: 634.57 | G17: 487.87 | H17: 748 | I17: 515.02 | J17: 444 | K17: 407.14 | L17: 288.05 | R17: 571.97 | T17: 445.95 | U17: 460.85 | V17: 438.67 | W17: 588 | X17: 435.32 | Y17: 487.25 | Z17: 504 | AA17: 428.61 | AB17: 334.31 | AC17: 450.79 | AD17: 453 | AE17: 421.97 | AT17: 474.3993809 | AU17: 171 | AX17: 434.5029 | BC17: 2008-03-16 | BD17: 393.3406 | BE17: 403.0192766
A18: 2010-03-21 | B18: 12 | D18: 519.46 | E18: 633.73 | G18: 526.19 | H18: 750 | I18: 522.75 | J18: 434 | K18: 407.94 | L18: 464.5 | R18: 579.26 | T18: 454.39 | U18: 465.18 | V18: 449.03 | W18: 594 | X18: 442.78 | Y18: 497.94 | Z18: 503 | AA18: 428.97 | AB18: 349.55 | AC18: 454.46 | AD18: 455.31 | AE18: 443.33 | AT18: 480.3021832 | AU18: 183.62 | AX18: 441.2885 | BC18: 2008-03-23 | BD18: 387.1896 | BE18: 400.5352138
A19: 2010-03-28 | B19: 13 | D19: 580.35 | E19: 583.14 | G19: 589.53 | H19: 744 | I19: 527.51 | J19: 446 | K19: 403.43 | L19: 475.4 | R19: 579.59 | T19: 502.33 | U19: 474.73 | V19: 456.44 | W19: 603 | X19: 454.63 | Y19: 503.33 | Z19: 528 | AA19: 369.99 | AB19: 383.8 | AC19: 459.95 | AD19: 460.29 | AE19: 455.39 | AT19: 487.9693048 | AU19: 171.8 | AX19: 446.3931 | BC19: 2008-03-30 | BD19: 414.06 | BE19: 418.0206794
A20: 2010-04-04 | B20: 14 | D20: 580.35 | E20: 607.63 | G20: 531.28 | H20: 744 | I20: 535.24 | J20: 446 | K20: 403.43 | L20: 469.69 | R20: 581.13371 | T20: 532.2 | U20: 461.71 | V20: 462.22 | W20: 604 | X20: 475.39 | Y20: 506.75 | Z20: 520 | AA20: 372.63 | AB20: 377.91 | AC20: 465.662978 | AD20: 465.73 | AE20: 464.79 | AT20: 492.9904699 | AU20: 183.36 | AX20: 452.2736 | BC20: 2008-04-06 | BD20: 425.5566 | BE20: 442.9378103
A21: 2010-04-11 | B21: 15 | D21: 571.33 | E21: 632.66 | G21: 532.27 | H21: 744 | I21: 529.57 | J21: 441 | K21: 403 | L21: 469.69 | R21: 592.124761 | T21: 511.41 | U21: 461.71 | V21: 449.32 | W21: 601 | X21: 490.97 | Y21: 525.12 | Z21: 515 | AA21: 373.91 | AB21: 382.27 | AC21: 493.0647032 | AD21: 495.356 | AE21: 463.22 | AT21: 507.3624591 | AU21: 182.24 | AX21: 464.6093 | BC21: 2008-04-13 | BD21: 402.51 | BE21: 456.357683
A22: 2010-04-18 | B22: 16 | D22: 562.72 | E22: 624.62 | G22: 496.11 | H22: 744 | I22: 523.88 | J22: 429 | K22: 402.06 | L22: 469.69 | R22: 578.46 | T22: 522.37 | U22: 470.21 | V22: 446.27 | W22: 598 | X22: 491.36 | Y22: 515.29 | Z22: 503 | AA22: 374.3 | AB22: 371.14 | AC22: 502.36 | AD22: 504.45 | AE22: 475.05 | AT22: 511.3158419 | AU22: 181.12 | AX22: 467.8945 | BC22: 2008-04-20 | BD22: 403.0937 | BE22: 463.8427371
A23: 2010-04-25 | B23: 17 | D23: 555.75 | E23: 600.23 | G23: 485.44 | H23: 746 | I23: 532.2 | J23: 429 | K23: 410.86 | L23: 469.69 | R23: 562.06 | T23: 536.29 | U23: 471.92 | V23: 442.91 | W23: 596 | X23: 476.9 | Y23: 494.56 | Z23: 523 | AA23: 373.04 | AB23: 408.54 | AC23: 493.03 | AD23: 494.92 | AE23: 468.43 | AT23: 504.4498869 | AU23: 181.17 | AX23: 461.9391 | BC23: 2008-04-27 | BD23: 399.6696 | BE23: 467.2477813
A24: 2010-05-02 | B24: 18 | D24: 540.76 | E24: 581.63 | G24: 500.62 | H24: 719 | I24: 535.54 | J24: 405 | K24: 405.31 | L24: 469.69 | R24: 550.69 | T24: 535.18 | U24: 468.96 | V24: 436.4 | W24: 593 | X24: 480.37 | Y24: 511.81 | Z24: 502 | AA24: 370.35 | AB24: 420.63 | AC24: 494.43 | AD24: 495.97 | AE24: 474.41 | AT24: 504.4980447 | AU24: 181.64 | AX24: 462.0418 | BC24: 2008-05-04 | BD24: 416.6788 | BE24: 430.3768873
A25: 2010-05-09 | B25: 19 | D25: 511.47 | E25: 576.39 | G25: 497.2 | H25: 719 | I25: 518.08 | J25: 405 | K25: 407.24 | L25: 469.69 | R25: 540.45 | T25: 522.17 | U25: 462.52 | V25: 431.76 | W25: 585 | X25: 474.83 | Y25: 515.94 | Z25: 496 | AA25: 359.13 | AB25: 426.09 | AC25: 499.34 | AD25: 500.9 | AE25: 479.01 | AT25: 504.0805219 | AU25: 180.25 | AX25: 461.4963 | BC25: 2008-05-11 | BD25: 453.5659 | BE25: 454.6670592
A26: 2010-05-16 | B26: 20 | D26: 495.75 | E26: 577.69 | G26: 495.59 | H26: 706 | I26: 492.42 | J26: 393 | K26: 403.85 | L26: 352.34 | R26: 536.5 | T26: 504.17 | U26: 467.06 | V26: 429.19 | W26: 573 | X26: 484.54 | Y26: 508.83 | Z26: 495 | AA26: 349.31 | AB26: 423.87 | AC26: 517.54 | AD26: 519.27 | AE26: 495.02 | AT26: 511.9099938 | AU26: 179.43 | AX26: 468.1887 | BC26: 2008-05-18 | BD26: 463.4454 | BE26: 459.5071992
A27: 2010-05-23 | B27: 21 | D27: 497.07 | E27: 565.25 | G27: 485.11 | H27: 706 | I27: 469.42 | J27: 393 | K27: 410.04 | L27: 333.97 | R27: 528.22 | T27: 504.17 | U27: 458.88 | V27: 429.19 | W27: 563 | X27: 481.76 | Y27: 503.89 | Z27: 495 | AA27: 324.15 | AB27: 429.36 | AC27: 508.53 | AD27: 509.35 | AE27: 487.93 | AT27: 504.51479 | AU27: 202.64 | AX27: 464.8189 | BC27: 2008-05-25 | BD27: 495.9519 | BE27: 495.1800318
A28: 2010-05-30 | B28: 22 | D28: 510.02 | E28: 565.68 | G28: 491.44 | H28: 706 | I28: 479.6 | J28: 380 | K28: 410.76 | L28: 333.97 | R28: 532.23 | T28: 504.17 | U28: 448.29 | V28: 429.19 | W28: 557 | X28: 463.27 | Y28: 485.76 | Z28: 489 | AA28: 322.25 | AB28: 422.35 | AC28: 512.83 | AD28: 513.65 | AE28: 502.14 | AT28: 502.3126472 | AU28: 191.73 | AX28: 461.4711 | AZ28: 4.6366 | BC28: 2008-06-01 | BD28: 490.9389 | BE28: 493.9059071
A29: 2010-06-06 | B29: 23 | D29: 518.99 | E29: 561 | G29: 491.44 | H29: 704 | I29: 461.82 | J29: 380 | K29: 400 | L29: 333.97 | R29: 531.77 | T29: 481.86 | U29: 447.72 | V29: 426.64 | W29: 553 | X29: 454.68 | Y29: 480.48 | Z29: 501 | AA29: 321.51 | AB29: 424.38 | AC29: 510.93 | AD29: 514.13 | AE29: 469.37 | AT29: 499.3538644 | AU29: 202.79 | AX29: 460.3553 | BC29: 2008-06-08 | BD29: 458.0158 | BE29: 486.9633609
A30: 2010-06-13 | B30: 24 | D30: 519.94 | E30: 561.65 | G30: 555.24 | H30: 683 | I30: 469.59 | J30: 380 | K30: 410.28 | L30: 330.91 | R30: 544.45 | T30: 467.07 | U30: 440.62 | V30: 424.31 | W30: 552 | X30: 456.31 | Y30: 469.32 | Z30: 501 | AA30: 320.68 | AB30: 432.53 | AC30: 505.53 | AD30: 508.64 | AE30: 465.09 | AT30: 495.6644195 | AU30: 201.42 | AX30: 456.9711 | BC30: 2008-06-15 | BD30: 451.9302 | BE30: 467.7660407
A31: 2010-06-20 | B31: 25 | D31: 522.26 | E31: 560.62 | G31: 509.1 | H31: 619 | I31: 476.4 | J31: 380 | K31: 402.2 | L31: 348.26 | R31: 535.01 | T31: 455.4 | U31: 429.43 | V31: 429.44 | W31: 550 | X31: 454.22 | Y31: 455.08 | Z31: 479 | AA31: 324.59 | AB31: 431.7 | AC31: 463.09 | AD31: 465.57 | AE31: 430.86 | AT31: 472.6823569 | AU31: 200.78 | AX31: 436.9275 | BC31: 2008-06-22 | BD31: 452.3783 | BE31: 434.1088351
A32: 2010-06-27 | B32: 26 | D32: 507.48 | E32: 563.1 | G32: 511.18 | H32: 581 | I32: 475.1 | J32: 380 | K32: 400 | L32: 348.26 | R32: 532.92 | T32: 439.26 | U32: 431.32 | V32: 428.43 | W32: 548 | X32: 412.88 | Y32: 446.7 | Z32: 509 | AA32: 323.94 | AB32: 429.36 | AC32: 442.5 | AD32: 446.78 | AE32: 386.88 | AT32: 457.4885118 | AU32: 200.09 | AX32: 423.6412 | BC32: 2008-06-29 | BD32: 414.1006 | BE32: 397
A33: 2010-07-04 | B33: 27 | D33: 498.23 | E33: 571.63 | G33: 511.74 | H33: 567 | I33: 474.31 | J33: 380 | K33: 406.85 | L33: 366.63 | R33: 535.23 | T33: 423.01 | U33: 425.32 | V33: 432.88 | W33: 547 | X33: 394.52 | Y33: 436.26 | Z33: 488 | AA33: 312.67 | AB33: 427.38 | AC33: 437.74 | AD33: 442.98 | AE33: 369.47 | AT33: 452.3513078 | AU33: 207.8 | AX33: 420.1933 | BC33: 2008-07-06 | BD33: 392.1949 | BE33: 395.7
A34: 2010-07-11 | B34: 28 | D34: 522.04 | E34: 597.67 | G34: 515.66 | H34: 556 | I34: 481.68 | J34: 380 | K34: 410.29 | L34: 366.63 | R34: 555.06 | T34: 416.44 | U34: 410.62 | V34: 441.91 | W34: 547 | X34: 386.3 | Y34: 438.45 | Z34: 482 | AA34: 316.22 | AB34: 421.4 | AC34: 412.22 | AD34: 415.79 | AE34: 365.75 | AT34: 438.293565 | AU34: 211.95 | AX34: 408.5296 | BC34: 2008-07-13 | BD34: 367.0997 | BE34: 357.5
A35: 2010-07-18 | B35: 29 | D35: 572.56 | E35: 614.62 | G35: 518.3 | H35: 556 | I35: 499.17 | J35: 380 | K35: 404.22 | L35: 370.71 | R35: 576.19 | T35: 407.17 | U35: 410.86 | V35: 446.41 | W35: 547 | X35: 393.01 | Y35: 437.82 | Z35: 469 | AA35: 318.34 | AB35: 420.58 | AC35: 413.981295 | AD35: 416.68 | AE35: 378.83 | AT35: 440.1409784 | AU35: 211.46 | AX35: 410.0696 | BC35: 2008-07-20 | BD35: 361.72 | BE35: 371
A36: 2010-07-25 | B36: 30 | D36: 573.19 | E36: 610.57 | G36: 507.9 | H36: 570 | I36: 509.61 | J36: 388 | K36: 421.02 | L36: 370.71 | R36: 572.7 | T36: 407.17 | U36: 406.35 | V36: 445.5 | W36: 549 | X36: 384.61 | Y36: 438.78 | Z36: 486 | AA36: 316.56 | AB36: 412.16 | AC36: 420.65 | AD36: 423.01 | AE36: 389.97 | AT36: 442.7406818 | AU36: 210.89 | AX36: 412.2523 | BC36: 2008-07-27 | BD36: 365.64 | BE36: 361.8869319
A37: 2010-08-01 | B37: 31 | D37: 578.38 | E37: 614.26 | G37: 509.74 | H37: 578 | I37: 547.41 | J37: 388 | K37: 400 | L37: 370.71 | R37: 576.31 | T37: 404.82 | U37: 407.38 | V37: 444.65 | W37: 549 | X37: 395.73 | Y37: 438.05 | Z37: 485 | AA37: 317.14 | AB37: 403.26 | AC37: 436.51 | AD37: 439.5 | AE37: 397.67 | AT37: 451.8733629 | AU37: 211.48 | AX37: 420.2613 | BC37: 2008-08-03 | BD37: 358.0704 | BE37: 357.1492871
A38: 2010-08-08 | B38: 32 | D38: 585.73 | E38: 608.89 | G38: 509.74 | H38: 578 | I38: 561.87 | J38: 388 | K38: 409.29 | L38: 370.71 | R38: 575.27 | T38: 404.82 | U38: 404 | V38: 444.79 | W38: 549 | X38: 404.55 | Y38: 441.13 | Z38: 478 | AA38: 319.22 | AB38: 404.77 | AC38: 441.79 | AD38: 444.57 | AE38: 405.6 | AT38: 455.3013796 | AU38: 211.85 | AX38: 423.287 | BC38: 2008-08-10 | BD38: 341.73 | BE38: 365.6408721
A39: 2010-08-15 | B39: 33 | D39: 611.98 | E39: 622.56 | G39: 509.74 | H39: 615 | I39: 562.35 | J39: 388 | K39: 412.2 | L39: 380.91 | R39: 588.87 | T39: 404.82 | U39: 401.37 | V39: 452.78 | W39: 557 | X39: 407.11 | Y39: 446.76 | Z39: 495 | AA39: 318.54 | AB39: 399.75 | AC39: 452.95 | AD39: 455.94 | AE39: 413.96 | AT39: 463.5128928 | AU39: 212.47 | AX39: 430.5006 | BC39: 2008-08-17 | BD39: 356.2861 | BE39: 377.73
A40: 2010-08-22 | B40: 34 | D40: 609.04 | E40: 703.66 | G40: 511.11 | H40: 624 | I40: 561.76 | J40: 388 | K40: 400 | L40: 370.71 | R40: 630.91 | T40: 404.81 | U40: 403.81 | V40: 464.42 | W40: 559 | X40: 403.55 | Y40: 437.42 | Z40: 495 | AA40: 320.86 | AB40: 399.62 | AC40: 443.19 | AD40: 446.01 | AE40: 406.42 | AT40: 459.5116948 | AU40: 212.71 | AX40: 427.0567 | BC40: 2008-08-24 | BD40: 364.0761 | BE40: 374.87
A41: 2010-08-29 | B41: 35 | D41: 622.14 | E41: 631.5 | G41: 538.02 | H41: 622 | I41: 577.81 | J41: 388 | K41: 421.9 | L41: 370.71 | R41: 601.51 | T41: 404.81 | U41: 403.11 | V41: 481.62 | W41: 559 | X41: 397.26 | Y41: 445.61 | Z41: 498 | AA41: 319.06 | AB41: 394.08 | AC41: 436.51 | AD41: 439.72 | AE41: 394.65 | AT41: 457.0946311 | AU41: 214.68 | AX41: 425.2171 | BC41: 2008-08-31 | BD41: 361.43 | BE41: 368.7244367
A42: 2010-09-05 | B42: 36 | D42: 625.95 | E42: 668.72 | G42: 535.44 | H42: 622 | I42: 559.62 | J42: 388 | K42: 400 | L42: 370.71 | R42: 621.25 | T42: 404.81 | U42: 411.15 | V42: 503.4 | W42: 567 | X42: 387.63 | Y42: 442.93 | Z42: 487 | AA42: 320.38 | AB42: 386.56 | AC42: 438.92 | AD42: 442.93 | AE42: 386.72 | AT42: 460.9782617 | AU42: 211.21 | AX42: 428.1336 | BC42: 2008-09-07 | BD42: 356.87 | BE42: 362.9917759
A43: 2010-09-12 | B43: 37 | D43: 615.55 | E43: 672.68 | G43: 533.04 | H43: 628 | I43: 571.37 | J43: 388 | K43: 400 | L43: 370.71 | R43: 620.53 | T43: 424.24 | U43: 410.11 | V43: 498.24 | W43: 567 | X43: 396.66 | Y43: 443.74 | Z43: 481 | AA43: 354.83 | AB43: 377.97 | AC43: 439.98 | AD43: 444.19 | AE43: 385.07 | AT43: 461.9755083 | AU43: 210.17 | AX43: 428.8631 | BC43: 2008-09-14 | BD43: 367.2675 | BE43: 363.3526416
A44: 2010-09-19 | B44: 38 | D44: 607.82 | E44: 691.96 | G44: 539.28 | H44: 628 | I44: 585.77 | J44: 400 | K44: 412.29 | L44: 370.71 | R44: 630.54 | T44: 433.96 | U44: 412.75 | V44: 497.46 | W44: 572 | X44: 381.29 | Y44: 454.08 | Z44: 427 | AA44: 354.36 | AB44: 377.66 | AC44: 423.41 | AD44: 427.1 | AE44: 375.38 | AT44: 452.7163511 | AU44: 211.55 | AX44: 421.0035 | BC44: 2008-09-21 | BD44: 360.8335 | BE44: 363.8
A45: 2010-09-26 | B45: 39 | D45: 585.18 | E45: 693.81 | G45: 551.57 | H45: 628 | I45: 576.75 | J45: 400 | K45: 406.86 | L45: 370.71 | R45: 628.59 | T45: 433.96 | U45: 412.78 | V45: 496.86 | W45: 572 | X45: 382.84 | Y45: 444.04 | Z45: 512 | AA45: 329.99 | AB45: 378.74 | AC45: 418.95 | AD45: 422.56 | AE45: 372.02 | AT45: 451.0490525 | AU45: 204.37 | AX45: 418.6112 | BC45: 2008-09-28 | BD45: 365.6883 | BE45: 350.5940165
A46: 2010-10-03 | B46: 40 | D46: 581.67 | E46: 696.55 | G46: 551.57 | H46: 631 | I46: 600.39 | J46: 428 | K46: 403.51 | L46: 370.71 | R46: 630.31 | T46: 437.21 | U46: 410.22 | V46: 495.12 | W46: 573 | X46: 389.77 | Y46: 435.26 | Z46: 506 | AA46: 329.88 | AB46: 354.7 | AC46: 406.18 | AD46: 408.43 | AE46: 376.88 | AT46: 444.8763648 | AU46: 206.5 | AX46: 413.5293 | BC46: 2008-10-05 | BD46: 365.1252 | BE46: 333.969809
A47: 2010-10-10 | B47: 41 | D47: 579.09 | E47: 695.85 | G47: 549.48 | H47: 624 | I47: 550.32 | J47: 432 | K47: 414.17 | L47: 370.71 | R47: 628.91 | T47: 443.89 | U47: 406.09 | V47: 495.01 | W47: 574 | X47: 393.13 | Y47: 447.29 | Z47: 501 | AA47: 330.02 | AB47: 341.62 | AC47: 397.31 | AD47: 399.29 | AE47: 371.52 | AT47: 440.8352896 | AU47: 175.67 | AX47: 405.9667 | BC47: 2008-10-12 | BD47: 354.3 | BE47: 340.545226
A48: 2010-10-17 | B48: 42 | D48: 580.87 | E48: 695.49 | G48: 549.48 | H48: 624 | I48: 599.34 | J48: 432 | K48: 400 | L48: 370.71 | R48: 629.23 | T48: 452.56 | U48: 409.24 | V48: 495.16 | W48: 577 | X48: 388.15 | Y48: 455.09 | Z48: 508 | AA48: 331.82 | AB48: 330.44 | AC48: 396.52 | AD48: 398.2 | AE48: 374.65 | AT48: 440.8974857 | AU48: 180.17 | AX48: 406.6123 | BC48: 2008-10-19 | BD48: 346.31 | BE48: 337.07
A49: 2010-10-24 | B49: 43 | D49: 576.27 | E49: 695.28 | G49: 550.55 | H49: 637 | I49: 581.39 | J49: 432 | K49: 402.79 | L49: 374.79 | R49: 628.35 | T49: 456.46 | U49: 409.84 | V49: 494.3 | W49: 582 | X49: 397.41 | Y49: 454.66 | Z49: 509 | AA49: 331.32 | AB49: 328.35 | AC49: 401.44 | AD49: 403.6 | AE49: 373.3 | AT49: 445.2851609 | AU49: 182.21 | AX49: 410.6908 | BC49: 2008-10-26 | BD49: 339.3524 | BE49: 340.0014513
A50: 2010-10-31 | B50: 44 | D50: 558.19 | E50: 693.93 | G50: 549.02 | H50: 637 | I50: 600.99 | J50: 432 | K50: 405.46 | L50: 374.49 | R50: 623.31 | T50: 475.4 | U50: 409.24 | V50: 494.84 | W50: 591 | X50: 393.86 | Y50: 456.15 | Z50: 502 | AA50: 331.55 | AB50: 323.3 | AC50: 399.46 | AD50: 400.61 | AE50: 384.47 | AT50: 445.5757145 | AU50: 183.17 | AX50: 411.0695 | BC50: 2008-11-02 | BD50: 333.731 | BE50: 345.0849777
A51: 2010-11-07 | B51: 45 | D51: 537.12 | E51: 696.67 | G51: 563.03 | H51: 644 | I51: 593 | J51: 432 | K51: 411.2 | L51: 374.79 | R51: 622.52 | T51: 482.32 | U51: 402.15 | V51: 493.06 | W51: 599 | X51: 397.27 | Y51: 456.02 | Z51: 512 | AA51: 333.35 | AB51: 323.66 | AC51: 410.02 | AD51: 411.58 | AE51: 389.81 | AT51: 452.2779984 | AU51: 183.39 | AX51: 416.9194 | BC51: 2008-11-09 | BD51: 339.8046
A52: 2010-11-14 | B52: 46 | D52: 529.52 | E52: 695.25 | G52: 563.03 | H52: 635 | I52: 612.38 | J52: 432 | K52: 407.66 | L52: 370.71 | R52: 619.97 | T52: 489 | U52: 414.71 | V52: 492.64 | W52: 603 | X52: 419.16 | Y52: 453.85 | Z52: 513 | AA52: 334.99 | AB52: 322.43 | AC52: 420.44 | AD52: 421.26 | AE52: 409.74 | AT52: 461.4327206 | AU52: 183.39 | AX52: 425.1025 | BC52: 2008-11-16 | BD52: 316.5439551
A53: 2010-11-21 | B53: 47 | D53: 509.25 | E53: 674.22 | G53: 562.23 | H53: 661 | I53: 603.12 | J53: 432 | K53: 408.66 | L53: 370.71 | R53: 604.33 | T53: 503.88 | U53: 432.71 | V53: 492.86 | W53: 605 | X53: 417.73 | Y53: 449.49 | Z53: 522 | AA53: 350.07 | AB53: 315.1 | AC53: 421.74 | AD53: 422.27 | AE53: 414.82 | AT53: 463.5298365 | AU53: 186.22 | AX53: 427.0636 | BC53: 2008-11-23 | BD53: 318.2046861
A54: 2010-11-28 | B54: 48 | D54: 500.83 | E54: 696.35 | G54: 570.71 | H54: 661 | I54: 654.99 | J54: 432 | K54: 413.36 | L54: 324.79 | R54: 615.73 | T54: 463.56 | U54: 422.49 | V54: 490.64 | W54: 606 | X54: 423.97 | Y54: 458.1 | Z54: 466 | AA54: 301.2 | AB54: 311.1 | AC54: 423.15 | AD54: 423.35 | AE54: 420.59 | AT54: 463.6629231 | AU54: 185.82 | AX54: 427.1262 | BC54: 2008-11-30 | BD54: 322.8340761
A55: 2010-12-05 | B55: 49 | D55: 491.47 | E55: 695.96 | G55: 543.26 | H55: 680 | I55: 649.06 | J55: 432 | K55: 413.82 | L55: 324.79 | R55: 608.2 | T55: 450.52 | U55: 416.81 | V55: 488.5 | W55: 607 | X55: 446.22 | Y55: 446.75 | Z55: 466 | AA55: 297.67 | AB55: 329.85 | AC55: 443.729737 | AD55: 443.98 | AE55: 440.47 | AT55: 474.3352805 | AU55: 193.16 | AX55: 437.3608 | BC55: 2008-12-07 | BD55: 322.1847241
A56: 2010-12-12 | B56: 50 | D56: 495.49 | E56: 696.79 | G56: 545.23 | H56: 694 | I56: 655.42 | J56: 432 | K56: 416.78 | L56: 324.79 | R56: 610.1 | T56: 443.61 | U56: 418.31 | V56: 490.99 | W56: 607 | X56: 443.66 | Y56: 451.12 | Z56: 504 | AA56: 407.41 | AB56: 328.99 | AC56: 449.95 | AD56: 450.22 | AE56: 446.47 | AT56: 479.7265279 | AU56: 178.58 | AX56: 440.1251 | BC56: 2008-12-14 | BD56: 325.61
A57: 2010-12-19 | B57: 51 | D57: 516.78 | E57: 668.5 | G57: 546.32 | H57: 698 | I57: 682.91 | J57: 432 | K57: 416.01 | L57: 324.79 | R57: 611.02 | T57: 432.67 | U57: 425.44 | V57: 492.43 | W57: 613 | X57: 432.02 | Y57: 445.1 | Z57: 514 | AA57: 413.61 | AB57: 341.49 | AC57: 452.09 | AD57: 454.63 | AE57: 419.06 | AT57: 481.2794024 | AU57: 208.74 | AX57: 445.44 | BC57: 2008-12-21 | BD57: 312.48
A58: 2010-12-26 | B58: 52 | D58: 563.19 | E58: 698.38 | G58: 546.32 | H58: 698 | I58: 654.48 | J58: 466 | K58: 413.18 | L58: 324.79 | R58: 628.12 | T58: 432.67 | U58: 429.35 | V58: 492.57 | W58: 613 | X58: 440.97 | Y58: 441.89 | Z58: 494 | AA58: 414.77 | AB58: 355.18 | AC58: 463.67 | AD58: 465.45 | AE58: 440.46 | AT58: 488.1936129 | AU58: 208.9 | AX58: 451.4669 | BC58: 2008-12-28 | BD58: 302.9924247
A59: 2011-01-02 | B59: 53 | D59: 509.55 | E59: 697.48 | G59: 546.32 | H59: 696 | I59: 667.42 | J59: 466 | K59: 412.57 | L59: 324.79 | R59: 615.21 | T59: 431.28 | U59: 435.81 | V59: 494.24 | W59: 612 | X59: 442.57 | Y59: 448.66 | Z59: 510 | AA59: 415.79 | AB59: 362.94 | AC59: 469.97 | AD59: 472.86 | AE59: 432.35 | AT59: 492.3191469 | AU59: 175.15 | AX59: 450.6108
A60: 2011-01-09 | B60: 1 | C60: 540.1677 | D60: 490.424 | E60: 693.84 | G60: 508.84 | H60: 693 | I60: 671.4617 | J60: 466 | K60: 407.83 | L60: 324.79 | R60: 568.1912 | T60: 434.97 | U60: 434.52 | V60: 493.86 | W60: 608 | X60: 447.06 | Y60: 454.32 | Z60: 510 | AA60: 422.2657 | AB60: 363.7404 | AC60: 461.1801 | AD60: 463.3954 | AE60: 432.3259 | AT60: 487.335571 | AU60: 175.9018 | AX60: 463.9158
A61: =A60+7 -> 2011-01-16 | B61: 2 | C61: 539.6922 | D61: 488.816 | E61: 668.5 | G61: 454.54 | H61: 681 | I61: 560.3576 | J61: 466 | K61: 400.76 | L61: 324.79 | R61: 548.0282 | T61: 433.55 | U61: 436.56 | V61: 478.46 | W61: 600 | X61: 440.41 | Y61: 447.39 | Z61: 519 | AA61: 426.0235 | AB61: 356.4512 | AC61: 461.5422 | AD61: 463.8605 | AE61: 431.346 | AT61: 484.6225927 | AU61: 176.0487 | AX61: 461.4178
A62: 2011-01-23 | B62: 3 | C62: 558.6461 | D62: 481.954 | E62: 634.89 | G62: 448.79 | H62: 656 | I62: 559.2851 | J62: 466 | K62: 454.57 | L62: 324.79 | R62: 533.7909 | T62: 428.31 | U62: 431.46 | V62: 470.09 | W62: 592 | X62: 440.17 | Y62: 447.13 | Z62: 507 | AA62: 425.796 | AB62: 363.6825 | AC62: 470.8184 | AD62: 473.2465 | AE62: 439.1922 | AT62: 487.1047281 | AU62: 190.044 | AX62: 464.7658
A63: 2011-01-30 | B63: 4 | C63: 569.6697 | D63: 478.318 | E63: 631.01 | G63: 447.13 | H63: 650 | I63: 566.5865 | J63: 466 | K63: 401.74 | L63: 324.79 | R63: 531.1208 | T63: 425.47 | U63: 423.3 | V63: 461.03 | W63: 588 | X63: 446.24 | Y63: 445.54 | Z63: 507 | AA63: 424.5654 | AB63: 387.4072 | AC63: 455.8769 | AD63: 457.8911 | AE63: 429.6415 | AT63: 478.0123856 | AU63: 185.3118 | AX63: 456.0013
A64: 2011-02-06 | B64: 5 | C64: 557.828 | D64: 476.02 | E64: 618.79 | G64: 448.53 | H64: 622 | I64: 563.0228 | J64: 470 | K64: 410.31 | L64: 324.79 | R64: 525.7921 | T64: 425.47 | U64: 429.42 | V64: 472.15 | W64: 584 | X64: 435.55 | Y64: 447.21 | Z64: 508 | AA64: 350.442 | AB64: 387.9748 | AC64: 458.837 | AD64: 460.8943 | AE64: 432.04 | AT64: 478.7763564 | AU64: 211.2435 | AX64: 458.6579
A65: 2011-02-13 | B65: 6 | C65: 581.2813 | D65: 472.558 | E65: 623.85 | G65: 448.53 | H65: 596 | I65: 575.3858 | J65: 470 | K65: 399.93 | L65: 324.79 | R65: 527.344 | T65: 425.23 | U65: 447.78 | V65: 473.9 | W65: 580 | X65: 442.58 | Y65: 457.45 | Z65: 503 | AA65: 355.4433 | AB65: 390.7238 | AC65: 462.4378 | AD65: 464.4063 | AE65: 436.7971 | AT65: 482.2101879 | AU65: 211.2988 | AX65: 461.8377
A66: 2011-02-20 | B66: 7 | C66: 573.9084 | D66: 471.43 | E66: 641.27 | G66: 459.26 | H66: 563 | I66: 575.4271 | J66: 470 | K66: 399.38 | L66: 324.79 | R66: 534.5297 | T66: 429.82 | U66: 444.72 | V66: 480.25 | W66: 581 | X66: 446.36 | Y66: 455.43 | Z66: 498 | AA66: 363.685 | AB66: 394.904 | AC66: 473.5467 | AD66: 476.1427 | AE66: 439.7332 | AT66: 488.765195 | AU66: 235.3709 | AX66: 469.7099
A67: 2011-02-27 | B67: 8 | C67: 570.2833 | D67: 490.484 | E67: 639.34 | G67: 459.26 | H67: 567 | I67: 584.1309 | J67: 458 | K67: 423.55 | L67: 324.79 | R67: 539.1231 | T67: 433.65 | U67: 445.74 | V67: 481.62 | W67: 581 | X67: 458.59 | Y67: 467.57 | Z67: 504 | AA67: 361.899 | AB67: 403.8168 | AC67: 476.1613 | AD67: 478.6847 | AE67: 443.2934 | AT67: 491.9208809 | AU67: 354.8964 | AX67: 481.6166
A68: 2011-03-06 | B68: 9 | C68: 549.2535 | D68: 477.824 | E68: 652.48 | G68: 459.26 | H68: 563 | I68: 599.3977 | J68: 458 | K68: 409.18 | L68: 324.79 | R68: 538.6845 | T68: 446.54 | U68: 457.98 | V68: 482.73 | W68: 583 | X68: 460.25 | Y68: 476.09 | Z68: 502 | AA68: 363.071 | AB68: 408.5206 | AC68: 484.9345 | AD68: 486.1453 | AE68: 469.163 | AT68: 498.4118512 | AU68: 237.6934 | AX68: 478.8058
A69: 2011-03-13 | B69: 10 | C69: 563.4267 | D69: 477.044 | E69: 654.35 | G69: 463.85 | H69: 556 | I69: 586.7473 | J69: 458 | K69: 417.34 | L69: 324.79 | R69: 540.5812 | T69: 446.54 | U69: 449.82 | V69: 482.15 | W69: 590 | X69: 481.81 | Y69: 487.4 | Z69: 511 | AA69: 390.2546 | AB69: 421.6956 | AC69: 498.2314 | AD69: 498.9281 | AE69: 489.1566 | AT69: 508.8336423 | AU69: 234.8849 | AX69: 488.2327
A70: 2011-03-20 | B70: 11 | C70: 573.9084 | D70: 485.682 | E70: 653.78 | G70: 468.45 | H70: 543 | I70: 582.5856 | J70: 453 | K70: 388.86 | L70: 324.79 | R70: 543.8467 | T70: 470.03 | U70: 450.84 | V70: 481.17 | W70: 597 | X70: 499.92 | Y70: 505.08 | Z70: 506 | AA70: 405.6667 | AB70: 428.4638 | AC70: 517.5691 | AD70: 520.3189 | AE70: 481.7529 | AT70: 522.8357309 | AU70: 233.3118 | AX70: 501.0635
A71: 2011-03-27 | B71: 12 | C71: 556.0589 | D71: 482.564 | E71: 651.52 | G71: 468.45 | H71: 543 | I71: 591.4744 | J71: 448 | K71: 419.75 | L71: 324.79 | R71: 541.0607 | T71: 479.56 | U71: 465.12 | V71: 477.63 | W71: 605 | X71: 508.05 | Y71: 506.05 | Z71: 522 | AA71: 389.003 | AB71: 429.6166 | AC71: 526.4678 | AD71: 528.2436 | AE71: 503.3372 | AT71: 531.0308646 | AU71: 237.841 | AX71: 508.983
A72: 2011-04-03 | B72: 13 | C72: 573.9084 | D72: 487.256 | E72: 650.99 | G72: 465.52 | H72: 533 | I72: 611.7034 | J72: 444 | K72: 415.59 | L72: 324.79 | R72: 542.3395 | T72: 490.91 | U72: 481.44 | V72: 475.94 | W72: 608 | X72: 524.63 | Y72: 498.4 | Z72: 517 | AA72: 415.3529 | AB72: 430.0878 | AC72: 530.6163 | AD72: 531.2099 | AE72: 522.8846 | AT72: 536.2978365 | AU72: 241.6297 | AX72: 514.1388
A73: 2011-04-10 | B73: 14 | C73: 556.0589 | D73: 526.541 | E73: 634.86 | G73: 519.16 | H73: 533 | I73: 630.6465 | J73: 444 | K73: 385.91 | L73: 552.91 | R73: 559.0942 | T73: 519.46 | U73: 492.66 | V73: 475.55 | W73: 614 | X73: 547.09 | Y73: 526.04 | Z73: 520 | AA73: 413.0535 | AB73: 422.4289 | AC73: 550.9846 | AD73: 552.8891 | AE73: 526.1779 | AT73: 552.0320121 | AU73: 242.8363 | AX73: 528.7805
A74: 2011-04-17 | B74: 15 | C74: 535.8319 | D74: 606.792 | E74: 634.86 | G74: 556.14 | H74: 526 | I74: 628.7098 | J74: 444 | K74: 417.19 | L74: 514.1 | R74: 590.5692 | T74: 519.91 | U74: 525.3 | V74: 475.55 | W74: 626 | X74: 564.2 | Y74: 550.07 | Z74: 507 | AA74: 420.2369 | AB74: 433.1476 | AC74: 593.5827 | AD74: 597.0385 | AE74: 548.5701 | AT74: 581.6538241 | AU74: 243.5359 | AX74: 556.2274
A75: 2011-04-24 | B75: 16 | C75: 558.4518 | D75: 636.824 | E75: 651.24 | G75: 572.29 | H75: 539 | I75: 640.6135 | J75: 456 | K75: 400.58 | L75: 515.99 | R75: 610.9568 | T75: 541.18 | U75: 525.3 | V75: 482.75 | W75: 629 | X75: 582.74 | Y75: 550.32 | Z75: 527 | AA75: 424.7784 | AB75: 434.3248 | AC75: 593.7474 | AD75: 596.2009 | AE75: 561.7903 | AT75: 584.8004299 | AU75: 244.5671 | AX75: 559.2149
A76: 2011-05-01 | B76: 17 | C76: 532.3806 | D76: 600.078 | E76: 624.7 | G76: 555.14 | H76: 537 | I76: 599.3438 | J76: 444 | K76: 423.15 | L76: 515.99 | R76: 584.5196 | T76: 540.68 | U76: 519.18 | V76: 472.08 | W76: 633 | X76: 576.1 | Y76: 542.91 | Z76: 509 | AA76: 402.2668 | AB76: 461.0939 | AC76: 588.5925 | AD76: 589.3514 | AE76: 578.7077 | AT76: 581.0210083 | AU76: 247.5776 | AX76: 555.9461
A77: 2011-05-08 | B77: 18 | C77: 532.3806 | D77: 578.558 | E77: 620.59 | G77: 513.17 | H77: 537 | I77: 640.6582 | J77: 443 | K77: 406.17 | L77: 515.99 | R77: 568.3151 | T77: 540.68 | U77: 520.2 | V77: 470.92 | W77: 633 | X77: 593.09 | Y77: 556.11 | Z77: 502 | AA77: 402.0865 | AB77: 481.1627 | AC77: 590.3628 | AD77: 589.3309 | AE77: 603.8035 | AT77: 583.9718852 | AU77: 243.5833 | AX77: 558.3747
A78: 2011-05-15 | B78: 19 | C78: 531.8489 | D78: 563.378 | E78: 622.27 | G78: 512.01 | H78: 524 | I78: 640.5654 | J78: 407 | K78: 419.63 | L78: 515.99 | R78: 561.3147 | T78: 537.27 | U78: 517.14 | V78: 471.11 | W78: 631 | X78: 585.93 | Y78: 574.28 | Z78: 509 | AA78: 413.8052 | AB78: 457.7573 | AC78: 600.9339 | AD78: 601.595 | AE78: 592.323 | AT78: 588.7034112 | AU78: 245.9584 | AX78: 562.929
A79: 2011-05-22 | B79: 20 | C79: 532.3141 | D79: 552.994 | E79: 633.15 | G79: 501.03 | H79: 531 | I79: 640.5196 | J79: 407 | K79: 401.86 | L79: 460.89 | R79: 559.5844 | T79: 532.19 | U79: 525.3 | V79: 471.68 | W79: 624 | X79: 570.84 | Y79: 547.35 | Z79: 493 | AA79: 436.9781 | AB79: 484.6192 | AC79: 634.4317 | AD79: 637.5867 | AE79: 593.3365 | AT79: 603.9348788 | AU79: 249.6796 | AX79: 577.2949
A80: 2011-05-29 | B80: 21 | C80: 532.3806 | D80: 544.666 | E80: 630.76 | G80: 501.59 | H80: 528 | I80: 618.9423 | J80: 403 | K80: 412.66 | L80: 460.89 | R80: 555.8846 | T80: 519.45 | U80: 516.12 | V80: 472.26 | W80: 624 | X80: 537.7 | Y80: 551.34 | Z80: 502 | AA80: 391.0257 | AB80: 487.6013 | AC80: 639.6778 | AD80: 622.5109007 | AE80: 598.2427 | AT80: 603.1895225 | AU80: 247.8944 | AX80: 576.4713
A81: 2011-06-05 | B81: 22 | C81: 532.3244 | D81: 544.486 | E81: 634.56 | G81: 499.65 | H81: 517 | I81: 632.0506 | J81: 403 | K81: 410.3 | L81: 460.89 | R81: 556.7382 | T81: 512.03 | U81: 519.18 | V81: 473.22 | W81: 612 | X81: 519.01 | Y81: 556.07 | Z81: 505 | AA81: 405.8981 | AB81: 485.6642 | AC81: 559.8794 | AD81: 562.9865 | AE81: 519.4089 | AT81: 556.7839196 | AU81: 242.1031 | AX81: 533.1199
A82: 2011-06-12 | B82: 23 | C82: 532.3244 | D82: 549.2 | E82: 634.37 | G82: 514.06 | H82: 513 | I82: 637.9263 | J82: 403 | K82: 388.25 | L82: 460.89 | R82: 560.7125 | T82: 510.33 | U82: 514.08 | V82: 477.67 | W82: 612 | X82: 494.07 | Y82: 550.32 | Z82: 505 | AA82: 397.6254 | AB82: 467.674 | AC82: 533.8185 | AD82: 538.0337 | AE82: 478.9151 | AT82: 540.0449851 | AU82: 240.7716 | AX82: 517.5396
A83: 2011-06-19 | B83: 24 | C83: 532.309 | D83: 547.218 | E83: 630.32 | G83: 511.91 | H83: 502 | I83: 628.4689 | J83: 403 | K83: 402.07 | L83: 460.89 | R83: 558.1898 | T83: 489.48 | U83: 487.56 | V83: 478.44 | W83: 609 | X83: 478.6 | Y83: 529.8 | Z83: 517 | AA83: 400.4868 | AB83: 477.1918 | AC83: 513.279 | AD83: 516.3042 | AE83: 473.8744 | AT83: 524.801452 | AU83: 249.4401 | AX83: 504.0943
A84: 2011-06-26 | B84: 25 | C84: 532.3346 | D84: 567.674 | E84: 632.33 | G84: 511.64 | H84: 496 | I84: 611.3272 | J84: 403 | K84: 407.67 | L84: 460.89 | R84: 565.3057 | T84: 472.88 | U84: 489.6 | V84: 479.02 | W84: 604 | X84: 451.68 | Y84: 530 | Z84: 506 | AA84: 369.1546 | AB84: 449.6832 | AC84: 485.2118 | AD84: 488.4193 | AE84: 443.4333 | AT84: 505.9319552 | AU84: 247.2288 | AX84: 486.4775
A85: 2011-07-03 | B85: 26 | C85: 532.3346 | D85: 574.97 | E85: 641.95 | G85: 511.64 | H85: 493 | I85: 622.1397 | J85: 403 | K85: 407.41 | L85: 460.89 | R85: 571.0586 | T85: 450.86 | U85: 472.26 | V85: 490.64 | W85: 597 | X85: 425.34 | Y85: 522.47 | Z85: 503 | AA85: 393.9904 | AB85: 454.9359 | AC85: 466.1946 | AD85: 469.6888 | AE85: 420.6816 | AT85: 491.0561163 | AU85: 256.6772 | AX85: 473.4308
A86: 2011-07-10 | B86: 27 | C86: 532.3704 | D86: 572.39 | E86: 641.16 | G86: 511.64 | H86: 496 | I86: 595.9991 | J86: 404.6 | K86: 410.78 | L86: 460.89 | R86: 570.0383 | T86: 450.86 | U86: 462.06 | V86: 495.62 | W86: 595 | X86: 435.43 | Y86: 512.02 | Z86: 507 | AA86: 388.6905 | AB86: 442.8014 | AC86: 472.9492 | AD86: 475.8651 | AE86: 434.9683 | AT86: 494.3828227 | AU86: 259.9183 | AX86: 476.7511
A87: 2011-07-17 | B87: 28 | C87: 532.3806 | D87: 570.87 | E87: 642.75 | G87: 511.64 | H87: 498 | I87: 627.1398 | J87: 404.6 | K87: 398.6 | L87: 460.89 | R87: 570.1571 | T87: 436.68 | U87: 446.76 | V87: 498.18 | W87: 592 | X87: 445.54 | Y87: 509.26 | Z87: 477 | AA87: 418.1739 | AB87: 437.4395 | AC87: 477.4665 | AD87: 479.7564 | AE87: 447.6404 | AT87: 495.6022567 | AU87: 256.8937 | AX87: 477.6514
A88: 2011-07-24 | B88: 29 | C88: 532.3653 | D88: 629.834 | E88: 646.3 | G88: 511.64 | H88: 493 | I88: 561.5237 | J88: 404.6 | K88: 408.33 | L88: 460.89 | R88: 590.039 | T88: 436.28 | U88: 421.26 | V88: 499.93 | W88: 592 | X88: 447.03 | Y88: 518.91 | Z88: 483 | AA88: 391.6435 | AB88: 438.8304 | AC88: 470.7289 | AD88: 473.1651 | AE88: 438.9971 | AT88: 490.6609574 | AU88: 257.372 | AX88: 473.1176
A89: 2011-07-31 | B89: 30 | C89: 532.3653 | D89: 592.482 | E89: 664.55 | G89: 512.71 | H89: 489 | I89: 599.202 | J89: 404.6 | K89: 403.73 | L89: 438.44 | R89: 584.7811 | T89: 442.49 | U89: 446.76 | V89: 505.7 | W89: 588 | X89: 440.21 | Y89: 522.38 | Z89: 509 | AA89: 376.9519 | AB89: 441.2577 | AC89: 464.9195 | AD89: 466.7994 | AE89: 440.4338 | AT89: 488.7629442 | AU89: 235.9134 | AX89: 469.7487
A90: 2011-08-07 | B90: 31 | C90: 532.3806 | D90: 590.658 | E90: 659.54 | G90: 512.71 | H90: 487 | I90: 621.9275 | J90: 404.6 | K90: 371.7 | L90: 438.44 | R90: 582.2754 | T90: 442.49 | U90: 451.86 | V90: 511.28 | W90: 588 | X90: 439.95 | Y90: 512.37 | Z90: 494 | AA90: 374.9475 | AB90: 436.3208 | AC90: 471.7069 | AD90: 474.2072 | AE90: 439.1402 | AT90: 492.5137009 | AU90: 234.6947 | AX90: 473.1257
A91: 2011-08-14 | B91: 32 | C91: 532.3448 | D91: 618.5 | E91: 688.99 | G91: 512.71 | H91: 481 | I91: 616.4183 | J91: 404.6 | K91: 411.84 | L91: 460.89 | R91: 601.8916 | T91: 443.13 | U91: 451.86 | V91: 519.89 | W91: 587 | X91: 437.55 | Y91: 478.7 | Z91: 495 | AA91: 367.1104 | AB91: 432.2498 | AC91: 452.7536 | AD91: 454.5922 | AE91: 428.8049 | AT91: 481.4921305 | AU91: 245.9913 | AX91: 463.7825
A92: 2011-08-21 | B92: 33 | C92: 532.1965 | D92: 620.122 | E92: 679.28 | G92: 512.71 | H92: 467 | I92: 624.0958 | J92: 404.6 | K92: 408.42 | L92: 457.82 | R92: 598.8055 | T92: 437.01 | U92: 457.98 | V92: 518.49 | W92: 586 | X92: 428.19 | Y92: 492.78 | Z92: 500 | AA92: 367.3672 | AB92: 430.4726 | AC92: 452.0008 | AD92: 454.362 | AE92: 421.2457 | AT92: 480.7831728 | AU92: 246.1198 | AX92: 463.1365
A93: 2011-08-28 | B93: 34 | C93: 532.2835 | D93: 615.85 | E93: 684.15 | G93: 515.62 | H93: 469 | I93: 634.5064 | J93: 404.6 | K93: 395.43 | L93: 457.82 | R93: 599.6964 | T93: 449.07 | U93: 464.1 | V93: 531.72 | W93: 591 | X93: 428.17 | Y93: 496.11 | Z93: 479 | AA93: 354.9719 | AB93: 420.011 | AC93: 450.1699 | AD93: 452.4061 | AE93: 421.0428 | AT93: 481.6084441 | AU93: 257.7996 | AX93: 464.778
A94: 2011-09-04 | B94: 35 | C94: 532.4369 | D94: 636.464 | E94: 689.69 | G94: 515.62 | H94: 476 | I94: 637.4631 | J94: 412 | K94: 406.2 | L94: 457.82 | R94: 608.8934 | T94: 450.49 | U94: 466.14 | V94: 549.16 | W94: 596 | X94: 433.11 | Y94: 502.11 | Z94: 529 | AA94: 355.2057 | AB94: 407.2664 | AC94: 438.2084 | AD94: 440.0421 | AE94: 414.3239 | AT94: 478.361453 | AU94: 221.4854 | AX94: 459.0444
A95: 2011-09-11 | B95: 36 | C95: 532.4522 | D95: 639.964 | E95: 726.1 | G95: 515.62 | H95: 476 | I95: 645.6196 | J95: 412 | K95: 385.95 | L95: 442.52 | R95: 622.8133 | T95: 457.23 | U95: 469.2 | V95: 549.68 | W95: 600 | X95: 420.94 | Y95: 509.3 | Z95: 518 | AA95: 363.2936 | AB95: 395.7162 | AC95: 441.1538 | AD95: 443.164 | AE95: 414.9699 | AT95: 479.8169021 | AU95: 226.5951 | AX95: 460.7746
A96: 2011-09-18 | B96: 37 | C96: 531.7159 | D96: 641.634 | E96: 723.75 | G96: 515.62 | H96: 474 | I96: 637.2986 | J96: 412 | K96: 404.59 | L96: 433.34 | R96: 622.5038 | T96: 463.89 | U96: 466.14 | V96: 543.38 | W96: 600 | X96: 417.94 | Y96: 512.84 | Z96: 520 | AA96: 400.5813 | AB96: 377.918 | AC96: 434.6836 | AD96: 436.4738 | AE96: 411.3662 | AT96: 475.5798518 | AU96: 245.4615 | AX96: 458.275
A97: 2011-09-25 | B97: 38 | C97: 531.4552 | D97: 644.362 | E97: 721.89 | G97: 515.09 | H97: 493 | I97: 617.8305 | J97: 412 | K97: 387.18 | L97: 433.34 | R97: 622.6156 | T97: 474.4 | U97: 474.3 | V97: 542.96 | W97: 611 | X97: 411.07 | Y97: 515.27 | Z97: 516 | AA97: 377.0652 | AB97: 356.2554 | AC97: 434.1669 | AD97: 436.0699 | AE97: 409.3804 | AT97: 477.1776697 | AU97: 218.1099 | AX97: 457.6958
A98: 2011-10-02 | B98: 39 | C98: 525.8513 | D98: 627.57 | E98: 732.05 | G98: 514.83 | H98: 506 | I98: 625.1064 | J98: 412 | K98: 382.42 | L98: 433.34 | R98: 620.6761 | T98: 491.2 | U98: 468.18 | V98: 548.37 | W98: 613 | X98: 409.62 | Y98: 510.55 | Z98: 519 | AA98: 377.8912 | AB98: 352.4998 | AC98: 431.8268 | AD98: 433.5149 | AE98: 409.8383 | AT98: 475.9912121 | AU98: 216.5895 | AX98: 456.4842
A99: 2011-10-09 | B99: 40 | C99: 527.2267 | D99: 616.972 | E99: 759.29 | G99: 516.05 | H99: 517 | I99: 690.8883 | J99: 448 | K99: 424.16 | L99: 433.34 | R99: 630.3032 | T99: 486.39 | U99: 478.38 | V99: 551.98 | W99: 619 | X99: 411.06 | Y99: 524.47 | Z99: 527 | AA99: 353.449 | AB99: 342.523 | AC99: 430.7666 | AD99: 432.2468 | AE99: 411.486 | AT99: 477.9204867 | AU99: 224.3397 | AX99: 458.8512
A100: 2011-10-16 | B100: 41 | C100: 526.7205 | D100: 636.464 | E100: 764.95 | G100: 516.05 | H100: 524 | I100: 640.1794 | J100: 448 | K100: 415.17 | L100: 417.01 | R100: 638.3054 | T100: 491.1 | U100: 464.1 | V100: 552.58 | W100: 625 | X100: 414.53 | Y100: 527.25 | Z100: 525 | AA100: 333.4614 | AB100: 332.7408 | AC100: 435.1316 | AD100: 436.7618 | AE100: 413.8975 | AT100: 480.6700271 | AU100: 227.2863 | AX100: 461.6156
A101: 2011-10-23 | B101: 42 | C101: 527.4057 | D101: 596.036 | E101: 783.77 | G101: 516.05 | H101: 541 | I101: 704.8313 | J101: 472 | K101: 386.82 | L101: 395.58 | R101: 633.8895 | T101: 490.91 | U101: 466.14 | V101: 563.25 | W101: 630 | X101: 430.14 | Y101: 525.81 | Z101: 527 | AA101: 360.0443 | AB101: 333.865 | AC101: 445.6913 | AD101: 446.6414 | AE101: 433.3167 | AT101: 489.4559664 | AU101: 226.52 | AX101: 469.6832
A102: 2011-10-30 | B102: 43 | C102: 527.7176 | D102: 537.188 | E102: 800.88 | G102: 515.52 | H102: 578 | I102: 599.127 | J102: 472 | K102: 397.74 | L102: 374.15 | R102: 621.1463 | T102: 507.71 | U102: 478.38 | V102: 568.36 | W102: 631 | X102: 435.25 | Y102: 524.19 | Z102: 487 | AA102: 324.4744 | AB102: 332.1272 | AC102: 445.1792 | AD102: 445.9547 | AE102: 435.0777 | AT102: 490.4009533 | AU102: 225.9922 | AX102: 470.5174
A103: 2011-11-06 | B103: 44 | C103: 527.7176 | D103: 537.188 | E103: 800.83 | G103: 588.54 | H103: 593 | I103: 663.2259 | J103: 472 | K103: 381.13 | L103: 374.15 | R103: 634.9799 | T103: 511.6 | U103: 485.52 | V103: 578.9 | W103: 633 | X103: 439.51 | Y103: 514.34 | Z103: 518 | AA103: 368.698 | AB103: 331.6065 | AC103: 453.9674 | AD103: 455.1914 | AE103: 438.0249 | AT103: 497.2131 | AU103: 225.5644 | AX103: 476.7851
A104: 2011-11-13 | B104: 45 | C104: 526.7563 | D104: 538.124 | E104: 783.98 | G104: 573.93 | H104: 615 | I104: 663.6062 | J104: 480 | K104: 403.95 | L104: 374.15 | R104: 627.3962 | T104: 511.6 | U104: 488.58 | V104: 588.03 | W104: 634 | X104: 440.07 | Y104: 525.26 | Z104: 525 | AA104: 367.2883 | AB104: 325.1209 | AC104: 461.1175 | AD104: 462.4916 | AE104: 443.2191 | AT104: 502.2727328 | AU104: 222.8802 | AX104: 481.2624
A105: 2011-11-20 | B105: 46 | C105: 527.2523 | D105: 530.18 | E105: 817.79 | G105: 572.38 | H105: 613 | I105: 683.4224 | J105: 480 | K105: 388.17 | L105: 374.15 | R105: 636.5804 | T105: 505.62 | U105: 487.56 | V105: 591.52 | W105: 634 | X105: 439.54 | Y105: 518.58 | Z105: 534 | AA105: 364.5045 | AB105: 332.8221 | AC105: 475.7462 | AD105: 477.9804 | AE105: 446.6447 | AT105: 510.1632015 | AU105: 226.0352 | AX105: 488.7968
A106: 2011-11-27 | B106: 47 | C106: 527.8249 | D106: 529.816 | E106: 820.4 | G106: 572.38 | H106: 620 | I106: 722.5258 | J106: 480 | K106: 376.29 | L106: 415.99 | R106: 637.7001 | T106: 500.04 | U106: 470.22 | V106: 589.66 | W106: 637 | X106: 448.31 | Y106: 521.21 | Z106: 527 | AA106: 346.2498 | AB106: 332.505 | AC106: 496.0341 | AD106: 499.2562 | AE106: 454.066 | AT106: 520.9724027 | AU106: 228.8481 | AX106: 499.0047
A107: 2011-12-04 | B107: 48 | C107: 527.8249 | D107: 535.64 | E107: 813.42 | G107: 572.52 | H107: 633 | I107: 754.4176 | J107: 485 | K107: 400 | L107: 415.99 | R107: 637.794 | T107: 502.38 | U107: 467.16 | V107: 593.42 | W107: 641 | X107: 456.03 | Y107: 505.41 | Z107: 524 | AA107: 430.8109 | AB107: 350.282 | AC107: 506.0735 | AD107: 509.6952 | AE107: 458.9005 | AT107: 527.7116526 | AU107: 228.9951 | AX107: 505.2482
A108: 2011-12-11 | B108: 49 | C108: 527.6255 | D108: 537.548 | E108: 810.94 | G108: 596.51 | H108: 659 | I108: 761.7887 | J108: 485 | K108: 387.08 | L108: 415.99 | R108: 642.1708 | T108: 466.81 | U108: 484.5 | V108: 593.42 | W108: 641 | X108: 458.32 | Y108: 503.53 | Z108: 531 | AA108: 443.5116 | AB108: 359.4596 | AC108: 528.3992 | AD108: 533.3623 | AE108: 463.7542 | AT108: 541.1021501 | AU108: 233.4514 | AX108: 517.9668
A109: 2011-12-18 | B109: 50 | C109: 527.2932 | D109: 537.548 | E109: 807.57 | G109: 604.06 | H109: 654 | I109: 761.7671 | J109: 485 | K109: 407.02 | L109: 740.48 | R109: 643.766 | T109: 437.48 | U109: 475.32 | V109: 595.94 | W109: 645 | X109: 463.95 | Y109: 495.63 | Z109: 532 | AA109: 448.3662 | AB109: 363.6183 | AC109: 544.8955 | AD109: 551.5292 | AE109: 458.4897 | AT109: 550.3945339 | AU109: 226.1541 | AX109: 526.0117
A110: 2011-12-25 | B110: 51 | C110: 527.917 | D110: 549.034 | E110: 819.45 | G110: 604.06 | H110: 648 | I110: 715.8249 | J110: 485 | K110: 404.4 | L110: 740.48 | R110: 651.4829 | T110: 437.48 | U110: 480.42 | V110: 602.01 | W110: 649 | X110: 470.61 | Y110: 508.85 | Z110: 545 | AA110: 455.2854 | AB110: 378.9863 | AC110: 535.471 | AD110: 541.1455 | AE110: 461.5596 | AT110: 548.078762 | AU110: 233.0486 | AX110: 524.3885
A111: 2012-01-01 | B111: 52 | C111: 528.1368 | D111: 529.966 | E111: 819.45 | G111: 604.06 | H111: 637 | I111: 721.6742 | J111: 485 | K111: 412.81 | L111: 740.48 | R111: 645.3799 | T111: 440.14 | U111: 491.64 | V111: 602.01 | W111: 649 | X111: 476.54 | Y111: 495.21 | Z111: 542 | AA111: 457.8131 | AB111: 394.16 | AC111: 543.7663 | AD111: 549.1653 | AE111: 473.4423 | AT111: 553.6665162 | AU111: 232.6562 | AX111: 529.5265
A114: 2012-01-08 | B114: 1 | C114: 528.735 | D114: 515.964 | E114: 803.68 | G114: 0 | H114: 600.37 | I114: 603 | J114: 724.9764 | K114: 480 | L114: 402.8 | R114: 740.48 | S114: 0 | T114: 0 | U114: 0 | V114: 0 | W114: 633.9356 | X114: 247.11 | Y114: 452.95 | Z114: 518.16 | AA114: 556.21 | AB114: 642 | AC114: 478.14 | AD114: 499.75 | AE114: 518 | AT114: 452.5634 | AU114: 402.5084 | AX114: 540.2441 | BC114: Heavy lambs
A115: =A114+7 -> 2012-01-15 | B115: 2 | C115: 527.9937 | D115: 491.676 | E115: 762.49 | G115: 0 | H115: 596.13 | I115: 580 | J115: 728.1788 | K115: 480 | L115: 405.52 | R115: 740.48 | S115: 0 | T115: 0 | U115: 0 | V115: 0 | W115: 610.5162 | X115: 308.04 | Y115: 448.63 | Z115: 518.16 | AA115: 519.18 | AB115: 641 | AC115: 477.67 | AD115: 487.08 | AE115: 525 | AT115: 409.645 | AU115: 385.7005 | AX115: 531.2562 | BC115: EE | BD115: 0.12
A116: 2012-01-22 | B116: 3 | C116: 528.1368 | D116: 471.732 | E116: 715.61 | G116: 0 | H116: 606.24 | I116: 553 | J116: 589.2085 | K116: 480 | L116: 403.31 | R116: 740.48 | S116: 0 | T116: 0 | U116: 0 | V116: 0 | W116: 588.6976 | X116: 238.68 | Y116: 440.73 | Z116: 507.96 | AA116: 490.23 | AB116: 637 | AC116: 477.67 | AD116: 477.28 | AE116: 520 | AT116: 406.2863 | AU116: 399.8445 | AX116: 523.4789 | BC116: B | BD116: 0.53
A117: 2012-01-29 | B117: 4 | C117: 528.1624 | D117: 462.1 | E117: 695.76 | G117: 0 | H117: 604.63 | I117: 513 | J117: 574.3845 | K117: 480 | L117: 410.88 | R117: 436.89 | S117: 0 | T117: 0 | U117: 0 | V117: 0 | W117: 576.6501 | X117: 242.12 | Y117: 439.26 | Z117: 496.74 | AA117: 489.32 | AB117: 636 | AC117: 493.91 | AD117: 487.22 | AE117: 525 | AT117: 414.335 | AU117: 403.767 | AX117: 522.2074 | BC117: G | BD117: 6.67
A118: 2012-02-05 | B118: 5 | C118: 528.2033 | D118: 466.284 | E118: 697.78 | G118: 0 | H118: 604.5 | I118: 492 | J118: 566.253 | K118: 456 | L118: 387.09 | R118: 515.47 | S118: 0 | T118: 0 | U118: 0 | V118: 0 | W118: 576.9946 | X118: 231.69 | Y118: 439.26 | Z118: 496.74 | AA118: 489.18 | AB118: 636 | AC118: 493.91 | AD118: 471.79 | AE118: 522 | AT118: 449.5905 | AU118: 402.1888 | AX118: 526.3426 | BC118: SP | BD118: 4.64
A119: 2012-02-12 | B119: 6 | C119: 528.3362 | D119: 485.224 | E119: 704.1 | G119: 0 | H119: 604.5 | I119: 455 | J119: 634.7326 | K119: 456 | L119: 408.832 | R119: 515.47 | S119: 0 | T119: 0 | U119: 0 | V119: 0 | W119: 585.2754 | X119: 257.04 | Y119: 438.435 | Z119: 506.94 | AA119: 489.21 | AB119: 637 | AC119: 486.53 | AD119: 487.1 | AE119: 524 | AT119: 445.8633 | AU119: 403.0915 | AX119: 525.3565 | BC119: FR | BD119: 17.89
A120: 2012-02-19 | B120: 7 | C120: 528.4078 | D120: 492.19 | E120: 698.36 | G120: 0 | H120: 604.5 | I120: 463 | J120: 573.709 | K120: 456 | L120: 381.89 | R120: 459.34 | S120: 0 | T120: 0 | U120: 0 | V120: 0 | W120: 584.9637 | X120: 228.48 | Y120: 440.73 | Z120: 486.54 | AA120: 488.96 | AB120: 633 | AC120: 486.1 | AD120: 474.58 | AE120: 533 | AT120: 370.5672 | AU120: 407.9412 | AX120: 526.783 | BC120: IR | BD120: 8.42
A121: 2012-02-26 | B121: 8 | C121: 528.4538 | D121: 491.15 | E121: 696.13 | G121: 0 | H121: 604.63 | I121: 443 | J121: 594.6507 | K121: 456 | L121: 426.99 | R121: 459.34 | S121: 0 | T121: 0 | U121: 0 | V121: 0 | W121: 584.1032 | X121: 216.24 | Y121: 438.85 | Z121: 494.7 | AA121: 488.84 | AB121: 630 | AC121: 481.29 | AD121: 495.01 | AE121: 523 | AT121: 431.4957 | AU121: 419.8381 | AX121: 520.9214 | BC121: NL | BD121: 2.32
A122: 2012-03-04 | B122: 9 | C122: 537.56 | D122: 485.07 | E122: 701.2 | G122: 0 | H122: 604.23 | I122: 432 | J122: 597.65 | K122: 456 | L122: 407.13 | R122: 459.34 | S122: 0 | T122: 0 | U122: 0 | V122: 0 | W122: 584.02 | X122: 238.53 | Y122: 441.92 | Z122: 516.12 | AA122: 487.37 | AB122: 628 | AC122: 481.98 | AD122: 507.1 | AE122: 529 | AT122: 403.93 | AU122: 417.83 | AX122: 520.67 | BC122: A | BD122: 1.28
A123: 2012-03-11 | B123: 10 | C123: 560.09 | D123: 489.44 | E123: 696.28 | G123: 0 | H123: 604.88 | I123: 446 | J123: 586.83 | K123: 480 | L123: 408.35 | R123: 459.34 | S123: 0 | T123: 0 | U123: 0 | V123: 0 | W123: 586.62 | X123: 223.92 | Y123: 460.53 | Z123: 527.34 | AA123: 482.77 | AB123: 625 | AC123: 482.49 | AD123: 526.73 | AE123: 527 | AT123: 411.54 | AU123: 415.01 | AX123: 525.55 | BC123: PL | BD123: 0.17
A124: 2012-03-18 | B124: 11 | C124: 563.58 | D124: 489.12 | E124: 698.72 | G124: 0 | H124: 604.75 | I124: 433 | J124: 587.3 | K124: 456 | L124: 403.85 | R124: 555.26 | S124: 0 | T124: 0 | U124: 0 | V124: 0 | W124: 586.15 | X124: 209.48 | Y124: 509.09 | Z124: 547.74 | AA124: 495.15 | AB124: 623 | AC124: 486.39 | AD124: 560.84 | AE124: 521 | AT124: 405.55 | AU124: 457.53 | AX124: 530.19 | BC124: SW | BD124: 0.94
A125: 2012-03-25 | B125: 12 | C125: 562.6 | D125: 489.12 | E125: 684.55 | G125: 0 | H125: 606.09 | I125: 447 | J125: 607.18 | K125: 456 | L125: 410.6 | R125: 583.79 | S125: 0 | T125: 0 | U125: 0 | V125: 0 | W125: 581.63 | X125: 264.59 | Y125: 509.09 | Z125: 574.26 | AA125: 494.46 | AB125: 623 | AC125: 488.57 | AD125: 552.71 | AE125: 541 | AT125: 426.45 | AU125: 460.39 | AX125: 547.2 | BC125: UK | BD125: 49.51
A126: 2012-04-01 | B126: 13 | C126: 564.2 | D126: 515.21 | E126: 657.08 | G126: 0 | H126: 607.24 | I126: 461 | J126: 623.78 | K126: 456 | L126: 417.24 | R126: 542 | S126: 0 | T126: 0 | U126: 0 | V126: 0 | W126: 580.5 | X126: 335 | Y126: 558.86 | Z126: 576.3 | AA126: 494.49 | AB126: 628 | AC126: 509.76 | AD126: 579.37 | AE126: 544 | AT126: 414.02 | AU126: 472.85 | AX126: 560.85 | BC126: GB | BD126: 45.98
A127: 2012-04-08 | B127: 14 | C127: 565.15 | D127: 530.39 | E127: 701.55 | G127: 0 | H127: 607.24 | I127: 466 | J127: 620.76 | K127: 456 | L127: 435.3 | R127: 644.44 | S127: 0 | T127: 0 | U127: 0 | V127: 0 | W127: 601.78 | X127: 298.73 | Y127: 590.06 | Z127: 572.22 | AA127: 501.55 | AB127: 630 | AC127: 532.72 | AD127: 572.23 | AE127: 540 | AT127: 416.89 | AU127: 483.51 | AX127: 561.54 | BC127: NI | BD127: 3.53
A128: 2012-04-15 | B128: 15 | C128: 563.13 | D128: 536.63 | E128: 690.63 | G128: 0 | H128: 607.24 | I128: 469 | J128: 587.31 | K128: 444 | L128: 413.25 | R128: 644.44 | S128: 0 | T128: 0 | U128: 0 | V128: 0 | W128: 598.76 | X128: 294.18 | Y128: 590.06 | Z128: 565.08 | AA128: 500.18 | AB128: 632 | AC128: 533.23 | AD128: 593.19 | AE128: 544 | AT128: 416.34 | AU128: 497.32 | AX128: 562.43
A129: 2012-04-22 | B129: 16 | C129: 563.1302 | D129: 543.042 | E129: 663.09 | G129: 0 | H129: 607.37 | I129: 509 | J129: 599.8404 | K129: 444 | L129: 407 | R129: 644.44 | S129: 0 | T129: 0 | U129: 0 | V129: 0 | W129: 591.3914 | X129: 293.76 | Y129: 593.98 | Z129: 531.42 | AA129: 497.51 | AB129: 631 | AC129: 510.52 | AD129: 593.32 | AE129: 543 | AT129: 421.8 | AU129: 520.8 | AX129: 565.23 | BC129: EU25 | BD129: =100-BD131 -> 92.49
A130: 2012-04-29 | B130: 17 | C130: 563.13 | D130: 534.84 | E130: 679.93 | G130: 0 | H130: 606.84 | I130: 529 | J130: 620.86 | K130: 444 | L130: 418.76 | R130: 479.75 | S130: 0 | T130: 0 | U130: 0 | V130: 0 | W130: 594.31 | X130: 257.25 | Y130: 574 | Z130: 558.96 | AA130: 495.34 | AB130: 627 | AC130: 504.59 | AD130: 585.18 | AE130: 529 | AT130: 415.9777 | AU130: 527.09 | AX130: 523.05
A131: 2012-05-06 | B131: 18 | C131: 564.7101 | D131: 525.992 | E131: 692.67 | G131: 0 | H131: 606.84 | I131: 550 | J131: 614.4247 | K131: 439 | L131: 400 | R131: 479.75 | S131: 0 | T131: 0 | U131: 0 | V131: 0 | W131: 595.8218 | X131: 302.52 | Y131: 564.11 | Z131: 555.9 | AA131: 487.83 | AB131: 620 | AC131: 490.58 | AD131: 573.35 | AE131: 531 | AT131: 413.4044 | AU131: 531.2861 | AX131: 511.637 | BC131: ROM | BD131: 7.51
A132: 2012-05-13 | B132: 19 | C132: 563.6 | D132: 500.75 | E132: 675.32 | G132: 0 | H132: 605.17 | I132: 556 | J132: 587.72 | K132: 415 | L132: 410.07 | R132: 511.38 | S132: 0 | T132: 0 | U132: 0 | V132: 0 | W132: 579.75 | X132: 283.08 | Y132: 557 | Z132: 541.62 | AA132: 488.23 | AB132: 617 | AC132: 480.34 | AD132: 565.89 | AE132: 528 | AT132: 409.48 | AU132: 536.93 | AX132: 533.51
A133: 2012-05-20 | B133: 20 | C133: 563.6 | D133: 505.91 | E133: 605.27 | G133: 0 | H133: 605.17 | I133: 564 | J133: 612.99 | K133: 410 | L133: 400 | R133: 511.38 | S133: 0 | T133: 0 | U133: 0 | V133: 0 | W133: 556.2 | X133: 260.85 | Y133: 557 | Z133: 532.44 | AA133: 480.3 | AB133: 611 | AC133: 482.74 | AD133: 572.08 | AE133: 523 | AT133: 402.84 | AU133: 526.7 | AX133: 539.94 | BC133: EU27 | BD133: =SUM(BD129:BD131) -> 100
A134: 2012-05-27 | B134: 21 | C134: 563.2733 | D134: 505.16 | E134: 602.12 | G134: 0 | H134: 604.1 | I134: 573 | J134: 549.3663 | K134: 422 | L134: 404.11 | R134: 481.89 | S134: 0 | T134: 0 | U134: 0 | V134: 0 | W134: 555.2526 | X134: 264.73 | Y134: 557 | Z134: 529.38 | AA134: 470.33 | AB134: 608 | AC134: 439.45 | AD134: 557.14 | AE134: 525 | AT134: 369.1488 | AU134: 528.6735 | AX134: 538.4563
A135: 2012-06-03 | B135: 22 | C135: 563.2836 | D135: 505.164 | E135: 602.12 | G135: 0 | H135: 603.96 | I135: 573 | J135: 579.2185 | K135: 422 | L135: 418.4 | R135: 481.89 | S135: 0 | T135: 0 | U135: 0 | V135: 0 | W135: 555.3978 | X135: 293.26 | Y135: 557 | Z135: 524.28 | AA135: 477.06 | AB135: 594 | AC135: 440.42 | AD135: 569.86 | AE135: 524 | AT135: 366.2914 | AU135: 532.308 | AX135: 493.0154
A136: 2012-06-10 | B136: 23 | C136: 563.2631 | D136: 505.164 | E136: 607.2 | G136: 0 | H136: 603.96 | I136: 561 | J136: 591.142 | K136: 422 | L136: 422.16 | R136: 481.89 | S136: 0 | T136: 0 | U136: 0 | V136: 0 | W136: 557.1517 | X136: 336.9 | Y136: 504.48 | Z136: 506.94 | AA136: 464.19 | AB136: 587 | AC136: 440.7 | AD136: 556.49 | AE136: 529 | AT136: 378.5285 | AU136: 528.2007 | AX136: 499.16
A137: 2012-06-17 | B137: 24 | C137: 563.1609 | D137: 501.18 | E137: 605.09 | G137: 0 | H137: 603.7 | I137: 558 | J137: 562.5467 | K137: 402 | L137: 390.83 | R137: 481.89 | S137: 0 | T137: 0 | U137: 0 | V137: 0 | W137: 553.4057 | X137: 279.04 | Y137: 494.87 | Z137: 501.84 | AA137: 462.81 | AB137: 582 | AC137: 458.14 | AD137: 584.21 | AE137: 543 | AT137: 379.0698 | AU137: 537.3594 | AX137: 518.232
A138: 2012-06-24 | B138: 25 | C138: 563.1404 | D138: 507.61 | E138: 594.92 | G138: 0 | H138: 603.43 | I138: 539 | J138: 568.2357 | K138: 402 | L138: 400 | R138: 481.79 | S138: 0 | T138: 0 | U138: 0 | V138: 0 | W138: 551.679 | X138: 228.48 | Y138: 499.03 | Z138: 487.56 | AA138: 466.93 | AB138: 577 | AC138: 452.9 | AD138: 554.56 | AE138: 524 | AT138: 373.5998 | AU138: 519.0194 | AX138: 532.8179
A139: 2012-07-01 | B139: 26 | C139: 563.1404 | D139: 508.058 | E139: 604.52 | G139: 0 | H139: 603.43 | I139: 515 | J139: 578.2765 | K139: 402 | L139: 400 | R139: 481.79 | S139: 0 | T139: 0 | U139: 0 | V139: 0 | W139: 555.0478 | X139: 234.9 | Y139: 481.38 | Z139: 485.52 | AA139: 467.54 | AB139: 575 | AC139: 450.65 | AD139: 566.4 | AE139: 516 | AT139: 393.1624 | AU139: 519.8155 | AX139: 528.7314
A140: 2012-07-08 | B140: 27 | C140: 563.0944 | D140: 518.512 | E140: 606.14 | G140: 0 | H140: 603.43 | I140: 495 | J140: 659.5562 | K140: 394 | L140: 397.7 | R140: 481.79 | S140: 0 | T140: 0 | U140: 0 | V140: 0 | W140: 558.4428 | X140: 209.85 | Y140: 473.56 | Z140: 469.2 | AA140: 481.71 | AB140: 579 | AC140: 440.24 | AD140: 570.35 | AE140: 514 | AT140: 379.014 | AU140: 528.5553 | AX140: 502.5172
A141: 2012-07-15 | B141: 28 | C141: 563.07 | D141: 544.37 | E141: 638.09 | G141: 0 | H141: 603.7 | I141: 469 | J141: 577.21 | K141: 386 | L141: 400 | R141: 481.89 | S141: 0 | T141: 0 | U141: 0 | V141: 0 | W141: 577.1 | X141: 398.82 | Y141: 473.56 | Z141: 487.56 | AA141: 498.06 | AB141: 579 | AC141: 426.47 | AD141: 563.74 | AE141: 514 | AT141: 379.97 | AU141: 522.5384 | AX141: 509.33
A142: 2012-07-22 | B142: 29 | C142: 563.0535 | D142: 541.342 | E142: 679.4 | G142: 0 | H142: 603.7 | I142: 470 | J142: 571.1544 | K142: 386 | L142: 413.08 | R142: 481.89 | S142: 0 | T142: 0 | U142: 0 | V142: 0 | W142: 591.8697 | X142: 292.47 | Y142: 475.45 | Z142: 479.4 | AA142: 509.38 | AB142: 581 | AC142: 434.26 | AD142: 581.8 | AE142: 518 | AT142: 361.3385 | AU142: 512.8394 | AX142: 533.8516
A143: 2012-07-29 | B143: 30 | C143: 563.0279 | D143: 555.346 | E143: 688.04 | G143: 0 | H143: 603.7 | I143: 465 | J143: 600.8628 | K143: 386 | L143: 400 | R143: 481.89 | S143: 0 | T143: 0 | U143: 0 | V143: 0 | W143: 594.9073 | X143: 294.79 | Y143: 483.7 | Z143: 490.62 | AA143: 511.3 | AB143: 584 | AC143: 436.91 | AD143: 588.91 | AE143: 502 | AT143: 381.7163 | AU143: 516.5132 | AX143: 540.1173
A144: 2012-08-05 | B144: 31 | C144: 563.0279 | D144: 548.578 | E144: 695.72 | G144: 0 | H144: 604.1 | I144: 465 | J144: 631.2048 | K144: 396 | L144: 400 | R144: 481.89 | S144: 0 | T144: 0 | U144: 0 | V144: 0 | W144: 598.49 | X144: 279.47 | Y144: 493.34 | Z144: 488.58 | AA144: 516.38 | AB144: 588 | AC144: 442.27 | AD144: 562.68 | AE144: 505 | AT144: 387.9525 | AU144: 520.0194 | AX144: 530.8137
A145: 2012-08-12 | B145: 32 | C145: 563.0279 | D145: 551.196 | E145: 707.41 | G145: 0 | H145: 604.1 | I145: 471 | J145: 635.1944 | K145: 396 | L145: 418.61 | R145: 467.51 | S145: 0 | T145: 0 | U145: 0 | V145: 0 | W145: 604.9474 | X145: 295.94 | Y145: 489.4 | Z145: 480.42 | AA145: 529.73 | AB145: 593 | AC145: 436.04 | AD145: 560.87 | AE145: 507 | AT145: 390.8862 | AU145: 508.0042 | AX145: 505.4345
A146: 2012-08-19 | B146: 33 | C146: 563.0279 | D146: 553.134 | E146: 731.89 | G146: 0 | H146: 604.1 | I146: 468 | J146: 647.6687 | K146: 396 | L146: 410.84 | R146: 528.73 | S146: 0 | T146: 0 | U146: 0 | V146: 0 | W146: 614.4938 | X146: 229.5 | Y146: 489.4 | Z146: 478.38 | AA146: 539.23 | AB146: 599 | AC146: 436.74 | AD146: 563.08 | AE146: 539 | AT146: 402.2272 | AU146: 497.1569 | AX146: 530.3777
A147: 2012-08-26 | B147: 34 | C147: 563.0484 | D147: 549.53 | E147: 727.3 | G147: 0 | H147: 604.1 | I147: 465 | J147: 673.085 | K147: 400 | L147: 440.36 | R147: 459.34 | S147: 0 | T147: 0 | U147: 0 | V147: 0 | W147: 611.9228 | X147: 219.3 | Y147: 489.46 | Z147: 494.7 | AA147: 539.34 | AB147: 606 | AC147: 435.79 | AD147: 560.27 | AE147: 520 | AT147: 373.8045 | AU147: 487.5138 | AX147: 528.951
A148: 2012-09-02 | B148: 35 | C148: 563.5955 | D148: 562.328 | E148: 728.32 | G148: 0 | H148: 604.1 | I148: 465 | J148: 641.2375 | K148: 400 | L148: 393.9181 | R148: 436.89 | S148: 0 | T148: 0 | U148: 0 | V148: 0 | W148: 615.9336 | X148: 224.99 | Y148: 489.46 | Z148: 503.88 | AA148: 540.73 | AB148: 608 | AC148: 430.03 | AD148: 552.58 | AE148: 526 | AT148: 385.5365 | AU148: 457.2501 | AX148: 518.6392
A149: 2012-09-09 | B149: 36 | C149: 563.5955 | D149: 560.882 | E149: 779.95 | G149: 0 | H149: 604.1 | I149: 463 | J149: 643.4554 | K149: 400 | L149: 399.39 | R149: 459.34 | S149: 0 | T149: 0 | U149: 0 | V149: 0 | W149: 633.9653 | X149: 224.99 | Y149: 501.89 | Z149: 500.82 | AA149: 540.21 | AB149: 610 | AC149: 432.31 | AD149: 557.94 | AE149: 520 | AT149: 382.5114 | AU149: 435.5679 | AX149: 513.0783
A150: 2012-09-16 | B150: 37 | C150: 564.5567 | D150: 566.858 | E150: 785.42 | G150: 0 | H150: 604.1 | I150: 465 | J150: 651.7587 | K150: 400 | L150: 394.87 | R150: 459.34 | S150: 0 | T150: 0 | U150: 0 | V150: 0 | W150: 637.8794 | X150: 193.35 | Y150: 523.49 | Z150: 506.94 | AA150: 540.23 | AB150: 616 | AC150: 418.17 | AD150: 563.84 | AE150: 523 | AT150: 369.3655 | AU150: 421.2935 | AX150: 495.8853
A151: 2012-09-23 | B151: 38 | C151: 565.2521 | D151: 566.652 | E151: 789.07 | G151: 0 | H151: 605.02 | I151: 470 | J151: 665.2592 | K151: 400 | L151: 402.82 | R151: 459.34 | S151: 0 | T151: 0 | U151: 0 | V151: 0 | W151: 639.45 | X151: 236.37 | Y151: 524.38 | Z151: 496.74 | AA151: 547.16 | AB151: 629 | AC151: 411.27 | AD151: 550.22 | AE151: 525 | AT151: 392.3095 | AU151: 392.2566 | AX151: 475.003
A152: 2012-09-30 | B152: 39 | C152: 566.1264 | D152: 556.79 | E152: 791.4 | G152: 0 | H152: 605.02 | I152: 480 | J152: 649.9234 | K152: 420 | L152: 396.12 | R152: 459.34 | S152: 0 | T152: 0 | U152: 0 | V152: 0 | W152: 638.5612 | X152: 220.66 | Y152: 534.78 | Z152: 516.12 | AA152: 547.16 | AB152: 630 | AC152: 397.87 | AD152: 555.73 | AE152: 527 | AT152: 367.4298 | AU152: 401.8695 | AX152: 469.537
A153: 2012-10-07 | B153: 40 | C153: 566.2849 | D153: 529.188 | E153: 781.04 | G153: 0 | H153: 605.02 | I153: 486 | J153: 682.0093 | K153: 420 | L153: 406.66 | R153: 443.02 | S153: 0 | T153: 0 | U153: 0 | V153: 0 | W153: 626.2246 | X153: 236.53 | Y153: 554.76 | Z153: 511.02 | AA153: 545.59 | AB153: 630 | AC153: 409.02 | AD153: 552.44 | AE153: 538 | AT153: 384.7726 | AU153: 375.3928 | AX153: 451.6282
A154: 2012-10-14 | B154: 41 | C154: 566.0139 | D154: 536.412 | E154: 788.61 | G154: 0 | H154: 605.02 | I154: 490 | J154: 668.8076 | K154: 420 | L154: 410.5708 | R154: 406.28 | S154: 0 | T154: 0 | U154: 0 | V154: 0 | W154: 631.0806 | X154: 192.78 | Y154: 548.47 | Z154: 519.18 | AA154: 544.13 | AB154: 633 | AC154: 400.98 | AD154: 556.81 | AE154: 543 | AT154: 401.3392 | AU154: 360.1613 | AX154: 447.2059
A155: 2012-10-21 | B155: 42 | C155: 565.5895 | D155: 522.528 | E155: 792.63 | G155: 0 | H155: 606.08 | I155: 490 | J155: 667.3651 | K155: 432 | L155: 386.12 | R155: 447.1 | S155: 0 | T155: 0 | U155: 0 | V155: 0 | W155: 629.1075 | X155: 283.63 | Y155: 545.23 | Z155: 529.38 | AA155: 544.13 | AB155: 633 | AC155: 402.36 | AD155: 553.7 | AE155: 538 | AT155: 378.2232 | AU155: 362.2015 | AX155: 445.6598
A156: 2012-10-28 | B156: 43 | C156: 565.1038 | D156: 530.772 | E156: 776.47 | G156: 0 | H156: 605.95 | I156: 505 | J156: 674.9554 | K156: 432 | L156: 375.2 | R156: 414.45 | S156: 0 | T156: 0 | U156: 0 | V156: 0 | W156: 625.8971 | X156: 158.1 | Y156: 565.54 | Z156: 519.18 | AA156: 544.13 | AB156: 633 | AC156: 401.9 | AD156: 527.55 | AE156: 489 | AT156: 368.915 | AU156: 360.2352 | AX156: 446.471
A157: 2012-11-04 | B157: 44 | C157: 565.5077 | D157: 530.772 | E157: 783.25 | G157: 0 | H157: 605.95 | I157: 505 | J157: 692.1834 | K157: 450 | L157: 395.66 | R157: 412.4 | S157: 0 | T157: 0 | U157: 0 | V157: 0 | W157: 629.7307 | X157: 222.89 | Y157: 542.05 | Z157: 515.1 | AA157: 543.99 | AB157: 633 | AC157: 394.25 | AD157: 542.05 | AE157: 534 | AT157: 378.429 | AU157: 362.9858 | AX157: 439.4219
A158: 2012-11-11 | B158: 45 | C158: 566.0395 | D158: 534.118 | E158: 785.57 | G158: 0 | H158: 605.95 | I158: 512 | J158: 685.762 | K158: 456 | L158: 404.4 | R158: 412.4 | S158: 0 | T158: 0 | U158: 0 | V158: 0 | W158: 632.1588 | X158: 237.59 | Y158: 528.31 | Z158: 515.1 | AA158: 544.46 | AB158: 636 | AC158: 386.71 | AD158: 532.1 | AE158: 543 | AT158: 361.771 | AU158: 368.6189 | AX158: 447.0547
A159: 2012-11-18 | B159: 46 | C159: 566.3053 | D159: 539.614 | E159: 788.49 | G159: 0 | H159: 605.95 | I159: 525 | J159: 689.9558 | K159: 468 | L159: 410.73 | R159: 406.28 | S159: 0 | T159: 0 | U159: 0 | V159: 0 | W159: 635.9327 | X159: 234.38 | Y159: 520.82 | Z159: 497.76 | AA159: 541.64 | AB159: 638 | AC159: 388.96 | AD159: 518.68 | AE159: 550 | AT159: 359.8232 | AU159: 367.0795 | AX159: 447.2188
A160: 2012-11-25 | B160: 47 | C160: 566.3053 | D160: 536.77 | E160: 796.06 | G160: 0 | H160: 608.08 | I160: 542 | J160: 699.4386 | K160: 468 | L160: 380.75 | R160: 425.47 | S160: 0 | T160: 0 | U160: 0 | V160: 0 | W160: 638.2042 | X160: 221.36 | Y160: 520.82 | Z160: 500.82 | AA160: 542.45 | AB160: 639 | AC160: 388.82 | AD160: 516.23 | AE160: 541 | AT160: 391.4877 | AU160: 363.3302 | AX160: 431.635
A161: 2012-12-02 | B161: 48 | C161: 565.6713 | D161: 534.772 | E161: 786.37 | G161: 0 | H161: 608.08 | I161: 557 | J161: 690.798 | K161: 468 | L161: 402.89 | R161: 421.59 | S161: 0 | T161: 0 | U161: 0 | V161: 0 | W161: 634.315 | X161: 228.94 | Y161: 500.43 | Z161: 496.74 | AA161: 542.45 | AB161: 637 | AC161: 386.56 | AD161: 507.92 | AE161: 535 | AT161: 393.9393 | AU161: 379.411 | AX161: 433.0573
A162: 2012-12-09 | B162: 49 | C162: 565.6713 | D162: 530.376 | E162: 789.17 | G162: 0 | H162: 609.15 | I162: 543 | J162: 712.0465 | K162: 473 | L162: 417 | R162: 421.59 | S162: 0 | T162: 0 | U162: 0 | V162: 0 | W162: 635.3194 | X162: 278.61 | Y162: 482.43 | Z162: 483.48 | AA162: 540.14 | AB162: 632 | AC162: 389.9 | AD162: 496.91 | AE162: 543 | AT162: 466.6133 | AU162: 384.9576 | AX162: 438.2021
A163: 2012-12-16 | B163: 50 | C163: 566.6275 | D163: 529.356 | E163: 785.15 | G163: 0 | H163: 611.55 | I163: 539 | J163: 699.1133 | K163: 485 | L163: 382.29 | R163: 680.47 | S163: 0 | T163: 0 | U163: 0 | V163: 0 | W163: 635.7048 | X163: 304.47 | Y163: 479.54 | Z163: 496.74 | AA163: 549 | AB163: 631 | AC163: 387.84 | AD163: 494.43 | AE163: 537 | AT163: 407.5742 | AU163: 388.3765 | AX163: 435.4514
A164: 2012-12-23 | B164: 51 | C164: 566.6275 | D164: 522.916 | E164: 700.65 | G164: 0 | H164: 611.55 | I164: 528 | J164: 697.2965 | K164: 495 | L164: 411.95 | R164: 680.47 | S164: 0 | T164: 0 | U164: 0 | V164: 0 | W164: 604.137 | X164: 290.17 | Y164: 479.54 | Z164: 513.06 | AA164: 535.71 | AB164: 629 | AC164: 394.46 | AD164: 480.61 | AE164: 539 | AT164: 389.22 | AU164: 419.96 | AX164: 414.52
A165: 2012-12-30 | B165: 52 | C165: 566.6275 | D165: 522.916 | E165: 697.73 | G165: 0 | H165: 611.55 | I165: 528 | J165: 674.2995 | K165: 495 | L165: 400 | R165: 680.47 | S165: 0 | T165: 0 | U165: 0 | V165: 0 | W165: 602.9494 | X165: 210.61 | Y165: 476.76 | Z165: 531.42 | AA165: 535.71 | AB165: 627 | AC165: 394.21 | AD165: 485.6 | AE165: 530 | AT165: 389.27 | AU165: 421.8 | AX165: 411.083
A166: 2013-01-06 | B166: 1 | C166: 566.607 | D166: 526.318 | E166: 775.45 | G166: 612.17 | I166: 649.2637 | J166: 495 | K166: 398.52 | L166: 680.47 | R166: 0 | S166: 0 | T166: 0 | U166: 0 | V166: 636.0266 | W166: 351.95 | X166: 476.76 | Y166: 502.86 | Z166: 499.68 | AA166: 623 | AB166: 394.36 | AC166: 474.76 | AD166: 536 | AE166: 388.1414 | AF166: 422.1197 | AG166: 407.6703 | AH166: 410.5291 | AT166: 0 | AU166: 0 | AX166: 0
A167: =A166+7 -> 2013-01-13 | B167: 2 | C167: 566.5099 | D167: 526.318 | E167: 808.13 | G167: 612.17 | I167: 645.0417 | J167: 470 | K167: 403.63 | L167: 680.47 | R167: 0 | S167: 0 | T167: 0 | U167: 0 | V167: 647.21 | W167: 235.25 | X167: na | Y167: 503.88 | Z167: 478.9 | AA167: 623 | AB167: 323.05 | AC167: 471.95 | AD167: 550 | AE167: 364.0679 | AF167: 435.9725 | AG167: 404.7433388 | AH167: 407.2308755 | AT167: 0 | AU167: 0 | AX167: 0
A168: 2013-01-20 | B168: 3 | C168: 566.4843 | D168: 487.056 | E168: 671.39 | G168: 611.55 | I168: 585.0409 | J168: 446 | K168: 396.88 | L168: 680.47 | R168: 0 | S168: 0 | T168: 0 | U168: 0 | V168: 577.8515 | W168: 224.4 | X168: 441.79 | Y168: 490.62 | Z168: 430.26 | AA168: 598 | AB168: 375.99 | AC168: 468.39 | AD168: 543 | AE168: 406.0691 | AF168: 429.9633 | AG168: 390.507 | AH168: 393.3199 | AT168: 0 | AU168: 0 | AX168: 0
A169: 2013-01-27 | B169: 4 | C169: 561.5247 | D169: 479.106 | E169: 634.3 | G169: 611.55 | I169: 531.4591 | J169: 426 | K169: 407.78 | L169: 680.47 | R169: 0 | S169: 0 | T169: 0 | U169: 0 | V169: 558.6693 | W169: 183.73 | X169: 437.79 | Y169: 522.24 | Z169: 408.93 | AA169: 582 | AB169: 377.2 | AC169: 464.49 | AD169: 536 | AE169: 323.4769 | AF169: 424.2229 | AG169: 392.9846 | AH169: 395.4601 | AT169: 0 | AU169: 0 | AX169: 0
A170: 2013-02-03 | B170: 5 | C170: 561.5247 | D170: 452.77 | E170: 615.1 | G170: 612.8 | I170: 533.2916 | J170: 426 | K170: 413.6 | L170: 680.47 | R170: 0 | S170: 0 | T170: 0 | U170: 0 | V170: 542.385 | W170: 204 | X170: 440.67 | Y170: 486.54 | Z170: 403.21 | AA170: 577 | AB170: 379.56 | AC170: 464.12 | AD170: 535 | AE170: 344.0168 | AF170: 454.4853 | AG170: 386.6562 | AH170: 389.0834 | AT170: 0 | AU170: 0 | AX170: 0
A171: 2013-02-10 | B171: 6 | C171: 561.5451 | D171: 462.44 | E171: 619.32 | G171: 612.8 | I171: 517.6075 | J171: 436 | K171: 414.97 | L171: 680.47 | R171: 0 | S171: 0 | T171: 0 | U171: 0 | V171: 547.9673 | W171: 204 | X171: 440.67 | Y171: 512.04 | Z171: 395.25 | AA171: 568 | AB171: 391.07 | AC171: 462.72 | AD171: 531 | AE171: 359.6812 | AF171: 481.3576 | AG171: 400.631 | AH171: 404.0189 | AT171: 0 | AU171: 0 | AX171: 0
A172: 2013-02-17 | B172: 7 | C172: 561.5145 | D172: 459.678 | E172: 615.19 | G172: 611.27 | I172: 528.8122 | J172: 436 | K172: 406.13 | L172: 692.58 | R172: 0 | S172: 0 | T172: 0 | U172: 0 | V172: 545.2425 | W172: 204 | X172: 456.21 | Y172: 479.4 | Z172: 389.09 | AA172: 552 | AB172: 393.63 | AC172: 469.77 | AD172: 526 | AE172: 359.6812 | AF172: 494.059 | AG172: 416.8629 | AH172: 419.1226 | AT172: 0 | AU172: 0 | AX172: 0
A173: 2013-02-24 | B173: 8 | C173: 561.5145 | D173: 450.618 | E173: 614.09 | G173: 611.27 | I173: 528.7573 | J173: 412 | K173: 415.76 | L173: 392.58 | R173: 0 | S173: 0 | T173: 0 | U173: 0 | V173: 539.0463 | W173: 313.01 | X173: 454.27 | Y173: 495.72 | Z173: 390.63 | AA173: 548 | AB173: 408.36 | AC173: 470.56 | AD173: 532 | AE173: 361.5628 | AF173: 499.0079 | AG173: 418.5976 | AH173: 419.9768 | AT173: 0 | AU173: 0 | AX173: 0
A174: 2013-03-03 | B174: 9 | C174: 561.0645 | D174: 444.15 | E174: 609.72 | G174: 610.73 | I174: 535.2574 | J174: 414 | K174: 400 | L174: 392.73 | R174: 0 | S174: 0 | T174: 0 | U174: 0 | V174: 535.1134 | W174: 163.2 | X174: 462.58 | Y174: 491.64 | Z174: 400.56 | AA174: 547 | AB174: 420.81 | AC174: 464.04 | AD174: 523 | AE174: 362.8733 | AF174: 510.1237 | AG174: 426.8365 | AH174: 427.5744 | AT174: 0 | AU174: 0 | AX174: 0
A175: 2013-03-10 | B175: 10 | C175: 561.5145 | D175: 440.874 | E175: 629.9 | G175: 610.73 | I175: 538.2367 | J175: 414 | K175: 414.31 | L175: 392.73 | R175: 0 | S175: 0 | T175: 0 | U175: 0 | V175: 542.1111 | W175: 315 | X175: 461.61 | Y175: 505.92 | Z175: 402.57 | AA175: 559 | AB175: 450.72 | AC175: 447.94 | AD175: 545 | AE175: 363.9395 | AF175: 532.839 | AG175: 462.227 | AH175: 464.4796 | AT175: 0 | AU175: 0 | AX175: 0
A176: 2013-03-17 | B176: 11 | C176: 560.3794 | D176: 442.338 | E176: 599.54 | G176: 586.2 | I176: 568.2986 | J176: 414 | K176: 407.19 | L176: 489.32 | R176: 0 | S176: 0 | T176: 0 | U176: 0 | V176: 527.8825 | W176: 315 | X176: 490.99 | Y176: 527.34 | Z176: 402.57 | AA176: 567 | AB176: 460.55 | AC176: 478.13 | AD176: 532 | AE176: 361.381 | AF176: 527.4362 | AG176: 492.381 | AH176: 495.121 | AT176: 0 | AU176: 0 | AX176: 0
A177: 2013-03-24 | B177: 12 | C177: 558.2831 | D177: 443.082 | E177: 568.17 | G177: 694.23 | I177: 577.815 | J177: 426 | K177: 406.35 | L177: 474.14 | R177: 0 | S177: 0 | T177: 0 | U177: 0 | V177: 529.935 | W177: 295.44 | X177: 536.7 | Y177: 518.16 | Z177: 406.83 | AA177: 589 | AB177: 475.33 | AC177: 532.28 | AD177: 536 | AE177: 370.8144 | AF177: 538.5645 | AG177: 528.4532 | AH177: 532.3203 | AT177: 0 | AU177: 0 | AX177: 0
A178: 2013-03-31 | B178: 13 | C178: 553.8143 | D178: 445.83 | E178: 627.86 | G178: 704.25 | I178: 596.6032 | J178: 431 | K178: 411.39 | L178: 508.62 | R178: 0 | S178: 0 | T178: 0 | U178: 0 | V178: 556.0368 | W178: 287.64 | X178: 546.72 | Y178: 506.94 | Z178: 406.83 | AA178: 611 | AB178: 485.67 | AC178: 533.84 | AD178: 549 | AE178: 353.7404 | AF178: 530.6461 | AG178: 527.7207 | AH178: 531.1902 | AT178: 0 | AU178: 0 | AX178: 0
A179: 2013-04-07 | B179: 14 | C179: 551.9225 | D179: 452.244 | E179: 621.57 | G179: 657.12 | I179: 595.9325 | J179: 439 | K179: 418.74 | L179: 461.81 | R179: 0 | S179: 0 | T179: 0 | U179: 0 | V179: 550.1393 | W179: 275.4 | X179: 552.88 | Y179: 510 | Z179: 420.57 | AA179: 614 | AB179: 492.14 | AC179: 501.55 | AD179: 546 | AE179: 358.6984 | AF179: 533.5727 | AG179: 533.502 | AH179: 536.6688 | AT179: 0 | AU179: 0 | AX179: 0
A180: 2013-04-14 | B180: 15 | C180: 549.8159 | D180: 471.512 | E180: 609.09 | G180: 579.09 | I180: 579.9623 | J180: 427 | K180: 415.2 | L180: 461.81 | R180: 0 | S180: 0 | T180: 0 | U180: 0 | V180: 540.8998 | W180: 244.57 | X180: 534.7 | Y180: 516.12 | Z180: 420.57 | AA180: 620 | AB180: 492.14 | AC180: 497.71 | AD180: 529 | AE180: 384.2557 | AF180: 539.9289 | AG180: 548.951 | AH180: 553.1386 | AT180: 0 | AU180: 0 | AX180: 0
A181: 2013-04-21 | B181: 16 | C181: 547.8014 | D181: 480.27 | E181: 614.59 | G181: 565.44 | I181: 580.2922 | J181: 427 | K181: 391.23 | L181: 437.61 | R181: 0 | S181: 0 | T181: 0 | U181: 0 | V181: 543.9779 | W181: 274.61 | X181: 547.46 | Y181: 502.86 | Z181: 420.57 | AA181: 624 | AB181: 506.21 | AC181: 508.72 | AD181: 535 | AE181: 362.2353 | AF181: 554.4508 | AG181: 530.7658 | AH181: 533.9717 | AT181: 0 | AU181: 0 | AX181: 0
A182: 2013-04-28 | B182: 17 | C182: 548.0571 | D182: 515.116 | E182: 600.32 | G182: 560.41 | I182: 523.0008 | J182: 427 | K182: 452.94 | L182: 437.61 | R182: 0 | S182: 0 | T182: 0 | U182: 0 | V182: 549.6268 | W182: 278.1 | X182: 549.1 | Y182: 499.8 | Z182: 402.57 | AA182: 623 | AB182: 503.48 | AC182: 506.79 | AD182: 522 | AE182: 386.299 | AF182: 547.5659 | AG182: 539.3583 | AH182: 542.4996 | AT182: 0 | AU182: 0 | AX182: 0
A183: 2013-05-05 | B183: 18 | C183: 574.9719 | D183: 536.686 | E183: 621.87 | G183: 557.38 | I183: 522.399 | J183: 427 | K183: 391.05 | L183: 437.61 | R183: 0 | S183: 0 | T183: 0 | U183: 0 | V183: 566.2604 | W183: 294.43 | X183: 528.81 | Y183: 504.9 | Z183: 402.38 | AA183: 623 | AB183: 514.62 | AC183: 506.64 | AD183: 535 | AE183: 386.299 | AF183: 557.6225 | AG183: 555.7136 | AH183: 557.7099 | AT183: 0 | AU183: 0 | AX183: 0
A184: 2013-05-12 | B184: 19 | C184: 546.6408 | D184: 515.212 | E184: 618.65 | G184: 564.34 | I184: 526.7263 | J184: 397 | K184: 418.98 | L184: 437.61 | R184: 0 | S184: 0 | T184: 0 | U184: 0 | V184: 555.0311 | W184: 287.23 | X184: 528.81 | Y184: 487.56 | Z184: 412.94 | AA184: 621 | AB184: 518.46 | AC184: 511.78 | AD184: 525 | AE184: 372.2879 | AF184: 556.8804 | AG184: 573.7357 | AH184: 576.2024 | AT184: 0 | AU184: 0 | AX184: 0
A185: 2013-05-19 | B185: 20 | C185: 545.5312 | D185: 495.762 | E185: 639.72 | G185: 596.15 | I185: 522.8652 | J185: 397 | K185: 401.97 | L185: 437.61 | R185: 0 | S185: 0 | T185: 0 | U185: 0 | V185: 560.5993 | W185: 239.57 | X185: 523.37 | Y185: 500.82 | Z185: 422.39 | AA185: 619 | AB185: 516.69 | AC185: 515.28 | AD185: 524 | AE185: 356.4393 | AF185: 560.8215 | AG185: 586.3414764 | AH185: 586.2175014 | AT185: 431.5338 | AU185: 0 | AX185: 0
A186: 2013-05-26 | B186: 21 | C186: 546.0425 | D186: 484.464 | E186: 652.75 | G186: 590.94 | I186: 519.1378 | J186: 397 | K186: 427.12 | L186: 437.61 | R186: 0 | S186: 0 | T186: 0 | U186: 0 | V186: 561.452 | W186: 281.52 | X186: 515.89 | Y186: 499.8 | Z186: 428.65 | AA186: 620 | AB186: 533.96 | AC186: 514.96 | AD186: 516 | AE186: 359.6563 | AF186: 559.1795 | AG186: 621.0336164 | AH186: 625.0964086 | AT186: 431.5338 | AU186: 0 | AX186: 0
A187: 2013-06-02 | B187: 22 | C187: 545.5312 | D187: 482.336 | E187: 665.9 | G187: 571.05 | I187: 513.7399 | J187: 397 | K187: 418.66 | L187: 394.92 | R187: 0 | S187: 0 | T187: 0 | U187: 0 | V187: 563.1924 | W187: 311.97 | X187: 515.89 | Y187: 494.7 | Z187: 440.8 | AA187: 615 | AB187: 505.83 | AC187: 512.4 | AD187: 513 | AE187: 359.8056 | AF187: 559.1609 | AG187: 596.5210206 | AH187: 602.4082301 | AT187: 431.5338 | AU187: 0 | AX187: 0
A188: 2013-06-09 | B188: 23 | C188: 545.0608 | D188: 479.45 | E188: 686.49 | G188: 571.05 | I188: 519.4948 | J188: 421 | K188: 391.23 | L188: 402.93 | R188: 0 | S188: 0 | T188: 0 | U188: 0 | V188: 571.903 | W188: 353.52 | X188: 486.86 | Y188: 514.08 | Z188: 462.03 | AA188: 610 | AB188: 480.73 | AC188: 523.11 | AD188: 518 | AE188: 352.6816 | AF188: 567.3958 | AG188: 580.5096 | AH188: 586.5023 | AT188: 431.5338 | AU188: 0 | AX188: 0
A189: 2013-06-16 | B189: 24 | C189: 544.8154 | D189: 477.32 | E189: 709.3 | G189: 570.61 | I189: 533.0965 | J189: 421 | K189: 419.62 | L189: 358.19 | R189: 0 | S189: 0 | T189: 0 | U189: 0 | V189: 580.1942 | W189: 262.55 | X189: 486.86 | Y189: 508.98 | Z189: 476.75 | AA189: 608 | AB189: 477.17 | AC189: 543.72 | AD189: 531 | AE189: 356.4308 | AF189: 555.4815 | AG189: 570.7004 | AH189: 576.4436 | AT189: 431.5338 | AU189: 0 | AX189: 0
A190: 2013-06-23 | B190: 25 | C190: 562.2201 | D190: 477.991 | E190: 726.17 | G190: 575.19 | I190: 533.3499 | J190: 421 | K190: 401.54 | L190: 358.05 | R190: 0 | S190: 0 | T190: 0 | U190: 0 | V190: 588.57936 | W190: 300.26 | X190: 486.16 | Y190: 498.78 | Z190: 480.96 | AA190: 610 | AB190: 480.38 | AC190: 535.61 | AD190: 523 | AE190: 354.3347 | AF190: 551.5126 | AG190: 558.4937 | AH190: 562.9631 | AT190: 436.4661 | AU190: 0 | AX190: 0
A191: 2013-06-30 | B191: 26 | C191: 564.5414 | D191: 480.032 | E191: 716.87 | G191: 586.21 | I191: 544.0501 | J191: 421 | K191: 408.45 | L191: 397.69 | R191: 0 | S191: 0 | T191: 0 | U191: 0 | V191: 587.3288114 | W191: 285.53 | X191: 488.14 | Y191: 516.12 | Z191: 482.73 | AA191: 617 | AB191: 490.04 | AC191: 536.29 | AD191: 497 | AE191: 349.8696 | AF191: 536.0989 | AG191: 574.19 | AH191: 579.59 | AT191: 436.4661 | AU191: 0 | AX191: 0
A192: 2013-07-07 | B192: 27 | C192: 566.0957 | D192: 489.372 | E192: 738.89 | F192: 658.1755 | G192: 588.16 | H192: 0 | I192: 554.6121 | J192: 409 | K192: 419.07 | L192: 397.69 | R192: 0 | S192: 0 | T192: 0 | U192: 0 | V192: 598.0115279 | W192: 250.26 | X192: 488.14 | Y192: 523.26 | Z192: 495.22 | AA192: 617 | AB192: 478.37 | AC192: 538.86 | AD192: 503 | AE192: 362.9842 | AF192: 536.6438 | AG192: 566.9772128 | AH192: 573.0448 | AT192: 436.4661 | AU192: 0 | AX192: 0
A193: 2013-07-14 | B193: 28 | C193: 566.0957 | D193: 501.696 | E193: 757.28 | F193: 568.3777 | G193: 587.41 | H193: 0 | I193: 552.8893 | J193: 409 | K193: 420 | L193: 394.77 | R193: 0 | S193: 0 | T193: 0 | U193: 0 | V193: 608.1040867 | W193: 322.38 | X193: 484.23 | Y193: 516.12 | Z193: 498.2 | AA193: 634 | AB193: 469.78 | AC193: 556.88 | AD193: 515 | AE193: 356.3772 | AF193: 542.9348 | AG193: 555.2036977 | AH193: 561.2154 | AT193: 437.4189 | AU193: 0 | AX193: 0
A194: 2013-07-21 | B194: 29 | C194: 567.6194 | D194: 517.314 | E194: 749.94 | F194: 610.5397 | G194: 584.93 | H194: 0 | I194: 571.9174 | J194: 409 | K194: 402.06 | L194: 394.77 | R194: 0 | S194: 0 | T194: 0 | U194: 0 | V194: 610.962837 | W194: 291.72 | X194: 486.93 | Y194: 505.92 | Z194: 503.88 | AA194: 645 | AB194: 474.09 | AC194: 547.42 | AD194: 501 | AE194: 347.0256 | AF194: 545.203 | AG194: 544.9154626 | AH194: 549.858 | AT194: 455.6476 | AU194: 0 | AX194: 0
A195: 2013-07-28 | B195: 30 | C195: 569.2658 | D195: 523.688 | E195: 753.02 | F195: 546.0193 | G195: 581.69 | H195: 0 | I195: 613.5371 | J195: 423 | K195: 436.44 | L195: 394.77 | R195: 0 | S195: 0 | T195: 0 | U195: 0 | V195: 614.5377363 | W195: 291.72 | X195: 486.93 | Y195: 530.4 | Z195: 498.2 | AA195: 644 | AB195: 440.36 | AC195: 550.92 | AD195: 529 | AE195: 350.0686 | AF195: 548.232 | AG195: 471.9683329 | AH195: 475.7338 | AT195: 455.6476 | AU195: 0 | AX195: 0
A196: 2013-08-04 | B196: 31 | C196: 570.1043 | D196: 526.972 | E196: 760.7 | F196: 596.1015 | G196: 626.45 | H196: 0 | I196: 611.6272 | J196: 429 | K196: 418.82 | L196: 394.77 | R196: 0 | S196: 0 | T196: 0 | U196: 0 | V196: 625.3208147 | W196: 228.19 | X196: 486.93 | Y196: 511.02 | Z196: 503.67 | AA196: 646 | AB196: 428.26 | AC196: 539.05 | AD196: 527 | AE196: 372.8339 | AF196: 533.0983 | AG196: 472.0769112 | AH196: 475.3669 | AT196: 455.6476 | AU196: 0 | AX196: 0
A197: 2013-08-11 | B197: 32 | C197: 574.9719 | D197: 545.838 | E197: 760.85 | F197: 597.1199 | G197: 626.45 | H197: 0 | I197: 618.7991 | J197: 429 | K197: 404.62 | L197: 470.25 | R197: 0 | S197: 0 | T197: 0 | U197: 0 | V197: 632.3592696 | W197: 256.07 | X197: 478.04 | Y197: 524.28 | Z197: 512.76 | AA197: 645 | AB197: 432.88 | AC197: 555.78 | AD197: 512 | AE197: 375.1869 | AF197: 529.3372 | AG197: 489.0760043 | AH197: 493.0197 | AT197: 455.6476 | AU197: 0 | AX197: 0
A198: 2013-08-18 | B198: 33 | C198: 574.9719 | D198: 553.06 | E198: 755.73 | F198: 572.2913 | G198: 627.14 | H198: 0 | I198: 617.8799 | J198: 429 | K198: 399.56 | L198: 496.77 | R198: 0 | S198: 0 | T198: 0 | U198: 0 | V198: 632.6752154 | W198: 231.54 | X198: 478.04 | Y198: 528.36 | Z198: 512.66 | AA198: 651 | AB198: 431.01 | AC198: 529.38 | AD198: 529 | AE198: 353.5067 | AF198: 511.7837 | AG198: 489.6799023 | AH198: 494.2523 | AT198: 403.0816 | AU198: 0 | AX198: 0
A199: 2013-08-25 | B199: 34 | C199: 574.9719 | D199: 545.932 | E199: 770.09 | F199: 576.0635 | G199: 624.86 | H199: 0 | I199: 632.126 | J199: 429 | K199: 414.5 | L199: 496.77 | R199: 0 | S199: 0 | T199: 0 | U199: 0 | V199: 635.730333 | W199: 184.13 | X199: 471.61 | Y199: 526.32 | Z199: 514.97 | AA199: 657 | AB199: 420.02 | AC199: 536.6 | AD199: 522 | AE199: 372.1604 | AF199: 505.857 | AG199: 488.060902 | AH199: 493.3818 | AT199: 403.0816 | AU199: 0 | AX199: 0
A200: 2013-09-01 | B200: 35 | C200: 574.9719 | D200: 559 | E200: 764.18 | F200: 603.0366 | G200: 679.33 | H200: 0 | I200: 610.9799 | J200: 429 | K200: 414.17 | L200: 459.03 | R200: 0 | S200: 0 | T200: 0 | U200: 0 | V200: 644.9039595 | W200: 210.39 | X200: 468.69 | Y200: 525.62 | Z200: 514.97 | AA200: 663 | AB200: 414.9 | AC200: 545.43 | AD200: 528 | AE200: 369.9499 | AF200: 482.5894 | AG200: 474.272672 | AH200: 478.9075 | AT200: 403.0816 | AU200: 0 | AX200: 0
A201: 2013-09-08 | B201: 36 | C201: 574.9719 | D201: 559.104 | E201: 775.11 | F201: 655.3694 | G201: 681.46 | H201: 0 | I201: 625.2141 | J201: 429 | K201: 420 | L201: 441.69 | R201: 0 | S201: 0 | T201: 0 | U201: 0 | V201: 650.2326518 | W201: 253.48 | X201: 474.42 | Y201: 523.66 | Z201: 516.6 | AA201: 659 | AB201: 406.75 | AC201: 536.07 | AD201: 528 | AE201: 368.6765 | AF201: 471.9979 | AG201: 468.7406942 | AH201: 473.2175 | AT201: 403.0816 | AU201: 0 | AX201: 0
A202: 2013-09-15 | B202: 37 | C202: 574.9719 | D202: 557.316 | E202: 765.22 | F202: 603.9608 | G202: 681.33 | H202: 0 | I202: 620.0324 | J202: 441 | K202: 411.82 | L202: 437.61 | R202: 0 | S202: 0 | T202: 0 | U202: 0 | V202: 645.7958496 | W202: 212.33 | X202: 478.81 | Y202: 525.2 | Z202: 517.5 | AA202: 655 | AB202: 398.71 | AC202: 532.96 | AD202: 523 | AE202: 371.5801 | AF202: 454.0964 | AG202: 463.6348035 | AH202: 468.3069 | AT202: 403.0816 | AU202: 0 | AX202: 0
A203: 2013-09-22 | B203: 38 | C203: 574.9719 | D203: 557.004 | E203: 769.77 | F203: 547.8891 | G203: 683.99 | H203: 0 | I203: 592.6277 | J203: 453 | K203: 407.3 | L203: 437.61 | R203: 0 | S203: 0 | T203: 0 | U203: 0 | V203: 647.7320348 | W203: 187.18 | X203: 462.94 | Y203: 533.34 | Z203: 515.77 | AA203: 655 | AB203: 396.3 | AC203: 525.92 | AD203: 539 | AE203: 360.8195 | AF203: 436.6268 | AG203: 457.1203461 | AH203: 461.7804 | AT203: 463.8583 | AU203: 0 | AX203: 0
A204: 2013-09-29 | B204: 39 | C204: 574.9719 | D204: 549.952 | E204: 779.81 | F204: 566.7697 | G204: 700.76 | H204: 0 | I204: 607.8777 | J204: 453 | K204: 414.24 | L204: 437.61 | R204: 0 | S204: 0 | T204: 0 | U204: 0 | V204: 651.6769512 | W204: 200.38 | X204: 465.89 | Y204: 531.2 | Z204: 513.85 | AA204: 652 | AB204: 391.26 | AC204: 525.92 | AD204: 538 | AE204: 351.1914 | AF204: 418.2991 | AG204: 456.0868159 | AH204: 460.4489 | AT204: 463.8583 | AU204: 0 | AX204: 0
... 432 more rows

Sheet Sheep Pound (hidden)
A1: Weekly sheepmeat reference prices
W2: =AE76/C76 -> 527.4656079
A3: p per kg dw
E5: Light lambs | S5: 444.96 | U5: Heavy lambs
A6: 2012 | D6: BG | E6: GR | F6: ES | G6: HR | H6: IT | I6: CY | J6: HU | K6: PT | L6: SI | M6: SK | N6: EE | O6: LV | P6: PL | Q6: RO | R6: SE | S6: EU 25/27 | T6: EE | U6: BE | V6: DE | W6: ES | X6: FR | Y6: IE | Z6: NL | AA6: AT | AB6: PL | AC6: SE | AD6: UK | AE6: GB | AF6: NI | AG6: DK | AH6: CY | AI6: LT | AJ6: CZ | AK6: LV | AL6: FI | AM6: EL | AN6: IT | AO6: LU | AP6: HU | AQ6: MT | AR6: PT | AS6: SI | AT6: SK | AU6: EU 25 | AV6: ROM | AW6: BG | AX6: HR | AY6: EU 28 | AZ6: EU27 excluding UK
C7: 1 euro = £
A8: 2011-01-09 | C8: 0.85003
A9: 2011-01-16 | C9: 0.8362428571
A10: 2011-01-23 | C10: 0.8424785714
A11: 2011-01-30 | C11: 0.8580642857
A12: 2011-02-06 | C12: 0.8529071429
A13: 2011-02-13 | C13: 0.8464571429
A14: 2011-02-20 | C14: 0.8407142857
A15: 2011-02-27 | C15: 0.8479485714
A16: 2011-03-06 | C16: 0.8532428571
A17: 2011-03-13 | C17: 0.8596428571
A18: 2011-03-20 | C18: 0.8681214286
A19: 2011-03-27 | C19: 0.8732714286
A20: 2011-04-03 | C20: 0.8804428571
A21: 2011-04-10 | C21: 0.8786571429
A22: 2011-04-17 | C22: 0.8847
A23: 2011-04-24 | C23: 0.8814142857
A24: 2011-05-01 | C24: 0.8869071429
A25: 2011-05-08 | C25: 0.8962428571
A26: 2011-05-15 | C26: 0.8789428571
A27: 2011-05-22 | C27: 0.8770571429
A28: 2011-05-29 | C28: 0.8698642857
A29: 2011-06-05 | C29: 0.8772857143
A30: 2011-06-12 | C30: 0.8899071429
A31: 2011-06-19 | C31: 0.8814571429
A32: 2011-06-26 | C32: 0.8824571429
A33: 2011-07-03 | C33: 0.8955857143
A34: 2011-07-10 | C34: 0.8968928571
A35: 2011-07-17 | C35: 0.8821142857
A36: 2011-07-24 | C36: 0.8791857143
A37: 2011-07-31 | C37: 0.8791785714
A38: 2011-08-07 | C38: 0.8726142857
A39: 2011-08-14 | C39: 0.87485
A40: 2011-08-21 | C40: 0.8741928571
A41: 2011-08-28 | C41: 0.8784142857
A42: 2011-09-04 | C42: 0.8826428571
A43: 2011-09-11 | C43: 0.8739428571
A44: 2011-09-18 | C44: 0.8678642857
A45: 2011-09-25 | C45: 0.8718785714
A46: 2011-10-02 | C46: 0.8696357143
A47: 2011-10-09 | C47: 0.8631642857
A48: 2011-10-16 | C48: 0.8721
A49: 2011-10-23 | C49: 0.8720642857
A50: 2011-10-30 | C50: 0.8734071429
A51: 2011-11-06 | C51: 0.8644714286
A52: 2011-11-13 | C52: 0.8566642857
A53: 2011-11-20 | C53: 0.8558928571
A54: 2011-11-27 | C54: 0.8594785714
A55: 2011-12-04 | C55: 0.8618571429
A56: 2011-12-11 | C56: 0.8560785714
A57: 2011-12-18 | C57: 0.8438357143
A58: 2011-12-25 | C58: 0.83545
A59: 2012-01-01 | C59: 0.8343571429
A60: 2012-01-08 | B60: 1 | C60: 0.8308842857 | D60: 439.3176028 | E60: 428.7063796 | F60: 667.7650827 | H60: 0 | I60: 498.8379986 | J60: 501.0232243 | K60: 602.3714983 | L60: 398.8244571 | M60: 334.6801903 | S60: 615.2531959 | T60: 0 | U60: 0 | V60: 0 | W60: 0 | X60: 526.7271282 | Y60: 205.3198158 | Z60: 376.3490372 | AA60: 430.5310015 | AB60: 462.1461486 | AC60: 533.4277114 | AD60: 397.2790124 | AE60: 415.2344218 | AF60: 430.39806 | AU60: 376.0278173 | AV60: 334.4379044 | AW60: 448.8803331
A61: 2012-01-15 | B61: 2 | C61: 0.8287785714 | D61: 437.5898644 | E61: 407.4905329 | F61: 631.9353729 | H61: 0 | I61: 494.0597698 | J61: 480.6915714 | K61: 603.4989856 | L61: 397.8137143 | M61: 336.0862863 | S61: 613.6939566 | T61: 0 | U61: 0 | V61: 0 | W61: 0 | X61: 505.9827441 | Y61: 255.2969511 | Z61: 371.8149305 | AA61: 429.4399046 | AB61: 430.2852587 | AC61: 531.2470643 | AD61: 395.8826602 | AE61: 403.6814666 | AF61: 435.10875 | AU61: 339.5049979 | AV61: 319.6603094 | AW61: 440.2937545
A62: =A61+7 -> 2012-01-22 | B62: 3 | C62: 0.8326214286 | D62: 439.7380169 | E62: 392.7741717 | F62: 595.8322205 | H62: 0 | I62: 504.7684149 | J62: 460.43965 | K62: 490.587623 | L62: 399.6582857 | M62: 335.8045484 | S62: 616.5395154 | T62: 0 | U62: 0 | V62: 0 | W62: 0 | X62: 490.1622367 | Y62: 198.7300826 | Z62: 366.9612422 | AA62: 422.9383809 | AB62: 408.1760029 | AC62: 530.37985 | AD62: 397.7182778 | AE62: 397.3935554 | AF62: 432.9631429 | AU62: 338.2826795 | AV62: 332.9190988 | AW62: 435.8597495
A63: 2012-01-29 | B63: 4 | C63: 0.8355 | D63: 441.2796852 | E63: 386.08455 | F63: 581.30748 | H63: 0 | I63: 505.168365 | J63: 428.6115 | K63: 479.8982497 | L63: 401.04 | M63: 343.29024 | S63: 365.021595 | T63: 0 | U63: 0 | V63: 0 | W63: 0 | X63: 481.7911586 | Y63: 202.29126 | Z63: 367.00173 | AA63: 415.02627 | AB63: 408.82686 | AC63: 531.378 | AD63: 412.661805 | AE63: 407.07231 | AF63: 438.6375 | AU63: 346.1768925 | AV63: 337.3473285 | AW63: 436.3042827
A64: 2012-02-05 | B64: 5 | C64: 0.833 | D64: 439.9933489 | E64: 388.414572 | F64: 581.25074 | H64: 0 | I64: 503.5485 | J64: 409.836 | K64: 471.688749 | L64: 379.848 | M64: 322.44597 | S64: 429.38651 | T64: 0 | U64: 0 | V64: 0 | W64: 0 | X64: 480.6365018 | Y64: 192.99777 | Z64: 365.90358 | AA64: 413.78442 | AB64: 407.48694 | AC64: 529.788 | AD64: 411.42703 | AE64: 393.00107 | AF64: 434.826 | AU64: 374.5088865 | AV64: 335.0232704 | AW64: 438.4433858
A65: 2012-02-12 | B65: 6 | C65: 0.8335285714 | D65: 440.383318 | E65: 404.4480675 | F65: 586.8874671 | H65: 0 | I65: 503.8680214 | J65: 379.2555 | K65: 529.0677573 | L65: 380.0890286 | M65: 340.7731529 | S65: 429.6589727 | T65: 0 | U65: 0 | V65: 0 | W65: 0 | X65: 487.8437681 | Y65: 214.250184 | Z65: 365.4480992 | AA65: 422.548974 | AB65: 407.7705124 | AC65: 530.9577 | AD65: 405.5366559 | AE65: 406.0117671 | AF65: 436.7689714 | AU65: 371.6397995 | AV65: 335.9882821 | AW65: 437.8996529
A66: 2012-02-19 | B66: 7 | C66: 0.8340357143 | D66: 440.7109769 | E66: 410.5040382 | F66: 582.4571814 | H66: 0 | I66: 504.1745893 | J66: 386.1585357 | K66: 478.4937956 | L66: 380.3202857 | M66: 318.5098989 | S66: 383.105965 | T66: 0 | U66: 0 | V66: 0 | W66: 0 | X66: 487.8806174 | Y66: 190.56048 | Z66: 367.5845604 | AA66: 405.7917364 | AB66: 407.8101029 | AC66: 527.9446071 | AD66: 405.4247607 | AE66: 395.8166693 | AF66: 444.5410357 | AU66: 309.0662793 | AV66: 340.2375301 | AW66: 439.3558357
A67: 2012-02-26 | B67: 8 | C67: 0.8415 | D67: 444.6938727 | E67: 413.302725 | F67: 585.793395 | H67: 0 | I67: 508.796145 | J67: 372.7845 | K67: 500.398564 | L67: 383.724 | M67: 359.312085 | S67: 386.53461 | T67: 0 | U67: 0 | V67: 0 | W67: 0 | X67: 491.5228428 | Y67: 181.96596 | Z67: 369.292275 | AA67: 416.29005 | AB67: 411.35886 | AC67: 530.145 | AD67: 405.005535 | AE67: 416.550915 | AF67: 440.1045 | AU67: 363.1036315 | AV67: 353.2937611 | AW67: 438.3553581
A68: 2012-03-04 | B68: 9 | C68: 0.84075 | D68: 451.95357 | E68: 407.8226025 | F68: 589.5339 | H68: 0 | I68: 508.0063725 | J68: 363.204 | K68: 502.4742375 | L68: 383.382 | M68: 342.2945475 | S68: 386.190105 | T68: 0 | U68: 0 | V68: 0 | W68: 0 | X68: 491.014815 | Y68: 200.5440975 | Z68: 371.54424 | AA68: 433.92789 | AB68: 409.7563275 | AC68: 527.991 | AD68: 405.224685 | AE68: 426.344325 | AF68: 444.75675 | AU68: 339.6041475 | AV68: 351.2905725 | AW68: 437.7533025
A69: 2012-03-11 | B69: 10 | C69: 0.83505 | D69: 467.7031545 | E69: 408.706872 | F69: 581.428614 | H69: 0 | I69: 505.105044 | J69: 372.4323 | K69: 490.0323915 | L69: 400.824 | M69: 340.9926675 | S69: 383.571867 | T69: 0 | U69: 0 | V69: 0 | W69: 0 | X69: 489.857031 | Y69: 186.984396 | Z69: 384.5655765 | AA69: 440.355267 | AB69: 403.1370885 | AC69: 521.90625 | AD69: 402.9032745 | AE69: 439.8458865 | AF69: 440.07135 | AU69: 343.656477 | AV69: 346.5541005 | AW69: 438.8605275
A70: 2012-03-18 | B70: 11 | C70: 0.8335357143 | D70: 469.7640579 | E70: 407.6989886 | F70: 582.4080743 | H70: 0 | I70: 504.0807232 | J70: 360.9209643 | K70: 489.535525 | L70: 380.0922857 | M70: 336.6233982 | S70: 462.8290407 | T70: 0 | U70: 0 | V70: 0 | W70: 0 | X70: 488.5769589 | Y70: 174.6090614 | Z70: 424.3446968 | AA70: 456.5608521 | AB70: 412.7252089 | AC70: 519.29275 | AD70: 405.4234361 | AE70: 467.48017 | AF70: 434.2721071 | AU70: 338.0404089 | AV70: 381.3675954 | AW70: 441.9323004
A71: 2012-03-25 | B71: 12 | C71: 0.833 | D71: 468.6458 | E71: 407.43696 | F71: 570.23015 | H71: 0 | I71: 504.87297 | J71: 372.351 | K71: 505.78094 | L71: 379.848 | M71: 342.0298 | S71: 486.29707 | T71: 0 | U71: 0 | V71: 0 | W71: 0 | X71: 484.49779 | Y71: 220.40347 | Z71: 424.07197 | AA71: 478.35858 | AB71: 411.88518 | AC71: 518.959 | AD71: 406.97881 | AE71: 460.40743 | AF71: 450.653 | AU71: 355.23285 | AV71: 383.50487 | AW71: 455.8176
A72: 2012-04-01 | B72: 13 | C72: 0.8357142857 | D72: 471.51 | E72: 430.5683571 | F72: 549.1311429 | H72: 0 | I72: 507.4791429 | J72: 385.2642857 | K72: 521.3018571 | L72: 381.0857143 | M72: 348.6934286 | S72: 452.9571429 | T72: 0 | U72: 0 | V72: 0 | W72: 0 | X72: 485.1321429 | Y72: 279.9642857 | Z72: 467.0472857 | AA72: 481.6221429 | AB72: 413.2523571 | AC72: 524.8285714 | AD72: 426.0137143 | AE72: 484.1877857 | AF72: 454.6285714 | AU72: 346.0024286 | AV72: 395.1675 | AW72: 468.7103571
A73: 2012-04-08 | B73: 14 | C73: 0.8283714286 | D73: 468.1541129 | E73: 439.359922 | F73: 581.1439757 | H73: 0 | I73: 503.0202663 | J73: 386.0210857 | K73: 514.219848 | L73: 377.7373714 | M73: 360.5900829 | S73: 533.8356834 | T73: 0 | U73: 0 | V73: 0 | W73: 0 | X73: 498.4973583 | Y73: 247.4593969 | Z73: 488.7888451 | AA73: 474.0106989 | AB73: 415.46969 | AC73: 521.874 | AD73: 441.2900274 | AE73: 474.0189826 | AF73: 447.3205714 | AU73: 345.3397649 | AV73: 400.5258694 | AW73: 465.163692
A74: 2012-04-15 | B74: 15 | C74: 0.8250785714 | D74: 464.6264959 | E74: 442.7619138 | F74: 569.8240138 | H74: 0 | I74: 501.0207117 | J74: 386.96185 | K74: 484.5768958 | L74: 366.3348857 | M74: 340.9637196 | S74: 531.7136346 | T74: 0 | U74: 0 | V74: 0 | W74: 0 | X74: 494.0240454 | Y74: 242.7216141 | Z74: 486.8458619 | AA74: 466.2353991 | AB74: 412.6877999 | AC74: 521.4496571 | AD74: 439.9566466 | AE74: 489.4283578 | AF74: 448.8427429 | AU74: 343.5132124 | AV74: 410.3280751 | AW74: 464.0489409
A75: 2012-04-22 | B75: 16 | C75: 0.8206642857 | D75: 462.1408433 | E75: 445.655175 | F75: 544.1742812 | H75: 0 | I75: 498.4468672 | J75: 417.7181214 | K75: 492.2675934 | L75: 364.3749429 | M75: 334.0103643 | S75: 528.8688923 | T75: 0 | U75: 0 | V75: 0 | W75: 0 | X75: 485.3338009 | Y75: 241.0783406 | Z75: 487.4581724 | AA75: 436.1174147 | AB75: 408.2886888 | AC75: 517.8391643 | AD75: 418.9655311 | AE75: 486.916534 | AF75: 445.6207071 | AU75: 346.1561957 | AV75: 427.40196 | AW75: 463.8640742
A76: 2012-04-29 | B76: 17 | C76: 0.8167357143 | D76: 459.9283828 | E76: 436.8229294 | F76: 555.3231142 | H76: 0 | I76: 495.6279009 | J76: 432.0531929 | K76: 507.0785356 | L76: 362.6306571 | M76: 342.0162477 | S76: 391.8289589 | T76: 0 | U76: 0 | V76: 0 | W76: 0 | X76: 485.3942024 | Y76: 210.1052625 | Z76: 468.8063 | AA76: 456.5225949 | AB76: 404.5618687 | AC76: 512.0932929 | AD76: 412.1166741 | AE76: 430.8 | AF76: 432.0531929 | AU76: 339.7438439 | AV76: 430.4932276 | AW76: 427.1936154 | AY76: =430.8/C76 -> 527.4656079
A77: 2012-05-06 | B77: 18 | C77: 0.8126285714 | D77: 458.8995618 | E77: 427.4361275 | F77: 562.8834326 | H77: 0 | I77: 493.1355223 | J77: 446.9457143 | K77: 499.2990662 | L77: 356.7439429 | M77: 325.0514286 | S77: 389.8585571 | T77: 0 | U77: 0 | V77: 0 | W77: 0 | X77: 484.1818182 | Y77: 245.8363954 | Z77: 458.4119034 | AA77: 451.7402229 | AB77: 396.424596 | AC77: 503.8297143 | AD77: 398.6593246 | AE77: 465.9205914 | AF77: 431.5057714 | AU77: 335.944227 | AV77: 431.7382645 | AW77: 415.7708444
A78: 2012-05-13 | B78: 19 | C78: 0.80546 | D78: 453.957256 | E78: 403.334095 | F78: 543.9432472 | H78: 0 | I78: 487.4402282 | J78: 447.83576 | K78: 473.3849512 | L78: 334.2659 | M78: 330.2949822 | S78: 411.8961348 | T78: 0 | U78: 0 | V78: 0 | W78: 0 | X78: 466.965435 | Y78: 228.0096168 | Z78: 448.64122 | AA78: 436.2532452 | AB78: 393.2497358 | AC78: 496.96882 | AD78: 386.8946564 | AE78: 455.8017594 | AF78: 425.28288 | AU78: 329.8197608 | AV78: 432.4756378 | AW78: 429.7209646
A79: 2012-05-20 | B79: 20 | C79: 0.8016928571 | D79: 451.8340943 | E79: 405.5844334 | F79: 485.2406356 | H79: 0 | I79: 485.1604664 | J79: 452.1547714 | K79: 491.4297045 | L79: 328.6940714 | M79: 320.6771429 | S79: 409.9696933 | T79: 0 | U79: 0 | V79: 0 | W79: 0 | X79: 445.9015671 | Y79: 209.1215818 | Z79: 446.5429214 | AA79: 426.8533449 | AB79: 385.0530793 | AC79: 489.8343357 | AD79: 387.0092099 | AE79: 458.6324497 | AF79: 419.2853643 | AU79: 322.9539506 | AV79: 422.2516279 | AW79: 432.8660413
A80: 2012-05-27 | B80: 21 | C80: 0.8037642857 | D80: 452.7389616 | E80: 406.0295666 | F80: 483.9625517 | H80: 0 | I80: 485.554005 | J80: 460.5569357 | K80: 441.5610117 | L80: 339.1885286 | M80: 324.8091855 | S80: 387.3259716 | T80: 0 | U80: 0 | V80: 0 | W80: 0 | X80: 446.2922094 | Y80: 212.7805194 | Z80: 447.6967071 | AA80: 425.4967376 | AB80: 378.0344565 | AC80: 488.6886857 | AD80: 353.2142154 | AE80: 447.8092341 | AF80: 421.97625 | AU80: 296.7086216 | AV80: 424.9288781 | AW80: 432.7919434
A81: 2012-06-03 | B81: 22 | C81: 0.8010642857 | D81: 451.2263747 | E81: 404.6688388 | F81: 482.3368277 | H81: 0 | I81: 483.810786 | J81: 459.0098357 | K81: 463.991254 | L81: 338.0491286 | M81: 335.1652971 | S81: 386.0248686 | T81: 0 | U81: 0 | V81: 0 | W81: 0 | X81: 444.9093419 | Y81: 234.9201124 | Z81: 446.1928071 | AA81: 419.9819837 | AB81: 382.1557281 | AC81: 475.8321857 | AD81: 352.8047327 | AE81: 456.4944939 | AF81: 419.7576857 | AU81: 293.4229587 | AV81: 426.4129278 | AW81: 394.9370292
A82: 2012-06-10 | B82: 23 | C82: 0.8077571429 | D82: 454.9797923 | E82: 408.0498293 | F82: 490.4701371 | H82: 0 | I82: 487.853004 | J82: 453.1517571 | K82: 477.4991729 | L82: 340.8735143 | M82: 341.0027554 | S82: 389.2500896 | T82: 0 | U82: 0 | V82: 0 | W82: 0 | X82: 450.0432653 | Y82: 272.1333814 | Z82: 407.4973234 | AA82: 409.484406 | AB82: 374.9527881 | AC82: 474.1534429 | AD82: 355.9785729 | AE82: 449.5087724 | AF82: 427.3035286 | AU82: 305.7590996 | AV82: 426.6578883 | AW82: 403.2000554
A83: 2012-06-17 | B83: 24 | C83: 0.8084 | D83: 455.2592716 | E83: 405.153912 | F83: 489.154756 | H83: 0 | I83: 488.03108 | J83: 451.0872 | K83: 454.7627523 | L83: 324.9768 | M83: 315.946972 | S83: 389.559876 | T83: 0 | U83: 0 | V83: 0 | W83: 0 | X83: 447.3731679 | Y83: 225.575936 | Z83: 400.052908 | AA83: 405.687456 | AB83: 374.135604 | AC83: 470.4888 | AD83: 370.360376 | AE83: 472.275364 | AF83: 438.9612 | AU83: 306.4400263 | AV83: 434.401339 | AW83: 418.9387488
A84: 2012-06-24 | B84: 25 | C84: 0.80635 | D84: 454.0882615 | E84: 409.3113235 | F84: 479.713742 | H84: 0 | I84: 486.5757805 | J84: 434.62265 | K84: 458.1968567 | L84: 324.1527 | M84: 322.54 | S84: 388.4913665 | T84: 0 | U84: 0 | V84: 0 | W84: 0 | X84: 444.8463617 | Y84: 184.234848 | Z84: 402.3928405 | AA84: 393.144006 | AB84: 376.5090055 | AC84: 465.26395 | AD84: 365.195915 | AE84: 447.169456 | AF84: 422.5274 | AU84: 301.2521987 | AV84: 418.5112932 | AW84: 429.6377137
A85: 2012-07-01 | B85: 26 | C85: 0.8027142857 | D85: 452.0408439 | E85: 407.8254146 | F85: 485.25684 | H85: 0 | I85: 484.3818814 | J85: 413.3978571 | K85: 464.1908076 | L85: 322.6911429 | M85: 321.0857143 | S85: 386.7397157 | T85: 0 | U85: 0 | V85: 0 | W85: 0 | X85: 445.5447983 | Y85: 188.5575857 | Z85: 386.4106029 | AA85: 389.73384 | AB85: 375.3010371 | AC85: 461.5607143 | AD85: 361.7431929 | AE85: 454.6573714 | AF85: 414.2005714 | AU85: 315.5970751 | AV85: 417.2633278 | AW85: 424.4202481
A86: 2012-07-08 | B86: 27 | C86: 0.8011785714 | D86: 451.139167 | E86: 415.4207034 | F86: 485.6263793 | H86: 0 | I86: 483.4551854 | J86: 396.5833929 | K86: 528.4222941 | L86: 315.6643571 | M86: 318.6287179 | S86: 385.9998239 | T86: 0 | U86: 0 | V86: 0 | W86: 0 | X86: 447.4124047 | Y86: 168.1273232 | Z86: 379.4061243 | AA86: 375.9129857 | AB86: 385.9357296 | AC86: 463.8823929 | AD86: 352.7108543 | AE86: 456.9521982 | AF86: 411.8057857 | AU86: 303.6578951 | AV86: 423.4671802 | AW86: 402.6060124
A87: 2012-07-15 | B87: 28 | C87: 0.7905642857 | D87: 445.1430324 | E87: 430.3594802 | F87: 504.4511651 | H87: 0 | I87: 477.2636593 | J87: 370.77465 | K87: 456.3216114 | L87: 305.1578143 | M87: 316.2257143 | S87: 380.9650236 | T87: 0 | U87: 0 | V87: 0 | W87: 0 | X87: 456.2346493 | Y87: 315.2928484 | Z87: 374.3796231 | AA87: 385.4475231 | AB87: 393.7484481 | AC87: 457.7367214 | AD87: 337.1519509 | AE87: 445.6727104 | AF87: 406.3500429 | AU87: 300.3907116 | AV87: 413.100197 | AW87: 402.6581076
A88: 2012-07-22 | B88: 29 | C88: 0.7831071429 | D88: 440.9312177 | E88: 423.9287869 | F88: 532.0429929 | H88: 0 | I88: 472.7617821 | J88: 368.0603571 | K88: 447.2750903 | L88: 302.2793571 | M88: 323.4858986 | S88: 377.3715011 | T88: 0 | U88: 0 | V88: 0 | W88: 0 | X88: 463.4973897 | Y88: 229.0353461 | Z88: 372.3282911 | AA88: 375.4215643 | AB88: 398.8991164 | AC88: 454.98525 | AD88: 340.0721079 | AE88: 455.6117357 | AF88: 405.6495 | AU88: 282.9667603 | AV88: 401.6081973 | AW88: 418.0630012
A89: 2012-07-29 | B89: 30 | C89: 0.7812214286 | D89: 439.8494604 | E89: 433.8481955 | F89: 537.5115917 | H89: 0 | I89: 471.6233764 | J89: 363.2679643 | K89: 469.406895 | L89: 301.5514714 | M89: 312.4885714 | S89: 376.4627942 | T89: 0 | U89: 0 | V89: 0 | W89: 0 | X89: 464.7543308 | Y89: 230.2962649 | Z89: 377.876805 | AA89: 383.2828573 | AB89: 399.4385164 | AC89: 456.2333143 | AD89: 341.3234544 | AE89: 460.0691115 | AF89: 392.1731571 | AU89: 298.2049532 | AV89: 403.51118 | AW89: 421.9512087
A90: 2012-08-05 | B90: 31 | C90: 0.78565 | D90: 442.3428696 | E90: 430.9903057 | F90: 546.592418 | H90: 0 | I90: 474.611165 | J90: 365.32725 | K90: 495.9060511 | L90: 311.1174 | M90: 314.26 | S90: 378.5968785 | T90: 0 | U90: 0 | V90: 0 | W90: 0 | X90: 470.2036685 | Y90: 219.5656055 | Z90: 387.592571 | AA90: 383.852877 | AB90: 405.693947 | AC90: 461.9622 | AD90: 347.4694255 | AE90: 442.069542 | AF90: 396.75325 | AU90: 304.7948816 | AV90: 408.5532416 | AW90: 417.0337834
A91: 2012-08-12 | B91: 32 | C91: 0.7891357143 | D91: 444.305424 | E91: 434.9684492 | F91: 558.2424956 | H91: 0 | I91: 476.716885 | J91: 371.6829214 | K91: 501.2545866 | L91: 312.4977429 | M91: 330.3401014 | S91: 368.9288378 | T91: 0 | U91: 0 | V91: 0 | W91: 0 | X91: 477.3855986 | Y91: 233.5368233 | Z91: 386.2030186 | AA91: 379.1165799 | AB91: 418.0288619 | AC91: 467.9574786 | AD91: 344.0947369 | AE91: 442.6025481 | AF91: 400.0918071 | AU91: 308.4622606 | AV91: 400.8842572 | AW91: 398.8564152
A92: 2012-08-19 | B92: 33 | C92: 0.7847285714 | D92: 441.8240796 | E92: 434.0600536 | F92: 574.3349941 | H92: 0 | I92: 474.05453 | J92: 367.2529714 | K92: 508.2441337 | L92: 310.7525143 | M92: 322.3978863 | S92: 414.9095376 | T92: 0 | U92: 0 | V92: 0 | W92: 0 | X92: 482.2108418 | Y92: 180.0952071 | Z92: 384.0461629 | AA92: 375.398454 | AB92: 423.1491876 | AC92: 470.0524143 | AD92: 342.7223563 | AE92: 441.864964 | AF92: 422.9687 | AU92: 315.639176 | AV92: 390.1332239 | AW92: 416.2025348
A93: 2012-08-26 | B93: 34 | C93: 0.7878 | D93: 443.5695295 | E93: 432.919734 | F93: 572.96694 | H93: 0 | I93: 475.90998 | J93: 366.327 | K93: 530.256363 | L93: 315.12 | M93: 346.915608 | S93: 361.868052 | T93: 0 | U93: 0 | V93: 0 | W93: 0 | X93: 482.0727818 | Y93: 172.76454 | Z93: 385.596588 | AA93: 389.72466 | AB93: 424.892052 | AC93: 477.4068 | AD93: 343.315362 | AE93: 441.380706 | AF93: 409.656 | AU93: 294.4831851 | AV93: 384.0633716 | AW93: 416.7075978
A94: 2012-09-02 | B94: 35 | C94: 0.7928771429 | D94: 446.8619898 | E94: 445.857018 | F94: 577.4682807 | H94: 0 | I94: 478.977082 | J94: 368.6878714 | K94: 508.4225569 | L94: 317.1508571 | M94: 312.3286576 | S94: 346.4000949 | T94: 0 | U94: 0 | V94: 0 | W94: 0 | X94: 488.359673 | Y94: 178.3894284 | Z94: 388.0816463 | AA94: 399.5149347 | AB94: 428.7324575 | AC94: 482.0693029 | AD94: 340.9609577 | AE94: 438.1280516 | AF94: 417.0533771 | AU94: 305.6830786 | AV94: 362.5431529 | AW94: 411.2171671
A95: 2012-09-09 | B95: 36 | C95: 0.7937 | D95: 447.3257483 | E95: 445.1720434 | F95: 619.046315 | H95: 0 | I95: 479.47417 | J95: 367.4831 | K95: 510.710551 | L95: 317.48 | M95: 316.995843 | S95: 364.578158 | T95: 0 | U95: 0 | V95: 0 | W95: 0 | X95: 503.1782586 | Y95: 178.574563 | Z95: 398.350093 | AA95: 397.500834 | AB95: 428.764677 | AC95: 484.157 | AD95: 343.124447 | AE95: 442.836978 | AF95: 412.724 | AU95: 303.5992982 | AV95: 345.7102422 | AW95: 407.2302467
A96: 2012-09-16 | B96: 37 | C96: 0.80175 | D96: 452.6333342 | E96: 454.4784015 | F96: 629.710485 | H96: 0 | I96: 484.337175 | J96: 372.81375 | K96: 522.5475377 | L96: 320.7 | M96: 316.5870225 | S96: 368.275845 | T96: 0 | U96: 0 | V96: 0 | W96: 0 | X96: 511.419809 | Y96: 155.0183625 | Z96: 419.7081075 | AA96: 406.439145 | AB96: 433.1294025 | AC96: 493.878 | AD96: 335.2677975 | AE96: 452.05872 | AF96: 419.31525 | AU96: 296.1387896 | AV96: 337.7720636 | AW96: 397.5760393
A97: 2012-09-23 | B97: 38 | C97: 0.8025957143 | D97: 453.668913 | E97: 454.7924667 | F97: 633.3042003 | H97: 0 | I97: 485.5864591 | J97: 377.2199857 | K97: 533.9341828 | L97: 321.0382857 | M97: 323.3016056 | S97: 368.6643154 | T97: 0 | U97: 0 | V97: 0 | W97: 0 | X97: 513.2198295 | Y97: 189.709549 | Z97: 420.8651407 | AA97: 398.6813951 | AB97: 439.148271 | AC97: 504.8327043 | AD97: 330.0835394 | AE97: 441.6042139 | AF97: 421.36275 | AU97: 314.8659234 | AV97: 314.8234661 | AW97: 381.2353721
A98: 2012-09-30 | B98: 39 | C98: 0.7967 | D98: 451.0329029 | E98: 443.594593 | F98: 630.50838 | H98: 0 | I98: 482.019434 | J98: 382.416 | K98: 517.7939728 | L98: 334.614 | M98: 315.588804 | S98: 365.956178 | T98: 0 | U98: 0 | V98: 0 | W98: 0 | X98: 508.741708 | Y98: 175.799822 | Z98: 426.059226 | AA98: 411.192804 | AB98: 435.922372 | AC98: 501.921 | AD98: 316.983029 | AE98: 442.750091 | AF98: 419.8609 | AU98: 292.7313217 | AV98: 320.1694307 | AW98: 374.0801279
A99: 2012-10-07 | B99: 40 | C99: 0.8011785714 | D99: 453.6953272 | E99: 423.9740859 | F99: 625.7525114 | H99: 0 | I99: 484.7290593 | J99: 389.3727857 | K99: 546.4112367 | L99: 336.495 | M99: 325.8072779 | S99: 354.9381307 | T99: 0 | U99: 0 | V99: 0 | W99: 0 | X99: 501.7177304 | Y99: 189.5027675 | Z99: 444.4618243 | AA99: 409.4182736 | AB99: 437.1150168 | AC99: 504.7425 | AD99: 327.6980593 | AE99: 442.60309 | AF99: 431.0340714 | AU99: 308.271562 | AV99: 300.7566672 | AW99: 361.8348361
A100: 2012-10-14 | B100: 41 | C100: 0.8061071429 | D100: 456.2678477 | E100: 432.4055447 | F100: 635.7041539 | H100: 0 | I100: 487.7109436 | J100: 394.9925 | K100: 539.1305836 | L100: 338.565 | M100: 330.9640545 | S100: 327.50521 | T100: 0 | U100: 0 | V100: 0 | W100: 0 | X100: 508.7185794 | Y100: 155.401335 | Z100: 442.1255846 | AA100: 418.5147064 | AB100: 438.6270796 | AC100: 510.2658214 | AD100: 323.2328421 | AE100: 448.8485182 | AF100: 437.7161786 | AU100: 323.5223958 | AV100: 290.3285965 | AW100: 360.4958703
A101: 2012-10-21 | B101: 42 | C101: 0.8103642857 | D101: 458.3335312 | E101: 423.4380295 | F101: 642.3190438 | H101: 0 | I101: 491.1455863 | J101: 397.0785 | K101: 540.8088426 | L101: 350.0773714 | M101: 312.897858 | S101: 362.3138721 | T101: 0 | U101: 0 | V101: 0 | W101: 0 | X101: 509.8062499 | Y101: 229.8436224 | Z101: 441.8349195 | AA101: 428.9906456 | AB101: 440.9435188 | AC101: 512.9605929 | AD101: 326.058174 | AE101: 448.698705 | AF101: 435.9759857 | AU101: 306.4985733 | AV101: 293.5151598 | AW101: 361.1467855
A102: 2012-10-28 | B102: 43 | C102: 0.8080714286 | D102: 456.644235 | E102: 428.9016883 | F102: 627.4432221 | H102: 0 | I102: 489.6508821 | J102: 408.0760714 | K102: 545.4121743 | L102: 349.0868571 | M102: 303.1884 | S102: 334.9052036 | T102: 0 | U102: 0 | V102: 0 | W102: 0 | X102: 505.7695637 | Y102: 127.7560929 | Z102: 456.9967157 | AA102: 419.5345243 | AB102: 439.6959064 | AC102: 511.5092143 | AD102: 324.7639071 | AE102: 426.2980821 | AF102: 395.1469286 | AU102: 298.1096711 | AV102: 291.0957727 | AW102: 360.7804588
A103: 2012-11-04 | B103: 44 | C103: 0.8035357143 | D103: 454.4056337 | E103: 426.4942581 | F103: 629.3693482 | H103: 0 | I103: 486.9024661 | J103: 405.7855357 | K103: 556.1940827 | L103: 361.5910714 | M103: 317.9269407 | S103: 331.3781286 | T103: 0 | U103: 0 | V103: 0 | W103: 0 | X103: 506.0111078 | Y103: 179.1000754 | Z103: 435.5565339 | AA103: 413.9012464 | AB103: 437.1153932 | AC103: 508.6381071 | AD103: 316.7939554 | AE103: 435.5565339 | AF103: 429.0880714 | AU103: 304.0812168 | AV103: 291.6720541 | AW103: 353.0911903
A104: 2012-11-11 | B104: 45 | C104: 0.7988428571 | D104: 452.1766114 | E104: 426.6763492 | F104: 627.5469833 | H104: 0 | I104: 484.0588293 | J104: 409.0075429 | K104: 547.8160754 | L104: 364.2723429 | M104: 323.0520514 | S104: 329.4427943 | T104: 0 | U104: 0 | V104: 0 | W104: 0 | X104: 504.995542 | Y104: 189.7970744 | Z104: 422.0366699 | AA104: 411.4839557 | AB104: 434.937982 | AC104: 508.0640571 | AD104: 308.9205213 | AE104: 425.0642843 | AF104: 433.7716714 | AU104: 288.9981793 | AV104: 294.4685753 | AW104: 357.1264538
A105: 2012-11-18 | B105: 46 | C105: 0.8016928571 | D105: 454.002914 | E105: 432.6046894 | F105: 632.1268009 | H105: 0 | I105: 485.7857868 | J105: 420.88875 | K105: 553.1326366 | L105: 375.1922571 | M105: 329.2793072 | S105: 325.711774 | T105: 0 | U105: 0 | V105: 0 | W105: 0 | X105: 509.8227032 | Y105: 187.9007719 | Z105: 417.5376739 | AA105: 399.0506366 | AB105: 434.2289191 | AC105: 511.4800429 | AD105: 311.8264537 | AE105: 415.8220511 | AF105: 440.9310714 | AU105: 288.4676893 | AV105: 294.2850132 | AW105: 358.5321175
A106: 2012-11-25 | B106: 47 | C106: 0.8059857143 | D106: 456.4339817 | E106: 432.6289519 | F106: 641.6129877 | H106: 0 | I106: 490.1037931 | J106: 436.8442571 | K106: 563.7375196 | L106: 377.2013143 | M106: 306.8790607 | S106: 342.9227419 | T106: 0 | U106: 0 | V106: 0 | W106: 0 | X106: 514.383468 | Y106: 178.4129977 | Z106: 419.7734797 | AA106: 403.6537654 | AB106: 437.2069507 | AC106: 515.0248714 | AD106: 313.3833654 | AE106: 416.0740053 | AF106: 436.0382714 | AU106: 315.5334935 | AV106: 292.8389508 | AW106: 347.8916438
A107: 2012-12-02 | B107: 48 | C107: 0.8095928571 | D107: 457.963444 | E107: 432.9475914 | F107: 636.6395351 | H107: 0 | I107: 492.2972246 | J107: 450.9432214 | K107: 559.2651265 | L107: 378.8894571 | M107: 326.1768662 | S107: 341.3162526 | T107: 0 | U107: 0 | V107: 0 | W107: 0 | X107: 513.5368932 | Y107: 185.3481887 | Z107: 405.1445535 | AA107: 402.1571559 | AB107: 439.1636454 | AC107: 515.71065 | AD107: 312.9562149 | AE107: 411.208404 | AF107: 433.1321786 | AU107: 318.9304434 | AV107: 307.1684355 | AW107: 350.6000968
A108: 2012-12-09 | B108: 49 | C108: 0.8100928571 | D108: 458.2462796 | E108: 429.6538092 | F108: 639.3009801 | H108: 0 | I108: 493.4680639 | J108: 439.8804214 | K108: 576.8237836 | L108: 383.1739214 | M108: 337.8087214 | S108: 341.5270476 | T108: 0 | U108: 0 | V108: 0 | W108: 0 | X108: 514.6677079 | Y108: 225.6999709 | Z108: 390.8130971 | AA108: 391.6636946 | AB108: 437.5635559 | AC108: 511.9786857 | AD108: 315.855205 | AE108: 402.5432416 | AF108: 439.8804214 | AU108: 378.0001014 | AV108: 311.8514021 | AW108: 354.9843912
A109: 2012-12-16 | B109: 50 | C109: 0.8083857143 | D109: 458.0535763 | E109: 427.9238282 | F109: 634.7040436 | H109: 0 | I109: 494.3682836 | J109: 435.7199 | K109: 565.1532044 | L109: 392.0670714 | M109: 309.0377747 | S109: 550.082227 | T109: 0 | U109: 0 | V109: 0 | W109: 0 | X109: 513.8946788 | Y109: 246.1291984 | Z109: 387.6532854 | AA109: 401.5575197 | AB109: 443.8037571 | AC109: 510.0913857 | AD109: 313.5243154 | AE109: 399.6901487 | AF109: 434.1031286 | AU109: 329.4771608 | AV109: 313.9580144 | AW109: 352.012691
A110: 2012-12-23 | B110: 51 | C110: 0.8136285714 | D110: 461.0243234 | E110: 425.4593981 | F110: 570.0688586 | H110: 0 | I110: 497.5745529 | J110: 429.5958857 | K110: 567.3403552 | L110: 402.7461429 | M110: 335.17429 | S110: 553.649834 | T110: 0 | U110: 0 | V110: 0 | W110: 0 | X110: 491.5431243 | Y110: 236.0906026 | Z110: 390.1674451 | AA110: 417.4402749 | AB110: 435.868962 | AC110: 511.7723714 | AD110: 320.9439263 | AE110: 391.0380277 | AF110: 438.5458 | AU110: 316.6805126 | AV110: 341.6914549 | AW110: 337.2653154
A111: 2012-12-30 | B111: 52 | C111: 0.8172142857 | D111: 463.0560877 | E111: 427.3344254 | F111: 570.1949236 | H111: 0 | I111: 499.7673964 | J111: 431.4891429 | K111: 551.0471842 | L111: 404.5210714 | M111: 326.8857143 | S111: 556.089805 | T111: 0 | U111: 0 | V111: 0 | W111: 0 | X111: 492.7388632 | Y111: 172.1135007 | Z111: 389.6150829 | AA111: 434.2840157 | AB111: 437.789865 | AC111: 512.3933571 | AD111: 322.1540436 | AE111: 396.8392571 | AF111: 433.1235714 | AU111: 318.117005 | AV111: 344.7009857 | AW111: 335.9429002
A112: 2013-01-06 | B112: 1 | C112: 0.8140714286 | D112: 461.2585699 | E112: 428.4604461 | F112: 631.2716893 | H112: 498.3501064 | I112: 0 | J112: 528.5470278 | K112: 402.9653571 | L112: 324.4237457 | M112: 553.951185 | S112: 0 | T112: 0 | U112: 0 | V112: 0 | W112: 517.7710829 | X112: 286.5124393 | Y112: 388.1166943 | Z112: 409.3639586 | AA112: 406.7752114 | AB112: 507.1665 | AC112: 321.0372086 | AD112: 386.4885514 | AE112: 436.3422857 | AF112: 315.974824 | AG112: 343.6355872 | AH112: 331.8727435 | AI112: 334.2000109 | AJ112: 301.5599798 | AK112: 0 | AL112: 411.9201429 | AM112: 0 | AU112: 0 | AV112: 0 | AW112: 0
A113: =A112+7 -> 2013-01-13 | B113: 2 | C113: 0.8167357143 | D113: 462.6888678 | E113: 429.8627077 | F113: 660.0286328 | H113: 499.9811022 | I113: 0 | J113: 526.8285936 | K113: 383.8657857 | L113: 329.6590364 | M113: 555.7641515 | S113: 0 | T113: 0 | U113: 0 | V113: 0 | W113: 528.5995216 | X113: 192.1370768 | Y113: 369.7770946 | Z113: 411.5367917 | AA113: 391.1347336 | AB113: 508.82635 | AC113: 263.8464725 | AD113: 385.4584204 | AE113: 449.2046429 | AF113: 297.3472564 | AG113: 356.0743112 | AH113: 330.5683399 | AI113: 332.6 | AJ113: 304.1054691 | AK113: 0 | AL113: 403.4674429 | AM113: 0 | AU113: 0 | AV113: 0 | AW113: 0
A114: 2013-01-20 | B114: 3 | C114: 0.8318928571 | D114: 471.2542429 | E114: 405.1784074 | F114: 558.5245454 | H114: 508.7440768 | I114: 0 | J114: 486.6913458 | K114: 371.0242143 | L114: 330.1616371 | M114: 566.0781325 | S114: 0 | T114: 0 | U114: 0 | V114: 0 | W114: 480.7105353 | X114: 186.6767571 | Y114: 367.5219454 | Z114: 408.1432736 | AA114: 357.9302207 | AB114: 497.4719286 | AC114: 312.7833954 | AD114: 389.6502954 | AE114: 451.7178214 | AF114: 337.8059838 | AG114: 357.6833981 | AH114: 324.859984 | AI114: 327.2000154 | AJ114: 294.380012 | AK114: 0 | AL114: 399.3085714 | AM114: 0 | AU114: 0 | AV114: 0 | AW114: 0
A115: 2013-01-27 | B115: 4 | C115: 0.8433214286 | D115: 473.5458122 | E115: 404.0403564 | F115: 534.9187821 | H115: 515.7332196 | I115: 0 | J115: 448.1908474 | K115: 359.2549286 | L115: 343.8896121 | M115: 573.8549325 | S115: 0 | T115: 0 | U115: 0 | V115: 0 | W115: 471.1377922 | X115: 154.9434461 | Y115: 369.1976882 | Z115: 440.4161829 | AA115: 344.8594318 | AB115: 490.8130714 | AC115: 318.1008429 | AD115: 391.7143704 | AE115: 452.0202857 | AF115: 272.7950014 | AG115: 357.7562621 | AH115: 331.4123343 | AI115: 333.4999765 | AJ115: 304.2200251 | AK115: 0 | AL115: 392.9877857 | AM115: 0 | AU115: 0 | AV115: 0 | AW115: 0
A116: 2013-02-03 | B116: 5 | C116: 0.8568857143 | D116: 481.1624936 | E116: 387.9721449 | F116: 527.0704029 | H116: 525.0995657 | I116: 0 | J116: 456.9699536 | K116: 365.0333143 | L116: 354.4079314 | M116: 583.085022 | S116: 0 | T116: 0 | U116: 0 | V116: 0 | W116: 464.7619581 | X116: 174.8046857 | Y116: 377.6038277 | Z116: 416.9091754 | AA116: 345.5048889 | AB116: 494.4230571 | AC116: 325.2395417 | AD116: 397.6977977 | AE116: 458.4338571 | AF116: 294.7830814 | AG116: 389.4419609 | AH116: 331.3201741 | AI116: 333.4000071 | AJ116: 304.2299893 | AK116: 0 | AL116: 390.7398857 | AM116: 0 | AU116: 0 | AV116: 0 | AW116: 0
A117: 2013-02-10 | B117: 6 | C117: 0.8573857143 | D117: 481.4607467 | E117: 396.4894497 | F117: 530.9961206 | H117: 525.4059657 | I117: 0 | J117: 443.7892761 | K117: 373.8201714 | L117: 355.7893499 | M117: 583.425257 | S117: 0 | T117: 0 | U117: 0 | V117: 0 | W117: 469.8193349 | X117: 174.9066857 | Y117: 377.8241627 | Z117: 439.0157811 | AA117: 338.8817036 | AB117: 486.9950857 | AC117: 335.2978313 | AD117: 396.7295177 | AE117: 455.2718143 | AF117: 308.3855226 | AG117: 412.7091297 | AH117: 343.4952961 | AI117: 346.4000332 | AJ117: 305.6599791 | AK117: 0 | AL117: 390.1105 | AM117: 0 | AU117: 0 | AV117: 0 | AW117: 0
A118: 2013-02-17 | B118: 7 | C118: 0.8582214286 | D118: 481.9037764 | E118: 394.5055098 | F118: 527.9692406 | H118: 524.6050126 | I118: 0 | J118: 453.8379617 | K118: 374.1845429 | L118: 348.5494688 | M118: 594.386997 | S118: 0 | T118: 0 | U118: 0 | V118: 0 | W118: 467.9387973 | X118: 175.0771714 | Y118: 391.5291979 | Z118: 411.4313529 | AA118: 333.9253756 | AB118: 473.7382286 | AC118: 337.8217009 | AD118: 403.1666805 | AE118: 451.4244714 | AF118: 308.6861133 | AG118: 424.0120208 | AH118: 357.7606736 | AI118: 359.6999965 | AJ118: 332.5000415 | AK118: 0 | AL118: 385.3414214 | AM118: 0 | AU118: 0 | AV118: 0 | AW118: 0
A119: 2013-02-24 | B119: 8 | C119: 0.8638571429 | D119: 485.0683116 | E119: 389.269578 | F119: 530.4860329 | H119: 528.0499557 | I119: 0 | J119: 456.7707704 | K119: 355.9091429 | L119: 359.1572457 | M119: 339.1330371 | S119: 0 | T119: 0 | U119: 0 | V119: 0 | W119: 465.6589966 | X119: 270.3959243 | Y119: 392.4243843 | Z119: 428.2312629 | AA119: 337.4485157 | AB119: 473.3937143 | AC119: 352.7647029 | AD119: 406.4966171 | AE119: 459.572 | AF119: 312.3386074 | AG119: 431.0715388 | AH119: 361.6085267 | AI119: 362.7999585 | AJ119: 346.0900243 | AK119: 0 | AL119: 398.2381429 | AM119: 0 | AU119: 0 | AV119: 0 | AW119: 0
A120: 2013-03-03 | B120: 9 | C120: 0.8658142857 | D120: 485.7776593 | E120: 384.551415 | F120: 527.9042863 | H120: 528.7787587 | I120: 0 | J120: 463.4335035 | K120: 358.4471143 | L120: 346.3257143 | M120: 340.0312444 | S120: 0 | T120: 0 | U120: 0 | V120: 0 | W120: 463.3088262 | X120: 141.3008914 | Y120: 400.5083723 | Z120: 425.6689354 | AA120: 346.8105703 | AB120: 473.6004143 | AC120: 364.3433096 | AD120: 401.7724611 | AE120: 452.8208714 | AF120: 314.180887 | AG120: 441.6723869 | AH120: 369.5611394 | AI120: 370.2000237 | AJ120: 361.2399714 | AK120: 0 | AL120: 403.4694571 | AM120: 0 | AU120: 0 | AV120: 0 | AW120: 0
A121: 2013-03-10 | B121: 10 | C121: 0.8657 | D121: 486.1031027 | E121: 381.6646218 | F121: 545.30443 | H121: 528.708961 | I121: 0 | J121: 465.9515112 | K121: 358.3998 | L121: 358.668167 | M121: 339.986361 | S121: 0 | T121: 0 | U121: 0 | V121: 0 | W121: 469.3055793 | X121: 272.6955 | Y121: 399.615777 | Z121: 437.974944 | AA121: 348.504849 | AB121: 483.9263 | AC121: 390.188304 | AD121: 387.781658 | AE121: 471.8065 | AF121: 315.0624252 | AG121: 461.2787223 | AH121: 400.1499139 | AI121: 402.0999897 | AJ121: 374.7500162 | AK121: 0 | AL121: 420.7302 | AM121: 0 | AU121: 0 | AV121: 0 | AW121: 0
A122: 2013-03-17 | B122: 11 | C122: 0.8688785714 | D122: 486.9016525 | E122: 384.3380095 | F122: 520.9274587 | H122: 509.3366186 | I122: 0 | J122: 493.7824757 | K122: 359.7157286 | L122: 353.7986655 | M122: 425.1596626 | S122: 0 | T122: 0 | U122: 0 | V122: 0 | W122: 458.6657925 | X122: 273.69675 | Y122: 426.6106898 | Z122: 458.1944259 | AA122: 349.7844465 | AB122: 492.65415 | AC122: 400.1620261 | AD122: 415.4369114 | AE122: 462.2434 | AF122: 313.996207 | AG122: 458.278012 | AH122: 427.8192999 | AI122: 430.2000272 | AJ122: 396.8099794 | AK122: 404.9669246 | AL122: 435.3081643 | AM122: 0 | AU122: 0 | AV122: 0 | AW122: 0
A123: 2013-03-24 | B123: 12 | C123: 0.8555 | D123: 477.611192 | E123: 379.056651 | F123: 486.069435 | H123: 593.913765 | I123: 0 | J123: 494.3207325 | K123: 364.443 | L123: 347.632425 | M123: 405.62677 | S123: 0 | T123: 0 | U123: 0 | V123: 0 | W123: 453.3593925 | X123: 252.74892 | Y123: 459.14685 | Z123: 443.28588 | AA123: 348.043065 | AB123: 503.8895 | AC123: 406.644815 | AD123: 455.36554 | AE123: 458.548 | AF123: 317.2317192 | AG123: 460.7419297 | AH123: 452.0917126 | AI123: 455.4000166 | AJ123: 409.0000065 | AK123: 398.90254 | AL123: 427.75 | AM123: 0 | AU123: 0 | AV123: 0 | AW123: 0
A124: 2013-03-31 | B124: 13 | C124: 0.8479071429 | D124: 469.5831008 | E124: 378.0224415 | F124: 532.3669787 | H124: 597.1386054 | I124: 0 | J124: 505.8641147 | K124: 365.4479786 | L124: 348.8205195 | M124: 431.262531 | S124: 0 | T124: 0 | U124: 0 | V124: 0 | W124: 471.4675744 | X124: 243.8920106 | Y124: 463.5677931 | Z124: 429.838047 | AA124: 344.9540629 | AB124: 518.0712643 | AC124: 411.8030621 | AD124: 452.6467491 | AE124: 465.5010214 | AF124: 299.9390119 | AG124: 449.9386185 | AH124: 447.458151 | AI124: 450.3999648 | AJ124: 409.1400401 | AK124: 395.3779347 | AL124: 412.9307786 | AM124: 0 | AU124: 0 | AV124: 0 | AW124: 0
A125: 2013-04-07 | B125: 14 | C125: 0.84745 | D125: 467.7267226 | E125: 383.2541778 | F125: 526.7494965 | H125: 556.876344 | I125: 0 | J125: 505.0229971 | K125: 372.03055 | L125: 354.861213 | M125: 391.3608845 | S125: 0 | T125: 0 | U125: 0 | V125: 0 | W125: 466.2155498 | X125: 233.38773 | Y125: 468.538156 | Z125: 432.1995 | AA125: 356.4120465 | AB125: 520.3343 | AC125: 417.064043 | AD125: 425.0385475 | AE125: 462.7077 | AF125: 303.9789591 | AG125: 452.1761846 | AH125: 452.1162699 | AI125: 454.7999746 | AJ125: 417.1599743 | AK125: 400.4570772 | AL125: 410.1658 | AM125: 0 | AU125: 0 | AV125: 0 | AW125: 0
A126: 2013-04-14 | B126: 15 | C126: 0.8511428571 | D126: 467.971876 | E126: 401.3240709 | F126: 518.4226029 | H126: 492.8883171 | I126: 0 | J126: 493.6307691 | K126: 363.438 | L126: 353.3945143 | M126: 393.0662829 | S126: 0 | T126: 0 | U126: 0 | V126: 0 | W126: 460.3830012 | X126: 208.1640086 | Y126: 455.1060857 | Z126: 439.2918514 | AA126: 357.9651514 | AB126: 527.7085714 | AC126: 418.8814457 | AD126: 423.6223114 | AE126: 450.2545714 | AF126: 327.0564944 | AG126: 459.5566266 | AH126: 467.2357226 | AI126: 470.7999684 | AJ126: 420.8099652 | AK126: 403.3787411 | AL126: 417.9111429 | AM126: 0 | AU126: 0 | AV126: 0 | AW126: 0
A127: 2013-04-21 | B127: 16 | C127: 0.8549142857 | D127: 468.3232426 | E127: 410.589684 | F127: 525.4217709 | H127: 483.4027337 | I127: 0 | J127: 496.1000917 | K127: 365.0484 | L127: 334.468116 | M127: 374.1190406 | S127: 0 | T127: 0 | U127: 0 | V127: 0 | W127: 465.0544778 | X127: 234.768012 | Y127: 468.0313749 | Z127: 429.9021977 | AA127: 359.5513011 | AB127: 533.4665143 | AC127: 432.7661606 | AD127: 434.9119954 | AE127: 457.3791429 | AF127: 309.6801328 | AG127: 474.0079096 | AH127: 453.7592648 | AI127: 456.5000345 | AJ127: 418.0600105 | AK127: 399.0820344 | AL127: 410.3588571 | AM127: 0 | AU127: 0 | AV127: 0 | AW127: 0
A128: 2013-04-28 | B128: 17 | C128: 0.8486642857 | D128: 465.1164873 | E128: 437.1605522 | F128: 509.470144 | H128: 475.5999524 | I128: 0 | J128: 443.8521004 | K128: 362.37965 | L128: 384.3940016 | M128: 371.3839781 | S128: 0 | T128: 0 | U128: 0 | V128: 0 | W128: 466.4486356 | X128: 236.0135379 | Y128: 466.0015593 | Z128: 424.16241 | AA128: 341.6467815 | AB128: 528.71785 | AC128: 427.2854946 | AD128: 430.0945734 | AE128: 443.0027571 | AF128: 327.8381649 | AG128: 464.6996234 | AH128: 457.7341264 | AI128: 460.4000355 | AJ128: 423.0100088 | AK128: 410.7672294 | AL128: 408.2075214 | AM128: 0 | AU128: 0 | AV128: 0 | AW128: 0
A129: 2013-05-05 | B129: 18 | C129: 0.8436285714 | D129: 485.0627226 | E129: 452.7636435 | F129: 524.6272997 | H129: 470.2216931 | I129: 0 | J129: 440.7107221 | K129: 360.2294 | L129: 329.9009529 | M129: 369.1802991 | S129: 0 | T129: 0 | U129: 0 | V129: 0 | W129: 477.7134523 | X129: 248.3895603 | Y129: 446.1192249 | Z129: 425.9480657 | AA129: 339.4592646 | AB129: 525.5806 | AC129: 434.1481354 | AD129: 427.4159794 | AE129: 451.3412857 | AF129: 325.8928735 | AG129: 470.4262731 | AH129: 468.8158705 | AI129: 470.5000062 | AJ129: 446.8800091 | AK129: 406.6711529 | AL129: 404.0980857 | AM129: 0 | AU129: 0 | AV129: 0 | AW129: 0
A130: 2013-05-12 | B130: 19 | C130: 0.8443214286 | D130: 461.5405412 | E130: 435.0045319 | F130: 522.3394518 | H130: 476.484355 | I130: 0 | J130: 444.7263021 | K130: 335.1956071 | L130: 353.7537921 | M130: 369.4835004 | S130: 0 | T130: 0 | U130: 0 | V130: 0 | W130: 468.6246513 | X130: 242.5144439 | Y130: 446.4856146 | Z130: 411.6573557 | AA130: 348.6540907 | AB130: 524.3236071 | AC130: 437.7468879 | AD130: 432.1068207 | AE130: 443.26875 | AF130: 314.3306516 | AG130: 470.1860549 | AH130: 484.4173458 | AI130: 486.5000335 | AJ130: 457.2899738 | AK130: 411.471605 | AL130: 408.6515714 | AM130: 0 | AU130: 0 | AV130: 0 | AW130: 0
A131: 2013-05-19 | B131: 20 | C131: 0.8454214286 | D131: 461.2037664 | E131: 419.1278183 | F131: 540.8329963 | H131: 503.9979846 | I131: 0 | J131: 442.0414443 | K131: 335.6323071 | L131: 339.8340516 | M131: 369.9648714 | S131: 0 | T131: 0 | U131: 0 | V131: 0 | W131: 473.9426611 | X131: 202.5376116 | Y131: 442.4682131 | Z131: 423.4039599 | AA131: 357.0975572 | AB131: 523.3158643 | AC131: 436.8207979 | AD131: 435.6287537 | AE131: 443.0008286 | AF131: 301.3414222 | AG131: 474.1305137 | AH131: 495.7056486 | AI131: 495.6008375 | AJ131: 497.0708399 | AK131: 412.6211921 | AL131: 409.1839714 | AM131: 364.8279217 | AU131: 364.8279217 | AV131: 0 | AW131: 0
A132: 2013-05-26 | B132: 21 | C132: 0.8520285714 | D132: 465.2438112 | E132: 412.7771698 | F132: 556.16165 | H132: 503.497764 | I132: 0 | J132: 442.3202381 | K132: 338.2553429 | L132: 363.9184434 | M132: 372.8562231 | S132: 0 | T132: 0 | U132: 0 | V132: 0 | W132: 478.3731455 | X132: 239.8630834 | Y132: 439.5530197 | Z132: 425.84388 | AA132: 365.2220471 | AB132: 528.2577143 | AC132: 454.949176 | AD132: 438.7606331 | AE132: 439.6467429 | AF132: 306.4374435 | AG132: 476.4369106 | AH132: 529.138385 | AI132: 532.6 | AJ132: 484.05 | AK132: 403.8700631 | AL132: 412.3818286 | AM132: 367.6791271 | AU132: 367.6791271 | AV132: 0 | AW132: 0
A133: 2013-06-02 | B133: 22 | C133: 0.8554 | D133: 466.6473885 | E133: 412.5902144 | F133: 569.61086 | H133: 488.47617 | I133: 0 | J133: 439.4531105 | K133: 339.5938 | L133: 358.121764 | M133: 337.814568 | S133: 0 | T133: 0 | U133: 0 | V133: 0 | W133: 481.754779 | X133: 266.859138 | Y133: 441.292306 | Z133: 423.16638 | AA133: 377.06032 | AB133: 526.071 | AC133: 432.686982 | AD133: 438.30696 | AE133: 438.8202 | AF133: 307.7777102 | AG133: 478.3062339 | AH133: 510.264081 | AI133: 515.3 | AJ133: 444.67 | AK133: 415.12562 | AL133: 410.592 | AM133: 369.1340125 | AU133: 369.1340125 | AV133: 0 | AW133: 0
A134: 2013-06-09 | B134: 23 | C134: 0.852 | D134: 464.3918016 | E134: 408.4914 | F134: 584.88948 | H134: 486.5346 | I134: 0 | J134: 442.6095696 | K134: 358.692 | L134: 333.32796 | M134: 343.29636 | S134: 0 | T134: 0 | U134: 0 | V134: 0 | W134: 487.261356 | X134: 301.19904 | Y134: 414.80472 | Z134: 437.99616 | AA134: 393.64956 | AB134: 519.72 | AC134: 409.58196 | AD134: 445.68972 | AE134: 441.336 | AF134: 300.4847232 | AG134: 483.4212216 | AH134: 494.5941792 | AI134: 499.6999596 | AJ134: 428.0900412 | AK134: 418.9461216 | AL134: 408.96 | AM134: 367.6667976 | AU134: 367.6667976 | AV134: 0 | AW134: 0
A135: 2013-06-16 | B135: 24 | C135: 0.8509071429 | D135: 463.5873154 | E135: 406.1549974 | F135: 603.5484364 | H135: 485.5361248 | I135: 0 | J135: 453.6156197 | K135: 358.2319071 | L135: 357.0576553 | M135: 304.7864295 | S135: 0 | T135: 0 | U135: 0 | V135: 0 | W135: 493.691389 | X135: 223.4056704 | Y135: 414.2726516 | Z135: 433.0947176 | AA135: 405.6699804 | AB135: 517.3515429 | AC135: 406.0273614 | AD135: 462.6552317 | AE135: 451.8316929 | AF135: 303.2895137 | AG135: 472.6631761 | AH135: 485.6130468 | AI135: 490.4999767 | AJ135: 421.960002 | AK135: 416.9703676 | AL135: 409.2863357 | AM135: 367.1951928 | AU135: 367.1951928 | AV135: 0 | AW135: 0
A136: 2013-06-23 | B136: 25 | C136: 0.8531642857 | D136: 479.66611 | E136: 407.8048501 | F136: 619.5423094 | H136: 490.7315655 | I136: 0 | J136: 455.0350865 | K136: 359.1821643 | L136: 342.5795873 | M136: 305.4754725 | S136: 0 | T136: 0 | U136: 0 | V136: 0 | W136: 502.1548892 | X136: 256.1711084 | Y136: 414.7743491 | Z136: 425.5412824 | AA136: 410.3378949 | AB136: 520.4302143 | AC136: 409.8430596 | AD136: 456.9633231 | AE136: 446.2049214 | AF136: 302.3057112 | AG136: 470.5308534 | AH136: 476.4868786 | AI136: 480.3000111 | AJ136: 426.8200051 | AK136: 417.4113946 | AL136: 409.5188571 | AM136: 372.3772884 | AU136: 372.3772884 | AV136: 0 | AW136: 0
A137: 2013-06-30 | B137: 26 | C137: 0.8526785714 | D137: 481.3723545 | E137: 409.313 | F137: 611.2596875 | H137: 499.8487054 | I137: 0 | J137: 463.8998621 | K137: 358.9776786 | L137: 348.2765625 | M137: 339.1017411 | S137: 0 | T137: 0 | U137: 0 | V137: 0 | W137: 500.8026919 | X137: 243.4653125 | Y137: 416.2265179 | Z137: 440.0844643 | AA137: 411.6135268 | AB137: 526.1026786 | AC137: 417.8466071 | AD137: 457.2829911 | AE137: 423.78125 | AF137: 298.3263107 | AG137: 457.1200442 | AH137: 489.5995089 | AI137: 494.2039732 | AJ137: 429.7073661 | AK137: 409.9543848 | AL137: 407.5803571 | AM137: 372.1652906 | AU137: 372.1652906 | AV137: 0 | AW137: 0
A138: 2013-07-07 | B138: 27 | C138: 0.85735 | D138: 485.3421484 | E138: 419.5630842 | F138: 633.4873415 | G138: 564.2867649 | H138: 504.258976 | I138: 0 | J138: 475.4966839 | K138: 350.65615 | L138: 359.2896645 | M138: 340.9595215 | S138: 0 | T138: 0 | U138: 0 | V138: 0 | W138: 512.7051834 | X138: 214.560411 | Y138: 418.506829 | Z138: 448.616961 | AA138: 424.576867 | AB138: 528.98495 | AC138: 410.1305195 | AD138: 461.991621 | AE138: 431.24705 | AF138: 311.2045039 | AG138: 460.0915619 | AH138: 486.0979134 | AI138: 491.2999593 | AJ138: 418.3399887 | AK138: 392.3582541 | AL138: 414.9574 | AM138: 374.2042108 | AU138: 374.2042108 | AV138: 0 | AW138: 0
A139: 2013-07-14 | B139: 28 | C139: 0.8622357143 | D139: 488.1079302 | E139: 432.5802089 | F139: 652.9538617 | H139: 506.4858809 | I139: 0 | J139: 476.7209005 | K139: 352.6544071 | L139: 362.139 | M139: 340.3847929 | S139: 0 | T139: 0 | U139: 0 | V139: 0 | W139: 524.3290616 | X139: 277.9675496 | Y139: 417.5203999 | Z139: 445.0170969 | AA139: 429.5658329 | AB139: 546.6574429 | AC139: 405.0610939 | AD139: 480.1618246 | AE139: 444.0513929 | AF139: 307.2811496 | AG139: 468.1377751 | AH139: 478.7164569 | AI139: 483.8999613 | AJ139: 411.2000397 | AK139: 425.3163904 | AL139: 417.3220857 | AM139: 377.1581977 | AU139: 377.1581977 | AV139: 0 | AW139: 0
A140: 2013-07-21 | B140: 29 | C140: 0.86295 | D140: 489.8271612 | E140: 446.4161163 | F140: 647.160723 | H140: 504.7653435 | I140: 0 | J140: 493.5361203 | K140: 352.94655 | L140: 346.957677 | M140: 340.6667715 | S140: 0 | T140: 0 | U140: 0 | V140: 0 | W140: 527.2303802 | X140: 251.739774 | Y140: 420.1962435 | Z140: 436.583664 | AA140: 434.823246 | AB140: 556.60275 | AC140: 409.1159655 | AD140: 472.396089 | AE140: 432.33795 | AF140: 299.4657415 | AG140: 470.4829288 | AH140: 470.2347985 | AI140: 474.4999611 | AJ140: 414.6800082 | AK140: 425.3021461 | AL140: 415.07895 | AM140: 393.2010964 | AU140: 393.2010964 | AV140: 0 | AW140: 0
A141: 2013-07-28 | B141: 30 | C141: 0.8609857143 | D141: 490.1297214 | E141: 450.8878867 | F141: 648.3394626 | H141: 500.8267801 | I141: 0 | J141: 528.2466783 | K141: 364.1969571 | L141: 375.7686051 | M141: 339.8913304 | S141: 0 | T141: 0 | U141: 0 | V141: 0 | W141: 529.1082119 | X141: 251.1667526 | Y141: 419.2397739 | Z141: 456.6668229 | AA141: 428.9430829 | AB141: 554.4748 | AC141: 379.1436691 | AD141: 474.3342497 | AE141: 455.4614429 | AF141: 301.4040636 | AG141: 472.0199201 | AH141: 406.3579922 | AI141: 409.6000056 | AJ141: 364.1299725 | AK141: 431.9088342 | AL141: 413.2731429 | AM141: 392.3060743 | AU141: 392.3060743 | AV141: 0 | AW141: 0
A142: 2013-08-04 | B142: 31 | C142: 0.8681714286 | D142: 494.9482646 | E142: 457.5020341 | F142: 660.4180057 | H142: 543.8659914 | I142: 0 | J142: 530.99726 | K142: 372.4455429 | L142: 363.6075577 | M142: 342.7280349 | S142: 0 | T142: 0 | U142: 0 | V142: 0 | W142: 542.885665 | X142: 198.1080383 | Y142: 422.7387137 | Z142: 443.6529634 | AA142: 437.2719034 | AB142: 560.8387429 | AC142: 371.803096 | AD142: 467.9878086 | AE142: 457.5263429 | AF142: 323.6837396 | AG142: 462.8207127 | AH142: 409.8436864 | AI142: 412.6999607 | AJ142: 372.6400133 | AK142: 427.4274471 | AL142: 414.9859429 | AM142: 395.5802278 | AU142: 395.5802278 | AV142: 0 | AW142: 0
A143: 2013-08-11 | B143: 32 | C143: 0.8636571429 | D143: 496.5785884 | E143: 471.4168875 | F143: 657.1135371 | H143: 541.0380171 | I143: 0 | J143: 534.4302627 | K143: 370.5089143 | L143: 349.4529531 | M143: 406.1347714 | S143: 0 | T143: 0 | U143: 0 | V143: 0 | W143: 546.1416 | X143: 221.1566846 | Y143: 412.8626606 | Z143: 452.7981669 | AA143: 442.8488366 | AB143: 557.0588571 | AC143: 373.859904 | AD143: 480.0033669 | AE143: 442.1924571 | AF143: 324.0328461 | AG143: 457.1658538 | AH143: 422.3939845 | AI143: 425.7999855 | AJ143: 378.0299861 | AK143: 420.4073966 | AL143: 419.7373714 | AM143: 393.5233044 | AU143: 393.5233044 | AV143: 0 | AW143: 0
A144: 2013-08-18 | B144: 33 | C144: 0.8562428571 | D144: 492.3155824 | E144: 473.5536746 | F144: 647.0884144 | H144: 536.9841454 | I144: 0 | J144: 529.0552509 | K144: 367.3281857 | L144: 342.120396 | M144: 425.3557641 | S144: 0 | T144: 0 | U144: 0 | V144: 0 | W144: 541.7236341 | X144: 198.2544711 | Y144: 409.3183354 | Z144: 452.404476 | AA144: 438.9614631 | AB144: 557.4141 | AC144: 369.0492339 | AD144: 453.2778437 | AE144: 452.9524714 | AF144: 302.6875868 | AG144: 438.2111375 | AH144: 419.2849186 | AI144: 423.2000015 | AJ144: 368.2900033 | AK144: 414.7404933 | AL144: 415.2777857 | AM144: 345.1357408 | AU144: 345.1357408 | AV144: 0 | AW144: 0
A145: 2013-08-25 | B145: 34 | C145: 0.8553214286 | D145: 491.7857869 | E145: 466.9473381 | F145: 658.6744789 | H145: 534.4561479 | I145: 0 | J145: 540.6709134 | K145: 366.9328929 | L145: 354.5307321 | M145: 424.8980261 | S145: 0 | T145: 0 | U145: 0 | V145: 0 | W145: 543.7537766 | X145: 157.4903346 | Y145: 403.3781389 | Z145: 450.1727743 | AA145: 440.4648761 | AB145: 561.9461786 | AC145: 359.2521064 | AD145: 458.9654786 | AE145: 446.4777857 | AF145: 318.316765 | AG145: 432.6703319 | AH145: 417.448948 | AI145: 422.000026 | AJ145: 358.1700393 | AK145: 414.2742497 | AL145: 419.1075 | AM145: 344.7643299 | AU145: 344.7643299 | AV145: 0 | AW145: 0
A146: 2013-09-01 | B146: 35 | C146: 0.8577857143 | D146: 493.2026819 | E146: 479.5022143 | F146: 655.5026871 | H146: 582.7195693 | I146: 0 | J146: 524.0898299 | K146: 367.9900714 | L146: 355.2691093 | M146: 393.7493764 | S146: 0 | T146: 0 | U146: 0 | V146: 0 | W146: 553.1894036 | X146: 180.4695364 | Y146: 402.0355864 | Z146: 450.8693271 | AA146: 441.7339093 | AB146: 568.7119286 | AC146: 355.8952929 | AD146: 467.8620621 | AE146: 452.9108571 | AF146: 317.3377392 | AG146: 413.9582932 | AH146: 406.8243227 | AI146: 410.800012 | AJ146: 355.0399947 | AK146: 405.2777591 | AL146: 424.6039286 | AM146: 345.7576382 | AU146: 345.7576382 | AV146: 0 | AW146: 0
A147: 2013-09-08 | B147: 36 | C147: 0.8457 | D147: 486.2537358 | E147: 472.8342528 | F147: 655.510527 | H147: 576.310722 | I147: 0 | J147: 528.7435644 | K147: 362.8053 | L147: 355.194 | M147: 373.537233 | S147: 0 | T147: 0 | U147: 0 | V147: 0 | W147: 549.9017536 | X147: 214.368036 | Y147: 401.216994 | Z147: 442.859262 | AA147: 436.88862 | AB147: 557.3163 | AC147: 343.988475 | AD147: 453.354399 | AE147: 446.5296 | AF147: 311.789716 | AG147: 399.168624 | AH147: 396.4140051 | AI147: 400.2000397 | AJ147: 347.0999744 | AK147: 408.1751599 | AL147: 429.6156 | AM147: 340.8861091 | AU147: 340.8861091 | AV147: 0 | AW147: 0
A148: 2013-09-15 | B148: 37 | C148: 0.8413285714 | D148: 483.7402872 | E148: 468.8858741 | F148: 643.8014494 | H148: 573.2223956 | I148: 0 | J148: 521.6509733 | K148: 371.0259 | L148: 346.4759323 | M148: 368.1737961 | S148: 0 | T148: 0 | U148: 0 | V148: 0 | W148: 543.3264996 | X148: 178.6392956 | Y148: 402.8365333 | Z148: 441.8657657 | AA148: 435.3875357 | AB148: 551.0702143 | AC148: 335.4461147 | AD148: 448.3944754 | AE148: 440.0148429 | AF148: 312.6209547 | AG148: 382.0442755 | AH148: 390.0692069 | AI148: 393.9999752 | AJ148: 338.8699855 | AK148: 413.5552276 | AL148: 421.5056143 | AM148: 339.1240667 | AU148: 339.1240667 | AV148: 0 | AW148: 0
A149: 2013-09-22 | B149: 38 | C149: 0.8404428571 | D149: 483.2310264 | E149: 468.1300332 | F149: 646.9476981 | H149: 574.8545099 | I149: 0 | J149: 498.0697174 | K149: 380.7206143 | L149: 342.3123757 | M149: 367.7861987 | S149: 0 | T149: 0 | U149: 0 | V149: 0 | W149: 544.381762 | X149: 157.314094 | Y149: 389.0746163 | Z149: 448.2417934 | AA149: 433.4752124 | AB149: 550.4900714 | AC149: 333.0675043 | AD149: 442.0057074 | AE149: 452.9987 | AF149: 303.2481715 | AG149: 366.9598753 | AH149: 384.1835297 | AI149: 388.1000387 | AJ149: 333.1700383 | AK149: 420.9931232 | AL149: 423.5832 | AM149: 389.846395 | AU149: 389.846395 | AV149: 0 | AW149: 0
A150: 2013-09-29 | B150: 39 | C150: 0.8417871429 | D150: 484.0039529 | E150: 462.9425228 | F150: 656.4340319 | H150: 589.8907582 | I150: 0 | J150: 511.7036323 | K150: 381.3295757 | L150: 348.7019061 | M150: 368.3744716 | S150: 0 | T150: 0 | U150: 0 | V150: 0 | W150: 548.5732788 | X150: 168.6773077 | Y150: 392.180212 | Z150: 447.1573303 | AA150: 432.5523234 | AB150: 548.8452171 | AC150: 329.3576375 | AD150: 442.7126942 | AE150: 452.8814829 | AF150: 295.6284052 | AG150: 352.1188042 | AH150: 383.9280177 | AI150: 387.599964 | AJ150: 336.1000158 | AK150: 410.4117221 | AL150: 428.4696557 | AM150: 390.469953 | AU150: 390.469953 | AV150: 0 | AW150: 0
A151: 2013-10-06 | B151: 40 | C151: 0.8396928571 | D151: 482.7997975 | E151: 453.7146003 | F151: 651.26578 | H151: 593.5117053 | I151: 0 | J151: 491.5532596 | K151: 380.3808643 | L151: 362.5373911 | M151: 367.4579912 | S151: 0 | T151: 0 | U151: 0 | V151: 0 | W151: 544.5792716 | X151: 168.2576547 | Y151: 402.9602052 | Z151: 436.3547901 | AA151: 436.7914304 | AB151: 544.1209714 | AC151: 335.7679828 | AD151: 430.6784664 | AE151: 453.4341429 | AF151: 295.5202446 | AG151: 341.2285054 | AH151: 381.429494 | AI151: 385.1000221 | AJ151: 333.6199645 | AK151: 402.9691899 | AL151: 440.83875 | AM151: 389.4985012 | AU151: 389.4985012 | AV151: 0 | AW151: 0
A152: 2013-10-13 | B152: 41 | C152: 0.8465357143 | D152: 486.7342481 | E152: 460.2292995 | F152: 614.2547796 | H152: 598.3483736 | I152: 0 | J152: 536.7052513 | K152: 395.3321786 | L152: 350.3642014 | M152: 353.1831654 | S152: 0 | T152: 0 | U152: 0 | V152: 0 | W152: 534.2995177 | X152: 176.4180429 | Y152: 407.6408079 | Z152: 455.5547293 | AA152: 444.9137754 | AB152: 546.8620714 | AC152: 341.0777046 | AD152: 428.194695 | AE152: 444.43125 | AF152: 299.414349 | AG152: 339.2863504 | AH152: 383.0429929 | AI152: 386.6999692 | AJ152: 335.4099787 | AK152: 411.7448977 | AL152: 452.8966071 | AM152: 392.6726173 | AU152: 392.6726173 | AV152: 0 | AW152: 0
A153: 2013-10-20 | B153: 42 | C153: 0.8467785714 | D153: 486.8738841 | E153: 454.1087187 | F153: 613.9568032 | H153: 615.4132624 | I153: 0 | J153: 507.3809982 | K153: 395.4455929 | L153: 365.1393878 | M153: 353.2844878 | S153: 0 | T153: 0 | U153: 0 | V153: 0 | W153: 533.8718436 | X153: 176.4686543 | Y153: 421.5856474 | Z153: 441.9252686 | AA153: 418.8928915 | AB153: 525.8494929 | AC153: 340.4219213 | AD153: 431.1965841 | AE153: 393.7520357 | AF153: 298.2862196 | AG153: 331.1284418 | AH153: 391.3425363 | AI153: 395.5000407 | AJ153: 337.1900215 | AK153: 431.3488349 | AL153: 464.8814357 | AM153: 365.8010606 | AU153: 365.8010606 | AV153: 0 | AW153: 0
A154: 2013-10-27 | B154: 43 | C154: 0.8497642857 | D154: 487.9996598 | E154: 463.7894504 | F154: 593.3734054 | H154: 597.2058424 | I154: 0 | J154: 525.2082886 | K154: 396.8399214 | L154: 356.901 | M154: 353.6633981 | S154: 0 | T154: 0 | U154: 0 | V154: 0 | W154: 527.1099 | X154: 258.2943523 | Y154: 408.3797204 | Z154: 440.9851761 | AA154: 416.9878326 | AB154: 527.7036214 | AC154: 345.0382906 | AD154: 440.2118906 | AE154: 447.8257786 | AF154: 310.6869942 | AG154: 330.5684193 | AH154: 391.0187426 | AI154: 394.69996 | AJ154: 343.0699816 | AK154: 413.7017941 | AL154: 469.0698857 | AM154: 367.0908635 | AU154: 367.0908635 | AV154: 0 | AW154: 0
A155: 2013-11-03 | B155: 44 | C155: 0.8515428571 | D155: 489.6132145 | E155: 448.0290558 | F155: 606.6817086 | H155: 580.3605189 | I155: 0 | J155: 527.5867464 | K155: 397.6705143 | L155: 367.9857303 | M155: 354.4036217 | S155: 0 | T155: 0 | U155: 0 | V155: 0 | W155: 524.9455429 | X155: 196.2039897 | Y155: 407.6420811 | Z155: 432.4730709 | AA155: 415.2037817 | AB155: 548.3936 | AC155: 344.8493109 | AD155: 428.1983257 | AE155: 447.06 | AF155: 299.1542438 | AG155: 334.5657387 | AH155: 395.7094883 | AI155: 399.7999675 | AJ155: 342.4299924 | AK155: 413.3421387 | AL155: 513.4803429 | AM155: 367.859191 | AU155: 367.859191 | AV155: 0 | AW155: 0
A156: 2013-11-10 | B156: 45 | C156: 0.8393071429 | D156: 482.5780226 | E156: 433.5978203 | F156: 560.6235991 | H156: 598.1406284 | I156: 0 | J156: 503.3393759 | K156: 388.5992071 | L156: 361.3301181 | M156: 349.3112398 | S156: 0 | T156: 0 | U156: 0 | V156: 0 | W156: 503.0005789 | X156: 183.6236167 | Y156: 401.7847224 | Z156: 435.2478981 | AA156: 406.7450276 | AB156: 544.7103357 | AC156: 343.0751877 | AD156: 416.5061696 | AE156: 465.8154643 | AF156: 295.3882738 | AG156: 321.5122961 | AH156: 396.7870558 | AI156: 400.7000018 | AJ156: 345.8199739 | AK156: 405.8691266 | AL156: 524.5669643 | AM156: 362.5734677 | AU156: 362.5734677 | AV156: 0 | AW156: 0
A157: 2013-11-17 | B157: 46 | C157: 0.8386428571 | D157: 482.196077 | E157: 432.6340453 | F157: 541.72974 | H157: 589.2304714 | I157: 0 | J157: 525.657569 | K157: 388.2916429 | L157: 366.612725 | M157: 349.0347707 | S157: 0 | T157: 0 | U157: 0 | V157: 0 | W157: 494.2604291 | X157: 193.6426357 | Y157: 397.0973929 | Z157: 423.5398021 | AA157: 406.5992164 | AB157: 549.3110714 | AC157: 339.1052393 | AD157: 402.1544093 | AE157: 455.3830714 | AF157: 294.0912517 | AG157: 318.1791711 | AH157: 395.2578579 | AI157: 399.2000382 | AJ157: 343.9099919 | AK157: 399.3569483 | AL157: 525.8290714 | AM157: 332.20975 | AU157: 332.20975 | AV157: 0 | AW157: 0
A158: 2013-11-24 | B158: 47 | C158: 0.8366357143 | D158: 481.0420263 | E158: 429.5706075 | F158: 548.8162959 | H158: 589.2174345 | I158: 0 | J158: 549.0987441 | K158: 387.3623357 | L158: 351.387 | M158: 348.1994179 | S158: 0 | T158: 0 | U158: 0 | V158: 0 | W158: 495.8256323 | X158: 193.1791864 | Y158: 376.3522097 | Z158: 420.8110316 | AA158: 405.8101532 | AB158: 549.6696643 | AC158: 346.5930774 | AD158: 399.6608807 | AE158: 442.5802929 | AF158: 310.4141882 | AG158: 312.4872878 | AH158: 395.3574615 | AI158: 399.1000001 | AJ158: 346.6099774 | AK158: 394.570538 | AL158: 532.1003143 | AM158: 331.4146649 | AU158: 331.4146649 | AV158: 0 | AW158: 0
A159: 2013-12-01 | B159: 48 | C159: 0.8341714286 | D159: 479.6251312 | E159: 422.402723 | F159: 536.9478069 | H159: 559.9876217 | I159: 0 | J159: 531.4444443 | K159: 386.2213714 | L159: 388.2066994 | M159: 365.0417589 | S159: 0 | T159: 0 | U159: 0 | V159: 0 | W159: 485.1118025 | X159: 209.8691897 | Y159: 357.5759246 | Z159: 400.5440949 | AA159: 403.722288 | AB159: 548.8848 | AC159: 348.6169234 | AD159: 391.3598674 | AE159: 443.7792 | AF159: 308.6376728 | AG159: 334.3210603 | AH159: 395.613212 | AI159: 398.9999601 | AJ159: 351.4999867 | AK159: 397.1527709 | AL159: 538.0405714 | AM159: 330.4384928 | AU159: 330.4384928 | AV159: 0 | AW159: 222.5033833
A160: 2013-12-08 | B160: 49 | C160: 0.8312571429 | D160: 433.6962779 | E160: 420.4132875 | F160: 536.9089886 | H160: 558.9622406 | I160: 0 | J160: 529.4409744 | K160: 375.7282286 | L160: 368.6625429 | M160: 363.7664383 | S160: 0 | T160: 0 | U160: 0 | V160: 0 | W160: 481.6601446 | X160: 182.9098217 | Y160: 353.9243537 | Z160: 417.5820257 | AA160: 402.4365206 | AB160: 543.6421714 | AC160: 352.2285891 | AD160: 377.8562469 | AE160: 452.2038857 | AF160: 333.8432593 | AG160: 345.0929116 | AH160: 393.8767056 | AI160: 396.4000143 | AJ160: 361.0099896 | AK160: 380.6087886 | AL160: 524.5232571 | AM160: 329.2840632 | AU160: 329.2840632 | AV160: 0 | AW160: 258.1573796
A161: 2013-12-15 | B161: 50 | C161: 0.8396071429 | D161: 438.0527685 | E161: 430.4061304 | F161: 540.3711571 | H161: 600.0168486 | I161: 0 | J161: 553.7251088 | K161: 392.0965357 | L161: 371.9459643 | M161: 493.3111768 | S161: 0 | T161: 0 | U161: 0 | V161: 0 | W161: 493.6696559 | X161: 184.7471557 | Y161: 357.4795332 | Z161: 422.6582357 | AA161: 406.3362729 | AB161: 551.6218929 | AC161: 359.9647704 | AD161: 376.6393682 | AE161: 451.7086429 | AF161: 349.5072955 | AG161: 331.8498535 | AH161: 394.4020231 | AI161: 396.3000289 | AJ161: 369.6800325 | AK161: 383.7490775 | AL161: 528.9525 | AM161: 330.1211024 | AU161: 330.1211024 | AV161: 0 | AW161: 270.3656743
A162: 2013-12-22 | B162: 51 | C162: 0.8396785714 | D162: 438.0900353 | E162: 434.7284661 | F162: 543.6498911 | H162: 600.0678943 | I162: 0 | J162: 562.3200601 | K162: 392.1298929 | L162: 371.8012746 | M162: 493.3531446 | S162: 0 | T162: 0 | U162: 0 | V162: 0 | W162: 496.5189177 | X162: 149.882625 | Y162: 353.5718529 | Z162: 420.7041546 | AA162: 406.5891579 | AB162: 550.8291429 | AC162: 357.9297846 | AD162: 368.3250054 | AE162: 456.7851429 | AF162: 338.5524383 | AG162: 342.2855652 | AH162: 395.253516 | AI162: 396.9 | AJ162: 373.84 | AK162: 383.8059912 | AL162: 529.8371786 | AM162: 335.817941 | AU162: 335.817941 | AV162: 0 | AW162: 270.5371305
A163: 2013-12-29 | B163: 52 | C163: 0.83627 | D163: 438.0220024 | E163: 434.2599581 | F163: 538.6498697 | H163: 597.6319928 | I163: 0 | J163: 547.1261352 | K163: 390.53809 | L163: 367.9253492 | M163: 491.3504385 | S163: 0 | T163: 0 | U163: 0 | V163: 0 | W163: 494.4515836 | X163: 180.6510454 | Y163: 355.4063873 | Z163: 395.6142489 | AA163: 404.9386594 | AB163: 546.92058 | AC163: 362.6150347 | AD163: 379.9676372 | AE163: 454.09461 | AF163: 339.5141631 | AG163: 351.0140464 | AH163: 398.02575 | AI163: 399.9 | AJ163: 373.65 | AK163: 382.2304166 | AL163: 527.68637 | AM163: 328.4748137 | AU163: 328.4748137 | AV163: 0 | AW163: 269.6581884
A164: 2014-01-05 | B164: 1 | C164: 0.8327928571 | D164: 436.0218585 | E164: 430.5389169 | F164: 535.6940054 | G164: 589.0595382 | H164: 526.1918389 | I164: 0 | J164: 544.552423 | K164: 388.9142643 | L164: 385.9411938 | M164: 489.3074432 | S164: 0 | T164: 0 | U164: 0 | V164: 0 | W164: 483.4205019 | X164: 179.8832571 | Y164: 353.9286364 | Z164: 403.3465645 | AA164: 450.3660492 | AB164: 543.8137357 | AC164: 361.0989829 | AD164: 385.7579794 | AE164: 458.8688643 | AF164: 288.3764292 | AG164: 359.4022507 | AH164: 403.6902035 | AI164: 406.1999627 | AJ164: 370.9999739 | AK164: 386.9340494 | AL164: 533.8202214 | AM164: 304.7697068 | AU164: 304.7697068 | AV164: 0 | AW164: 323.0986448
A165: 2014-01-12 | B165: 2 | C165: 0.8287642857 | D165: 433.9888826 | E165: 409.402927 | F165: 528.0637399 | G165: 580.5380281 | H165: 477.6002826 | I165: 0 | J165: 550.762765 | K165: 374.6014571 | L165: 389.5772278 | M165: 291.3603723 | S165: 0 | T165: 0 | U165: 0 | V165: 0 | W165: 465.0713073 | X165: 207.1330579 | Y165: 353.2856397 | Z165: 401.4202694 | AA165: 440.0572604 | AB165: 538.6967857 | AC165: 356.783025 | AD165: 370.8554426 | AE165: 443.3888929 | AF165: 285.8805 | AG165: 338.6457672 | AH165: 400.1121965 | AI165: 402.9000281 | AJ165: 363.8000065 | AK165: 387.117704 | AL165: 532.8954357 | AM165: 323.0999725 | AU165: 323.0999725 | AV165: 0 | AW165: 246.5739503
A166: 2014-01-19 | B166: 3 | C166: 0.8294142857 | D166: 434.3292601 | E166: 394.695035 | F166: 511.5827314 | G166: 609.3169297 | H166: 460.3912817 | I166: 0 | J166: 503.7254411 | K166: 374.8952571 | L166: 367.7042353 | M166: 291.5888863 | S166: 0 | T166: 0 | U166: 0 | V166: 0 | W166: 451.4777774 | X166: 236.88072 | Y166: 351.605304 | Z166: 401.2706314 | AA166: 430.4577201 | AB166: 529.1663143 | AC166: 353.7866636 | AD166: 366.1283481 | AE166: 440.4189857 | AF166: 298.1473139 | AG166: 352.075499 | AH166: 392.342121 | AI166: 394.7000115 | AJ166: 361.6300198 | AK166: 386.4830871 | AL166: 537.4604571 | AM166: 325.6618887 | AU166: 325.6618887 | AV166: 0 | AW166: 255.6420711
A167: 2014-01-26 | B167: 4 | C167: 0.8250357143 | D167: 474.3723522 | E167: 381.1598997 | F167: 508.8820286 | G167: 575.6866554 | H167: 461.2939686 | I167: 0 | J167: 490.2928189 | K167: 372.9161429 | L167: 360.9778761 | M167: 290.0495557 | S167: 0 | T167: 0 | U167: 0 | V167: 0 | W167: 446.6080656 | X167: 235.6302 | Y167: 349.74914 | Z167: 417.5093232 | AA167: 421.6592529 | AB167: 519.7725 | AC167: 353.9320711 | AD167: 355.1448736 | AE167: 437.2689286 | AF167: 332.0359532 | AG167: 353.7258946 | AH167: 394.6175123 | AI167: 397.1999966 | AJ167: 360.9800212 | AK167: 375.9276882 | AL167: 544.5235714 | AM167: 343.3141089 | AU167: 343.3141089 | AV167: 0 | AW167: 287.0381754
A168: 2014-02-02 | B168: 5 | C168: 0.8236571429 | D168: 473.5797124 | E168: 373.238587 | F168: 508.9212754 | G168: 598.0294471 | H168: 454.0327634 | I168: 0 | J168: 474.4541892 | K168: 372.2930286 | L168: 364.96248 | M168: 289.5649051 | S168: 0 | T168: 0 | U168: 0 | V168: 0 | W168: 443.1576191 | X168: 191.475576 | Y168: 347.0644103 | Z168: 394.9436 | AA168: 408.3856846 | AB168: 518.904 | AC168: 355.3504011 | AD168: 355.045648 | AE168: 442.3038857 | AF168: 327.9180882 | AG168: 371.3497764 | AH168: 401.4522908 | AI168: 404.3000157 | AJ168: 364.3599748 | AK168: 372.4655847 | AL168: 566.6761143 | AM168: 353.8710305 | AU168: 353.8710305 | AV168: 0 | AW168: 232.5678309
A169: 2014-02-09 | B169: 6 | C169: 0.8285785714 | D169: 476.4093955 | E169: 375.3245498 | F169: 514.5058639 | G169: 608.5706605 | H169: 458.0382343 | I169: 0 | J169: 476.7699101 | K169: 364.5745714 | L169: 376.8458201 | M169: 291.2950826 | S169: 0 | T169: 0 | U169: 0 | V169: 0 | W169: 446.3472884 | X169: 236.64204 | Y169: 349.1381526 | Z169: 386.7556198 | AA169: 403.6751942 | AB169: 494.6614071 | AC169: 363.5885629 | AD169: 370.3829072 | AE169: 446.60385 | AF169: 298.8154274 | AG169: 389.4079827 | AH169: 403.5039616 | AI169: 406.4999843 | AJ169: 364.4800306 | AK169: 373.8548171 | AL169: 579.1764214 | AM169: 340.2216529 | AU169: 340.2216529 | AV169: 0 | AW169: 271.7406283
A170: 2014-02-16 | B170: 7 | C170: 0.8253642857 | D170: 474.5612715 | E170: 370.5043771 | F170: 513.2527811 | G170: 592.6964046 | H170: 454.5528731 | I170: 0 | J170: 475.4430082 | K170: 363.1602857 | L170: 368.376588 | M170: 290.1650683 | S170: 0 | T170: 0 | U170: 0 | V170: 0 | W170: 443.295712 | X170: 235.72404 | Y170: 366.6680839 | Z170: 412.4427872 | AA170: 403.3720337 | AB170: 477.0605571 | AC170: 366.874425 | AD170: 371.1828266 | AE170: 444.0459857 | AF170: 306.4817774 | AG170: 421.0366452 | AH170: 410.9432167 | AI170: 414.3000219 | AJ170: 367.220005 | AK170: 374.0860454 | AL170: 570.3267214 | AM170: 334.5273257 | AU170: 334.5273257 | AV170: 0 | AW170: 263.5635774
A171: 2014-02-23 | B171: 8 | C171: 0.8218942857 | D171: 472.5661191 | E171: 372.1915397 | F171: 509.4018593 | G171: 576.2975612 | H171: 443.7653817 | I171: 0 | J171: 456.3656786 | K171: 361.6334857 | L171: 361.44445 | M171: 288.9451551 | S171: 0 | T171: 0 | U171: 0 | V171: 0 | W171: 440.4833134 | X171: 201.1997211 | Y171: 358.3952222 | Z171: 402.6706674 | AA171: 401.6761753 | AB171: 479.1643686 | AC171: 369.2277889 | AD171: 362.8170135 | AE171: 434.7820771 | AF171: 305.6804022 | AG171: 405.7478396 | AH171: 419.3064883 | AI171: 422.5000177 | AJ171: 377.7099845 | AK171: 373.5991159 | AL171: 546.5597 | AM171: 331.6665625 | AU171: 331.6665625 | AV171: 0 | AW171: 296.5558962
A172: 2014-03-02 | B172: 9 | C172: 0.8236971429 | D172: 473.6027113 | E172: 374.1759589 | F172: 510.3298018 | G172: 586.1474172 | H172: 444.4999262 | I172: 0 | J172: 463.7741922 | K172: 372.3111086 | L172: 360.5734243 | M172: 289.5789675 | S172: 0 | T172: 0 | U172: 0 | V172: 0 | W172: 442.6018985 | X172: 201.6410606 | Y172: 359.1813761 | Z172: 375.5976602 | AA172: 402.5572677 | AB172: 486.8050114 | AC172: 377.66514 | AD172: 381.6600711 | AE172: 434.9120914 | AF172: 317.9120076 | AG172: 421.4302284 | AH172: 421.1763484 | AI172: 423.5000146 | AJ172: 390.9100253 | AK172: 377.2831916 | AL172: 540.3453257 | AM172: 367.2976759 | AU172: 367.2976759 | AV172: 0 | AW172: 309.6112821
A173: 2014-03-09 | B173: 10 | C173: 0.8251428571 | D173: 430.5062386 | E173: 373.9118354 | F173: 500.2016 | G173: 600.3920135 | H173: 452.8218971 | I173: 0 | J173: 446.3998103 | K173: 372.9645714 | L173: 355.4137829 | M173: 263.15456 | S173: 0 | T173: 0 | U173: 0 | V173: 0 | W173: 438.0339923 | X173: 201.9949714 | Y173: 375.1924571 | Z173: 392.4296914 | AA173: 403.2638171 | AB173: 477.7577143 | AC173: 383.3448686 | AD173: 376.2238857 | AE173: 436.5005714 | AF173: 316.9013127 | AG173: 428.5083202 | AH173: 426.3866574 | AI173: 428.4999863 | AJ173: 398.8600297 | AK173: 375.0417861 | AL173: 535.5177143 | AM173: 355.9719095 | AU173: 355.9719095 | AV173: 0 | AW173: 287.58704
A174: 2014-03-16 | B174: 11 | C174: 0.8343642857 | D174: 435.3173844 | E174: 376.0363025 | F174: 504.4900217 | G174: 597.5923937 | H174: 456.5474499 | I174: 0 | J174: 451.2276266 | K174: 377.1326571 | L174: 371.2587326 | M174: 160.5650631 | S174: 0 | T174: 0 | U174: 0 | V174: 0 | W174: 441.0646409 | X174: 135.5257909 | Y174: 392.3097435 | Z174: 389.3978121 | AA174: 395.5137024 | AB174: 490.6062 | AC174: 392.7519566 | AD174: 391.3085064 | AE174: 443.0474357 | AF174: 323.5588773 | AG174: 437.7035828 | AH174: 446.0376637 | AI174: 449.2 | AJ174: 406.1500114 | AK174: 383.5847127 | AL174: 535.6618714 | AM174: 376.8679134 | AU174: 376.8679134 | AV174: 0 | AW174: 208.4408859
A175: 2014-03-23 | B175: 12 | C175: 0.83635 | D175: 445.2565148 | E175: 377.6555152 | F175: 517.70065 | G175: 654.127902 | H175: 452.5406215 | I175: 0 | J175: 441.8657846 | K175: 378.0302 | L175: 391.9387005 | M175: 160.947194 | S175: 0 | T175: 0 | U175: 0 | V175: 0 | W175: 447.590731 | X175: 135.8483305 | Y175: 407.5951725 | Z175: 429.0224595 | AA175: 413.223808 | AB175: 512.68255 | AC175: 394.0295755 | AD175: 401.849448 | AE175: 448.2836 | AF175: 311.9540337 | AG175: 436.0339161 | AH175: 465.2638409 | AI175: 468.5999633 | AJ175: 421.810028 | AK175: 376.9159309 | AL175: 534.42765 | AM175: 338.3622868 | AU175: 338.3622868 | AV175: 0 | AW175: 326.4023145
A176: 2014-03-30 | B176: 13 | C176: 0.8316571429 | D176: 505.5852517 | E176: 375.5015166 | F176: 517.2907429 | G176: 604.4002585 | H176: 450.0013634 | I176: 0 | J176: 443.5665826 | K176: 375.9090286 | L176: 388.9660457 | M176: 346.6679634 | S176: 0 | T176: 0 | U176: 0 | V176: 0 | W176: 448.4788832 | X176: 237.52128 | Y176: 420.9931623 | Z176: 413.0342034 | AA176: 420.9515794 | AB176: 528.1022857 | AC176: 435.6053783 | AD176: 407.5203166 | AE176: 436.62 | AF176: 324.525092 | AG176: 435.1790708 | AH176: 475.3795575 | AI176: 477.5000237 | AJ176: 447.7599643 | AK176: 379.3658947 | AL176: 508.9741714 | AM176: 371.0012534 | AU176: 371.0012534 | AV176: 0 | AW176: 339.8733246
A177: =A176+7 -> 2014-04-06 | B177: 14 | C177: 0.8279571429 | D177: 524.8836791 | E177: 396.5451058 | F177: 542.0055844 | G177: 511.9461036 | H177: 467.9530976 | I177: 0 | J177: 468.7994354 | K177: 374.2366286 | L177: 371.7693163 | M177: 474.899658 | S177: 0 | T177: 0 | U177: 0 | V177: 0 | W177: 467.4872883 | X177: 228.0690746 | Y177: 437.57535 | Z177: 422.0842719 | AA177: 425.6858854 | AB177: 534.8603143 | AC177: 444.3645986 | AD177: 425.2801864 | AE177: 442.9570714 | AF177: 321.6955446 | AG177: 436.7184144 | AH177: 479.5137456 | AI177: 481.599984 | AJ177: 452.3399785 | AK177: 390.8395704 | AL177: 491.8065429 | AM177: 372.9667907 | AU177: 372.9667907 | AV177: 0 | AW177: 410.9896461
A178: 2014-04-13 | B178: 15 | C178: 0.8267357143 | D178: 524.1093541 | E178: 418.3679547 | F178: 547.2411714 | G178: 501.23862 | H178: 566.2230234 | I178: 0 | J178: 487.0364578 | K178: 373.6845429 | L178: 393.8155575 | M178: 470.611038 | S178: 0 | T178: 0 | U178: 0 | V178: 0 | W178: 489.3785921 | X178: 237.8022609 | Y178: 469.5858857 | Z178: 440.6832051 | AA178: 435.1854126 | AB178: 551.4327214 | AC178: 435.6483846 | AD178: 456.5069267 | AE178: 453.0511714 | AF178: 324.8453786 | AG178: 446.6730707 | AH178: 486.2144918 | AI178: 490.6999718 | AJ178: 427.7900137 | AK178: 393.2981863 | AL178: 491.0810143 | AM178: 410.8513563 | AU178: 410.8513563 | AV178: 0 | AW178: 284.9427313
A179: 2014-04-20 | B179: 16 | C179: 0.8253142857 | D179: 564.0773073 | E179: 433.9221907 | F179: 548.9825566 | G179: 455.601794 | H179: 565.2495011 | I179: 0 | J179: 492.2198334 | K179: 384.5964571 | L179: 394.062812 | M179: 456.0109023 | S179: 0 | T179: 0 | U179: 0 | V179: 0 | W179: 496.9303309 | X179: 239.9023566 | Y179: 486.1101143 | Z179: 427.917204 | AA179: 435.3945514 | AB179: 565.3402857 | AC179: 440.6765629 | AD179: 455.994396 | AE179: 453.0975429 | AF179: 318.7017139 | AG179: 423.0316736 | AH179: 481.5205307 | AI179: 486.0001682 | AJ179: 423.2601465 | AK179: 402.1326526 | AL179: 476.2063429 | AM179: 376.0022944 | AU179: 376.0022944 | AV179: 0 | AW179: 334.7144617
A180: 2014-04-27 | B180: 17 | C180: 0.8229857143 | D180: 562.4857992 | E180: 417.9450651 | F180: 545.1951163 | G180: 410.6018928 | H180: 572.460633 | I180: 0 | J180: 491.5206464 | K180: 373.6355143 | L180: 368.4589341 | M180: 454.7242967 | S180: 0 | T180: 0 | U180: 0 | V180: 0 | W180: 489.1692317 | X180: 241.7602834 | Y180: 499.7909944 | Z180: 434.4376989 | AA180: 442.3301319 | AB180: 562.0992429 | AC180: 440.6430111 | AD180: 457.3167017 | AE180: 440.2973571 | AF180: 317.3912715 | AG180: 446.9476578 | AH180: 477.8327235 | AI180: 481.1 | AJ180: 435.3398252 | AK180: 416.835022 | AL180: 474.8627571 | AM180: 394.3719561 | AU180: 394.3719561 | AV180: 0 | AW180: 478.4509749
A181: 2014-05-04 | B181: 18 | C181: 0.8223785714 | D181: 562.0708355 | E181: 411.4096832 | F181: 549.8669842 | G181: 482.9817837 | H181: 511.8401991 | I181: 0 | J181: 485.9966235 | K181: 373.3598714 | L181: 368.5982995 | M181: 426.682898 | S181: 0 | T181: 0 | U181: 0 | V181: 0 | W181: 481.9798415 | X181: 230.3400141 | Y181: 505.4174224 | Z181: 415.2518359 | AA181: 447.6206564 | AB181: 560.8621857 | AC181: 441.8640064 | AD181: 461.0583223 | AE181: 437.5054 | AF181: 311.6537644 | AG181: 447.9533086 | AH181: 479.1250271 | AI181: 481.9000269 | AJ181: 442.9799741 | AK181: 400.8569213 | AL181: 481.0914643 | AM181: 369.0128605 | AU181: 369.0128605 | AV181: 0 | AW181: 323.9760382
A182: 2014-05-11 | B182: 19 | C182: 0.8205685714 | D182: 544.454222 | E182: 412.2372389 | F182: 552.9237205 | G182: 533.1652499 | H182: 501.8433269 | I182: 0 | J182: 485.5044937 | K182: 385.6672286 | L182: 376.7722653 | M182: 425.7437976 | S182: 0 | T182: 0 | U182: 0 | V182: 0 | W182: 483.1886975 | X182: 193.0305507 | Y182: 499.3159757 | Z182: 437.5189566 | AA182: 448.5227811 | AB182: 556.3454914 | AC182: 428.9686321 | AD182: 477.4970574 | AE182: 416.8488343 | AF182: 311.4887323 | AG182: 456.9271265 | AH182: 475.0237818 | AI182: 478.7000109 | AJ182: 427.139995 | AK182: 397.3743624 | AL182: 473.4680657 | AM182: 372.1552541 | AU182: 372.1552541 | AV182: 0 | AW182: 380.3663556
A183: 2014-05-18 | B183: 20 | C183: 0.81555 | D183: 504.4292558 | E183: 398.7403371 | F183: 548.326887 | G183: 460.3746312 | H183: 493.293573 | I183: 0 | J183: 495.2590485 | K183: 383.3085 | L183: 352.611198 | M183: 368.8651095 | S183: 0 | T183: 0 | U183: 0 | V183: 0 | W183: 472.6434798 | X183: 193.5871035 | Y183: 493.3180395 | Z183: 442.68054 | AA183: 447.6472395 | AB183: 543.1563 | AC183: 430.333113 | AD183: 467.489571 | AE183: 428.16375 | AF183: 321.0201348 | AG183: 454.0970167 | AH183: 486.7345234 | AI183: 492.0000291 | AJ183: 418.1500193 | AK183: 401.8078653 | AL183: 463.2324 | AM183: 408.5332168 | AU183: 408.5332168 | AV183: 0 | AW183: 356.6807925
A184: 2014-05-25 | B184: 21 | C184: 0.8117 | D184: 502.0977334 | E184: 393.5024196 | F184: 547.272491 | G184: 478.736845 | H184: 470.753532 | I184: 0 | J184: 470.627475 | K184: 381.499 | L184: 370.467997 | M184: 421.142428 | S184: 0 | T184: 0 | U184: 0 | V184: 0 | W184: 467.8421949 | X184: 236.789124 | Y184: 476.938686 | Z184: 445.809991 | AA184: 448.886334 | AB184: 528.4167 | AC184: 435.282242 | AD184: 490.201864 | AE184: 424.5191 | AF184: 316.2428655 | AG184: 450.4857077 | AH184: 518.2455449 | AI184: 523.6999925 | AJ184: 447.2000273 | AK184: 403.4449329 | AL184: 448.8701 | AM184: 405.6219935 | AU184: 405.6219935 | AV184: 0 | AW184: 376.563864
A185: 2014-06-01 | B185: 22 | C185: 0.8119214286 | D185: 518.3170809 | E185: 394.6311627 | F185: 545.5462463 | G185: 484.2503192 | H185: 468.9901748 | I185: 0 | J185: 424.7902277 | K185: 381.6030714 | L185: 382.6342116 | M185: 337.6131684 | S185: 0 | T185: 0 | U185: 0 | V185: 0 | W185: 467.5679438 | X185: 229.0673926 | Y185: 485.9836903 | Z185: 440.8652165 | AA185: 446.8247198 | AB185: 520.4416357 | AC185: 425.6254513 | AD185: 504.1382534 | AE185: 420.5753 | AF185: 300.0486492 | AG185: 448.6945748 | AH185: 515.8371856 | AI185: 522.6009195 | AJ185: 427.8707528 | AK185: 398.3668944 | AL185: 442.4971786 | AM185: 391.242771 | AU185: 391.242771 | AV185: 0 | AW185: 298.5759861
A186: 2014-06-08 | B186: 23 | C186: 0.8122285714 | D186: 546.1882199 | E186: 395.0484837 | F186: 557.9360503 | G186: 519.126632 | H186: 467.7299451 | I186: 0 | J186: 431.7967907 | K186: 381.7474286 | L186: 378.8965063 | M186: 421.416672 | S186: 0 | T186: 0 | U186: 0 | V186: 0 | W186: 474.2597905 | X186: 190.4757223 | Y186: 493.4288571 | Z186: 454.9292229 | AA186: 445.8241406 | AB186: 511.704 | AC186: 411.5074834 | AD186: 495.2401269 | AE186: 427.2322286 | AF186: 308.6491314 | AG186: 448.4813463 | AH186: 517.791336 | AI186: 524.7 | AJ186: 427.94 | AK186: 394.6128043 | AL186: 449.1624 | AM186: 348.593964 | AU186: 348.593964 | AV186: 0 | AW186: 302.303352
A187: 2014-06-15 | B187: 24 | C187: 0.8049785714 | D187: 582.1010149 | E187: 390.9040341 | F187: 548.2467556 | G187: 483.806611 | H187: 496.0277957 | I187: 0 | J187: 424.0204501 | K187: 378.3399286 | L187: 366.377947 | M187: 334.7261896 | S187: 0 | T187: 0 | U187: 0 | V187: 0 | W187: 472.7202003 | X187: 246.3234429 | Y187: 485.5067258 | Z187: 460.8663317 | AA187: 444.1710761 | AB187: 504.7215643 | AC187: 412.9942561 | AD187: 488.8554366 | AE187: 434.6884286 | AF187: 321.8301109 | AG187: 439.6926584 | AH187: 514.377818 | AI187: 521.0999803 | AJ187: 426.8200045 | AK187: 397.6788143 | AL187: 404.9042214 | AM187: 357.1066868 | AU187: 357.1066868 | AV187: 0 | AW187: 302.0118604
A188: 2014-06-22 | B188: 25 | C188: 0.7985785714 | D188: 577.4730079 | E188: 387.8280861 | F188: 526.6386105 | G188: 495.7737883 | H188: 490.0796835 | I188: 0 | J188: 437.8057684 | K188: 372.1376143 | L188: 386.1366966 | M188: 414.334506 | S188: 0 | T188: 0 | U188: 0 | V188: 0 | W188: 462.5202787 | X188: 366.5475643 | Y188: 479.2190149 | Z188: 452.1472014 | AA188: 437.365512 | AB188: 502.3059214 | AC188: 409.9103807 | AD188: 481.2633761 | AE188: 408.07365 | AF188: 304.4159953 | AG188: 430.0309671 | AH188: 495.9054242 | AI188: 502.099968 | AJ188: 415.2199699 | AK188: 398.7426587 | AL188: 386.5120286 | AM188: 362.4110071 | AU188: 362.4110071 | AV188: 0 | AW188: 279.3587559
A189: 2014-06-29 | B189: 26 | C189: 0.7998642857 | D189: 578.4027415 | E189: 391.9143033 | F189: 534.4613171 | G189: 498.8365616 | H189: 479.6786121 | I189: 0 | J189: 441.1179548 | K189: 371.1370286 | L189: 355.2277279 | M189: 332.5995673 | S189: 0 | T189: 0 | U189: 0 | V189: 0 | W189: 465.1946195 | X189: 188.576004 | Y189: 479.4386529 | Z189: 451.2914286 | AA189: 430.5189531 | AB189: 502.3147714 | AC189: 395.6448703 | AD189: 480.0865429 | AE189: 404.7313286 | AF189: 304.2975693 | AG189: 425.3019183 | AH189: 463.6947528 | AI189: 469.100007 | AJ189: 393.2899898 | AK189: 398.1726014 | AL189: 376.7360786 | AM189: 361.5443362 | AU189: 361.5443362 | AV189: 0 | AW189: 225.4417489
A190: 2014-07-06 | B190: 27 | C190: 0.7966785714 | D190: 570.0704422 | E190: 389.4499462 | F190: 523.5691904 | G190: 486.3279725 | H190: 477.7681393 | I190: 0 | J190: 426.1387471 | K190: 369.6588571 | L190: 369.2047504 | M190: 368.177035 | S190: 0 | T190: 0 | U190: 0 | V190: 0 | W190: 459.4205639 | X190: 246.2214793 | Y190: 467.6742218 | Z190: 452.4018936 | AA190: 431.6882507 | AB190: 500.3141429 | AC190: 354.01209 | AD190: 466.43937 | AE190: 399.1359643 | AF190: 302.033673 | AG190: 414.088187 | AH190: 452.103889 | AI190: 459.8000101 | AJ190: 351.8600222 | AK190: 391.9278556 | AL190: 363.2854286 | AM190: 348.2976739 | AU190: 348.2976739 | AV190: 0 | AW190: 320.9578961
A191: 2014-07-13 | B191: 28 | C191: 0.7941571429 | D191: 574.2757575 | E191: 392.4835782 | F191: 524.5169681 | G191: 451.978893 | H191: 486.2147691 | I191: 0 | J191: 451.4838154 | K191: 368.4889143 | L191: 371.2446396 | M191: 367.011782 | S191: 0 | T191: 0 | U191: 0 | V191: 0 | W191: 461.611694 | X191: 245.4422066 | Y191: 448.5558374 | Z191: 451.6609919 | AA191: 434.2530673 | AB191: 501.1131571 | AC191: 343.5206137 | AD191: 472.189954 | AE191: 416.9325 | AF191: 301.7626399 | AG191: 412.6179237 | AH191: 414.2635694 | AI191: 419.4000257 | AJ191: 347.3599664 | AK191: 390.72182 | AL191: 361.3415 | AM191: 344.0052084 | AU191: 344.0052084 | AV191: 0 | AW191: 275.6678274
A192: 2014-07-20 | B192: 29 | C192: 0.7925857143 | D192: 573.1394165 | E192: 396.5433142 | F192: 519.7143046 | G192: 417.2207659 | H192: 494.0107499 | I192: 0 | J192: 463.2175267 | K192: 367.7597714 | L192: 355.5698031 | M192: 366.285562 | S192: 0 | T192: 0 | U192: 0 | V192: 0 | W192: 461.493231 | X192: 246.5734157 | Y192: 447.6682631 | Z192: 441.9299426 | AA192: 433.5760891 | AB192: 500.9141714 | AC192: 333.8529546 | AD192: 451.6074141 | AE192: 370.9301143 | AF192: 302.6020924 | AG192: 416.4821553 | AH192: 389.1252073 | AI192: 392.8000112 | AJ192: 341.2599851 | AK192: 389.9008911 | AL192: 345.5673714 | AM192: 350.9156606 | AU192: 350.9156606 | AV192: 0 | AW192: 307.6025157
A193: 2014-07-27 | B193: 30 | C193: 0.7912571429 | D193: 569.5085155 | E193: 398.7572022 | F193: 514.4516566 | G193: 464.0794356 | H193: 494.0372223 | I193: 0 | J193: 457.3705245 | K193: 352.9006857 | L193: 351.8008383 | M193: 365.671576 | S193: 0 | T193: 0 | U193: 0 | V193: 0 | W193: 459.6051423 | X193: 233.2467806 | Y193: 445.0584051 | Z193: 433.3398869 | AA193: 432.8334823 | AB193: 497.7007429 | AC193: 338.1753903 | AD193: 453.240004 | AE193: 416.9925143 | AF193: 304.1434997 | AG193: 428.8582064 | AH193: 399.3676343 | AI193: 403.9999929 | AJ193: 339.0300271 | AK193: 389.2361632 | AL193: 341.8230857 | AM193: 374.2246701 | AU193: 374.2246701 | AV193: 0 | AW193: 277.5967434
A194: 2014-08-03 | B194: 31 | C194: 0.7929785714 | D194: 573.4235017 | E194: 407.1897386 | F194: 515.6898246 | G194: 473.9808963 | H194: 495.1120306 | I194: 0 | J194: 466.4230175 | K194: 353.6684429 | L194: 370.2496248 | M194: 321.6479681 | S194: 0 | T194: 0 | U194: 0 | V194: 0 | W194: 463.4659412 | X194: 176.7232044 | Y194: 446.0266571 | Z194: 436.4950546 | AA194: 436.2333717 | AB194: 496.4045857 | AC194: 336.4528781 | AD194: 466.2714 | AE194: 403.6260929 | AF194: 303.4525197 | AG194: 430.5837959 | AH194: 378.6658834 | AI194: 382.0034704 | AJ194: 335.1929937 | AK194: 390.1098524 | AL194: 333.8439786 | AM194: 374.2120594 | AU194: 374.2120594 | AV194: 0 | AW194: 229.4007709
A195: 2014-08-10 | B195: 32 | C195: 0.7953428571 | D195: 575.1331784 | E195: 407.7834177 | F195: 516.4717911 | G195: 469.7376039 | H195: 496.5882197 | I195: 0 | J195: 480.6323695 | K195: 354.7229143 | L195: 365.9292951 | M195: 351.0007097 | S195: 0 | T195: 0 | U195: 0 | V195: 0 | W195: 464.3940109 | X195: 164.2542069 | Y195: 449.5277829 | Z195: 430.6463434 | AA195: 439.1962791 | AB195: 495.4986 | AC195: 329.5025923 | AD195: 444.5091694 | AE195: 405.6248571 | AF195: 295.4048919 | AG195: 416.8862757 | AH195: 379.5519197 | AI195: 383.2965608 | AJ195: 330.7770497 | AK195: 392.2184784 | AL195: 332.4533143 | AM195: 335.148254 | AU195: 335.148254 | AV195: 0 | AW195: 301.1645263
A196: 2014-08-17 | B196: 33 | C196: 0.7993571429 | D196: 571.1042279 | E196: 422.7144456 | F196: 512.2040764 | G196: 455.0796169 | H196: 499.0946193 | I196: 0 | J196: 475.7043102 | K196: 356.5132857 | L196: 384.7945414 | M196: 349.5109171 | S196: 0 | T196: 0 | U196: 0 | V196: 0 | W196: 468.0847288 | X196: 232.6528964 | Y196: 445.7055557 | Z196: 421.6049379 | AA196: 441.4130079 | AB196: 496.4007857 | AC196: 330.9338571 | AD196: 442.6999729 | AE196: 406.8727857 | AF196: 296.9353593 | AG196: 407.6919669 | AH196: 376.9577679 | AI196: 380.3067906 | AJ196: 333.3359254 | AK196: 394.8359859 | AL196: 333.3319286 | AM196: 358.4976099 | AU196: 358.4976099 | AV196: 0 | AW196: 264.89097
A197: 2014-08-24 | B197: 34 | C197: 0.8004142857 | D197: 573.5620695 | E197: 421.730283 | F197: 532.6356864 | G197: 422.991976 | H197: 509.5357301 | I197: 0 | J197: 446.3392603 | K197: 356.9847714 | L197: 368.3026294 | M197: 349.9731423 | S197: 0 | T197: 0 | U197: 0 | V197: 0 | W197: 476.4729648 | X197: 216.159882 | Y197: 427.0770504 | Z197: 404.9936203 | AA197: 441.1563377 | AB197: 494.6560286 | AC197: 330.1708929 | AD197: 446.5911507 | AE197: 399.4067286 | AF197: 304.399794 | AG197: 400.7852021 | AH197: 373.2074361 | AI197: 376.3966588 | AJ197: 331.6670272 | AK197: 393.8372058 | AL197: 333.7727571 | AM197: 361.0348677 | AU197: 361.0348677 | AV197: 0 | AW197: 226.4772221
A198: 2014-08-31 | B198: 35 | C198: 0.7958714286 | D198: 575.5154022 | E198: 418.6013118 | F198: 520.6352124 | G198: 466.841785 | H198: 521.9324829 | I198: 0 | J198: 476.6045807 | K198: 354.9586571 | L198: 369.9449161 | M198: 330.9392574 | S198: 0 | T198: 0 | U198: 0 | V198: 0 | W198: 472.8610419 | X198: 213.4925107 | Y198: 404.0639243 | Z198: 413.9406887 | AA198: 438.6524966 | AB198: 489.4609286 | AC198: 328.4879734 | AD198: 439.6950881 | AE198: 412.2614 | AF198: 283.687734 | AG198: 380.2081557 | AH198: 371.0267201 | AI198: 374.6986562 | AJ198: 323.1988507 | AK198: 397.2869995 | AL198: 329.4907714 | AM198: 338.6625529 | AU198: 338.6625529 | AV198: 0 | AW198: 286.5057556
A199: 2014-09-07 | B199: 36 | C199: 0.7942428571 | D199: 571.4462986 | E199: 420.5563583 | F199: 520.2608411 | G199: 417.9958782 | H199: 541.8086499 | I199: 0 | J199: 480.0732645 | K199: 354.2323143 | L199: 376.8761781 | M199: 347.2747469 | S199: 0 | T199: 0 | U199: 0 | V199: 0 | W199: 475.1185306 | X199: 169.7535259 | Y199: 423.2281913 | Z199: 420.5833626 | AA199: 441.1780799 | AB199: 487.6651143 | AC199: 325.3059894 | AD199: 423.5538309 | AE199: 413.8005286 | AF199: 304.636931 | AG199: 361.8170159 | AH199: 365.8743625 | AI199: 369.4999653 | AJ199: 318.649996 | AK199: 390.4748072 | AL199: 328.0223 | AM199: 304.5119172 | AU199: 304.5119172 | AV199: 0 | AW199: 261.3853243
A200: 2014-09-14 | B200: 37 | C200: 0.7982357143 | D200: 577.225079 | E200: 421.2529335 | F200: 526.7078537 | G200: 460.6719683 | H200: 546.583923 | I200: 0 | J200: 470.3039594 | K200: 356.0131286 | L200: 370.0540948 | M200: 349.0205837 | S200: 0 | T200: 0 | U200: 0 | V200: 0 | W200: 479.333622 | X200: 236.1181243 | Y200: 435.7808235 | Z200: 421.9873104 | AA200: 445.8066641 | AB200: 489.3184929 | AC200: 324.3551001 | AD200: 420.7101332 | AE200: 431.8455214 | AF200: 294.3283462 | AG200: 357.1537276 | AH200: 353.6888127 | AI200: 356.5999915 | AJ200: 315.7699952 | AK200: 386.7063295 | AL200: 343.2413571 | AM200: 339.178497 | AU200: 339.178497 | AV200: 0 | AW200: 257.1755824
A201: 2014-09-21 | B201: 38 | C201: 0.7922428571 | D201: 562.8254082 | E201: 415.6549685 | F201: 528.6398913 | G201: 422.8305497 | H201: 542.480374 | I201: 0 | J201: 463.5858198 | K201: 353.3403143 | L201: 368.5513771 | M201: 349.0305131 | S201: 0 | T201: 0 | U201: 0 | V201: 0 | W201: 476.3395 | X201: 234.3454371 | Y201: 420.142232 | Z201: 423.3745829 | AA201: 446.1277977 | AB201: 485.6448714 | AC201: 323.8768024 | AD201: 414.5806871 | AE201: 427.0189 | AF201: 277.9227555 | AG201: 343.8140693 | AH201: 354.3579951 | AI201: 357.0032491 | AJ201: 319.9029123 | AK201: 388.2204698 | AL201: 332.742 | AM201: 308.3295117 | AU201: 308.3295117 | AV201: 0 | AW201: 224.1968061
... 379 more rows

Sheet SQQ 2013 (hidden)
A1: Great Britain SQQ
E2: % Change | F2: % Change
C3: exchange | E3: on | F3: on
C4: rate | D4: €/kg dw | E4: week | F4: year | G4: p/kg dw
A5: week | B5: Week ending
A6: no | B6: Saturday
A7: 1 | B7: 2011-01-01
A8: 2 | B8: 2011-01-08 | C8: 0.85003 | D8: 4.633954096 | E8: -2.002233436 | F8: -1.017760954 | G8: 393.9
A9: 3 | B9: 2011-01-15 | C9: 0.8362428571 | D9: 4.638604643 | E9: 0.1003580826 | F9: -5.102243924 | G9: 387.9
A10: 4 | B10: 2011-01-22 | C10: 0.8424785714 | D10: 4.732464582 | E10: 2.023451998 | F10: 1.000293059 | G10: 398.7
A11: 5 | B11: 2011-01-29 | C11: 0.8580642857 | D11: 4.578911004 | E11: -3.244685193 | F11: -4.66969067 | G11: 392.9
A12: 6 | B12: 2011-02-05 | C12: 0.8529071429 | D12: 4.608942524 | E12: 0.6558659969 | F12: -4.587129848 | G12: 393.1
A13: 7 | B13: 2011-02-12 | C13: 0.8464571429 | D13: 4.645244042 | E13: 0.7876322583 | F13: -1.364852253 | G13: 393.2
A14: 8 | B14: 2011-02-19 | C14: 0.8407142857 | D14: 4.761427358 | E14: 2.501124036 | F14: 0.9341233352 | G14: 400.3
A15: 9 | B15: 2011-02-26 | C15: 0.8479485714 | D15: 4.786846911 | E15: 0.5338641462 | F15: 3.43698698 | G15: 405.9
A16: 10 | B16: 2011-03-05 | C16: 0.8532428571 | D16: 4.861452944 | E16: 1.558563171 | F16: 7.104282279 | G16: 414.8
A17: 11 | B17: 2011-03-12 | C17: 0.8596428571 | D17: 4.989281263 | E17: 2.629426228 | F17: 10.13860944 | G17: 428.9
A18: 12 | B18: 2011-03-19 | C18: 0.8681214286 | D18: 5.203189152 | E18: 4.287348779 | F18: 14.27730967 | G18: 451.7
A19: 13 | B19: 2011-03-26 | C19: 0.8732714286 | D19: 5.282435505 | E19: 1.523034252 | F19: 14.42970294 | G19: 461.3
A20: 14 | B20: 2011-04-02 | C20: 0.8804428571 | D20: 5.31209943 | E20: 0.5615577362 | F20: 13.56578898 | G20: 467.7
A21: 15 | B21: 2011-04-09 | C21: 0.8786571429 | D21: 5.52889149 | E21: 4.081099434 | F21: 11.02826521 | G21: 485.8
A22: 16 | B22: 2011-04-16 | C22: 0.8847 | D22: 5.970385441 | E22: 7.98521642 | F22: 18.35435507 | G22: 528.2
A23: 17 | B23: 2011-04-23 | C23: 0.8814142857 | D23: 5.958605488 | E23: -0.1973064147 | F23: 20.39589988 | G23: 525.2
A24: 18 | B24: 2011-04-30 | C24: 0.8869071429 | D24: 5.89351438 | E24: -1.092388282 | F24: 18.82858262 | G24: 522.7
A25: 19 | B25: 2011-05-07 | C25: 0.8962428571 | D25: 5.865597654 | E25: -0.4736855521 | F25: 17.10047881 | G25: 525.7
A26: 20 | B26: 2011-05-14 | C26: 0.8789428571 | D26: 6.001527809 | E26: 2.317413565 | F26: 15.57735676 | G26: 527.5
A27: 21 | B27: 2011-05-21 | C27: 0.8770571429 | D27: 6.375867349 | E27: 6.23740406 | F27: 18.69022149 | G27: 559.2
A28: 22 | B28: 2011-05-28 | C28: 0.8698642857 | D28: 6.225109007 | E28: -2.364515025 | F28: 24.018256 | G28: 541.5
A29: 23 | B29: 2011-06-04 | C29: 0.8772857143 | D29: 5.629864843 | E29: -9.561987808 | F29: 9.503806336 | G29: 493.9
A30: 24 | B30: 2011-06-11 | C30: 0.8899071429 | D30: 5.380336632 | E30: -4.43222382 | F30: 5.779731174 | G30: 478.8
A31: 25 | B31: 2011-06-18 | C31: 0.8814571429 | D31: 5.163041717 | E31: -4.038686247 | F31: 10.89819421 | G31: 455.1
A32: 26 | B32: 2011-06-25 | C32: 0.8824571429 | D32: 4.909020268 | E32: -4.919996051 | F32: 9.876768812 | G32: 433.2
A33: 27 | B33: 2011-07-02 | C33: 0.8955857143 | D33: 4.708650364 | E33: -4.081667882 | F33: 6.293919016 | G33: 421.7
A34: 28 | B34: 2011-07-09 | C34: 0.8968928571 | D34: 4.758650898 | E34: 1.061886732 | F34: 14.44864055 | G34: 426.8
A35: 29 | B35: 2011-07-16 | C35: 0.8821142857 | D35: 4.797564294 | E35: 0.8177400796 | F35: 15.13899084 | G35: 423.2
A36: 30 | B36: 2011-07-23 | C36: 0.8791857143 | D36: 4.731651041 | E36: -1.373889933 | F36: 11.85704235 | G36: 416
A37: 31 | B37: 2011-07-30 | C37: 0.8791785714 | D37: 4.667993663 | E37: -1.345352336 | F37: 6.212242727 | G37: 410.4
A38: 32 | B38: 2011-08-06 | C38: 0.8726142857 | D38: 4.742072262 | E38: 1.5869473 | F38: 6.66770299 | G38: 413.8
A39: 33 | B39: 2011-08-13 | C39: 0.87485 | D39: 4.545922158 | E39: -4.136379486 | F39: -0.2957261579 | G39: 397.7
A40: 34 | B40: 2011-08-20 | C40: 0.8741928571 | D40: 4.543619829 | E40: -0.05064603178 | F40: 1.871629179 | G40: 397.2
A41: 35 | B41: 2011-08-27 | C41: 0.8784142857 | D41: 4.524061214 | E41: -0.4304632746 | F41: 2.883939808 | G41: 397.4
A42: 36 | B42: 2011-09-03 | C42: 0.8826428571 | D42: 4.400420814 | E42: -2.732951528 | F42: -0.6522026996 | G42: 388.4
A43: 37 | B43: 2011-09-10 | C43: 0.8739428571 | D43: 4.431639859 | E43: 0.7094558901 | F43: -0.2317461687 | G43: 387.3
A44: 38 | B44: 2011-09-17 | C44: 0.8678642857 | D44: 4.364737739 | E44: -1.509647041 | F44: 2.195446972 | G44: 378.8
A45: 39 | B45: 2011-09-24 | C45: 0.8718785714 | D45: 4.360698983 | E45: -0.0925314581 | F45: 3.197584509 | G45: 380.2
A46: 40 | B46: 2011-10-01 | C46: 0.8696357143 | D46: 4.335148543 | E46: -0.585925332 | F46: 6.143063228 | G46: 377
A47: 41 | B47: 2011-10-08 | C47: 0.8631642857 | D47: 4.322467996 | E47: -0.2925054937 | F47: 8.254334319 | G47: 373.1
A48: 42 | B48: 2011-10-15 | C48: 0.8721 | D48: 4.367618392 | E48: 1.044551325 | F48: 9.685399384 | G48: 380.9
A49: 43 | B49: 2011-10-22 | C49: 0.8720642857 | D49: 4.466413846 | E49: 2.261998288 | F49: 10.6637705 | G49: 389.5
A50: 44 | B50: 2011-10-29 | C50: 0.8734071429 | D50: 4.459546767 | E50: -0.1537492742 | F50: 11.31905982 | G50: 389.5
A51: 45 | B51: 2011-11-05 | C51: 0.8644714286 | D51: 4.551914465 | E51: 2.071235099 | F51: 10.59732512 | G51: 393.5
A52: 46 | B52: 2011-11-12 | C52: 0.8566642857 | D52: 4.624915578 | E52: 1.603745276 | F52: 9.787082889 | G52: 396.2
A53: 47 | B53: 2011-11-19 | C53: 0.8558928571 | D53: 4.779803881 | E53: 3.348997407 | F53: 13.19373869 | G53: 409.1
A54: 48 | B54: 2011-11-26 | C54: 0.8594785714 | D54: 4.992561935 | E54: 4.451187958 | F54: 17.93107771 | G54: 429.1
A55: 49 | B55: 2011-12-03 | C55: 0.8618571429 | D55: 5.071606166 | E55: 1.583239862 | F55: 14.23105315 | G55: 437.1
A56: 50 | B56: 2011-12-10 | C56: 0.8560785714 | D56: 5.333622581 | E56: 5.166339946 | F56: 18.46662892 | G56: 456.6
A57: 51 | B57: 2011-12-17 | C57: 0.8438357143 | D57: 5.515291568 | E57: 3.406108777 | F57: 21.31474422 | G57: 465.4
A58: 52 | B58: 2011-12-24 | C58: 0.83545 | D58: 5.411454905 | E58: -1.882704884 | F58: 16.26189453 | G58: 452.1
A59: 53 | B59: 2011-12-31 | C59: 0.8343571429 | D59: 5.491653112 | E59: 1.482008236 | F59: 16.13618275 | G59: 458.2
A60: 1 | B60: 2012-01-07 | C60: 0.8308842857 | D60: 5.456836864 | E60: -0.6339848346 | G60: 453.4 | H60: change of reporting basis combined
A61: 2 | B61: =B60+7 -> 2012-01-14 | C61: 0.8287785714 | D61: 5.357281369 | E61: -1.824417646 | G61: 444
A62: 3 | B62: =B61+7 -> 2012-01-21 | C62: 0.8326214286 | D62: 5.266499095 | E62: -1.694558641 | F62: 11.28449044 | G62: 438.5
A63: 4 | B63: 2012-01-28 | C63: 0.8355 | D63: 5.250748055 | E63: -0.2990798935 | F63: 14.67241994 | G63: 438.7
A64: 5 | B64: 2012-02-04 | C64: 0.833 | D64: 5.295318127 | E64: 0.8488328087 | F64: 14.89225781 | G64: 441.1
A65: 6 | B65: 2012-02-11 | C65: 0.8335285714 | D65: 5.287161294 | E65: -0.1540385944 | F65: 13.81880576 | G65: 440.7
A66: 7 | B66: 2012-02-18 | C66: 0.8340357143 | D66: 5.301931229 | E66: 0.2793547413 | G66: 442.2
A67: 8 | B67: 2012-02-25 | C67: 0.8415 | D67: 5.244206774 | E67: -1.088743955 | G67: 441.3
A68: 9 | B68: 2012-03-03 | C68: 0.84075 | D68: 5.234611954 | E68: -0.1829603679 | G68: 440.1
A69: 10 | B69: 2012-03-10 | C69: 0.83505 | D69: 5.277528292 | E69: 0.8198571066 | G69: 440.7
A70: 11 | B70: 2012-03-17 | C70: 0.8335357143 | D70: 5.32790608 | E70: 0.9545716375 | F70: 2.39693242 | G70: 444.1
A71: 12 | B71: 2012-03-24 | C71: 0.833 | D71: 5.505402161 | E71: 3.331441625 | F71: 4.220906349 | G71: 458.6
A72: 13 | B72: 2012-03-31 | C72: 0.8357142857 | D72: 5.643076923 | E72: 2.500721259 | F72: 6.230634365 | G72: 471.6
A73: 14 | B73: 2012-04-07 | C73: 0.8283714286 | D73: 5.652053944 | E73: 0.1590802518 | F73: 2.22761568 | G73: 468.2
A74: 15 | B74: 2012-04-14 | C74: 0.8250785714 | D74: 5.65037096 | E74: -0.02977649772 | F74: -5.360030507 | G74: 466.2
A75: 16 | B75: 2012-04-21 | C75: 0.8206642857 | D75: 5.694167617 | E75: 0.7751111704 | F75: -4.437915409 | G75: 467.3
A76: 17 | B76: 2012-04-28 | C76: 0.8167357143 | D76: 5.274656079 | E76: -7.367390046 | F76: -10.50066669 | G76: 430.8
A77: 18 | B77: 2012-05-05 | C77: 0.8126285714 | D77: 5.156107165 | E77: -2.247519296 | F77: -12.09579194 | G77: 419
A78: 19 | B78: 2012-05-12 | C78: 0.80546 | D78: 5.393191468 | E78: 4.598125973 | F78: -10.13635795 | G78: 434.4
A79: 20 | B79: 2012-05-19 | C79: 0.8016928571 | D79: 5.465933694 | E79: 1.348778846 | F79: -14.27152739 | G79: 438.2
A80: 21 | B80: 2012-05-26 | C80: 0.8037642857 | D80: 5.486683196 | E80: 0.3796149627 | F80: -11.86205431 | G80: 441 | H80: Change of reporting basis NSL
A81: 22 | B81: 2012-06-02 | C81: 0.8010642857 | D81: 4.999598748 | E81: -8.877575587 | F81: -11.19504841 | G81: 400.5
A82: 23 | B82: 2012-06-09 | C82: 0.8077571429 | D82: 5.041119148 | E82: 0.8304746492 | F82: -6.304763199 | G82: 407.2
A83: 24 | B83: 2012-06-16 | C83: 0.8084 | D83: 5.222662048 | E83: 3.601242004 | F83: 1.154752085 | G83: 422.2
A84: 25 | B84: 2012-06-23 | C84: 0.80635 | D84: 5.390959261 | E84: 3.222441177 | F84: 9.81741705 | G84: 434.7
A85: 26 | B85: 2012-06-30 | C85: 0.8027142857 | D85: 5.348104645 | E85: -0.7949348871 | F85: 13.58041543 | G85: 429.3
A86: 27 | B86: 2012-07-07 | C86: 0.8011785714 | D86: 5.076271564 | E86: -5.082792854 | F86: 6.674594819 | G86: 406.7
A87: 28 | B87: 2012-07-14 | C87: 0.7905642857 | D87: 5.15454603 | E87: 1.541967649 | F87: 7.440895298 | G87: 407.5
A88: 29 | B88: 2012-07-21 | C88: 0.7831071429 | D88: 5.410498472 | E88: 4.965567117 | F88: 14.34694625 | G88: 423.7
A89: 30 | B89: 2012-07-28 | C89: 0.7812214286 | D89: 5.481160454 | E89: 1.30601611 | F89: 17.42004916 | G89: 428.2
A90: 31 | B90: 2012-08-04 | C90: 0.78565 | D90: 5.375167059 | E90: -1.933776536 | F90: 13.35059362 | G90: 422.3
A91: 32 | B91: 2012-08-11 | C91: 0.7891357143 | D91: 5.109387304 | E91: -4.944585942 | F91: 12.39495809 | G91: 403.2
A92: 33 | B92: 2012-08-18 | C92: 0.7847285714 | D92: 5.3725583 | E92: 5.150734919 | F92: 18.24401034 | G92: 421.6
A93: 34 | B93: 2012-08-25 | C93: 0.7878 | D93: 5.363036304 | E93: -0.1772339405 | F93: 18.54473336 | G93: 422.5
A94: 35 | B94: 2012-09-01 | C94: 0.7928771429 | D94: 5.256804333 | E94: -1.98081767 | F94: 19.46140051 | G94: 416.8
A95: 36 | B95: 2012-09-08 | C95: 0.7937 | D95: 5.212296838 | E95: -0.8466644838 | F95: 17.61553293 | G95: 413.7
A96: 37 | B96: 2012-09-15 | C96: 0.80175 | D96: 5.030246336 | E96: -3.492711699 | F96: 15.24739027 | G96: 403.3
A97: 38 | B97: 2012-09-22 | C97: 0.8025957143 | D97: 4.811887145 | E97: -4.340924416 | F97: 10.34669357 | G97: 386.2
A98: 39 | B98: 2012-09-29 | C98: 0.7967 | D98: 4.755867955 | E98: -1.16418336 | F98: 9.704844201 | G98: 378.9
A99: 40 | B99: 2012-10-06 | C99: 0.8011785714 | D99: 4.569518121 | E99: -3.91831389 | F99: 5.715487661 | G99: 366.1
A100: 41 | B100: 2012-10-13 | C100: 0.8061071429 | D100: 4.525453015 | E100: -0.9643271901 | F100: 3.613745716 | G100: 364.8
A101: 42 | B101: 2012-10-20 | C101: 0.8103642857 | D101: 4.502913152 | E101: -0.4980686557 | F101: 0.8171949031 | G101: 364.9
A102: 43 | B102: 2012-10-27 | C102: 0.8080714286 | D102: 4.511977371 | E102: 0.2012967811 | F102: 1.175693566 | G102: 364.6
A103: 44 | B103: 2012-11-03 | C103: 0.8035357143 | D103: 4.441619628 | E103: -1.559354975 | F103: -2.423042831 | G103: 356.9
A104: 45 | B104: 2012-11-10 | C104: 0.7988428571 | D104: 4.520288274 | E104: 1.771170275 | F104: -2.262253267 | G104: 361.1
A105: 46 | B105: 2012-11-17 | C105: 0.8016928571 | D105: 4.516692356 | E105: -0.07955062907 | F105: -5.504651046 | G105: 362.1
A106: 47 | B106: 2012-11-24 | C106: 0.8059857143 | D106: 4.352434464 | E106: -3.636685429 | F106: -12.82162305 | G106: 350.8
A107: 48 | B107: 2012-12-01 | C107: 0.8095928571 | D107: 4.370097845 | E107: 0.4058276162 | F107: -13.83207407 | G107: 353.8
A108: 49 | B108: 2012-12-08 | C108: 0.8100928571 | D108: 4.431590735 | E108: 1.407128452 | F108: -16.91217991 | G108: 359
A109: 50 | B109: 2012-12-15 | C109: 0.8083857143 | D109: 4.397653171 | E109: -0.7658099666 | F109: -20.26435744 | G109: 355.5
A110: 51 | B110: 2012-12-22 | C110: 0.8136285714 | D110: 4.176352846 | E110: -5.032236887 | F110: -22.82384461 | G110: 339.8
A111: 52 | B111: 2012-12-29 | C111: 0.8172142857 | D111: 4.147015121 | E111: -0.7024723768 | F111: -24.48512248 | G111: 338.9
A112: 1 | B112: 2013-01-05 | C112: 0.8140714286 | D112: 4.105290866 | E112: -1.006127391 | F112: -24.76793849 | G112: 334.2
A113: 2 | B113: 2013-01-12 | C113: 0.8167357143 | D113: 4.072308755 | E113: -0.8034049683 | F113: -23.9855353 | G113: 332.6
A114: 3 | B114: 2013-01-19 | C114: 0.8318928571 | D114: 3.933198815 | E114: -3.415996883 | F114: -25.31663361 | G114: 327.2
A115: 4 | B115: 2013-01-26 | C115: 0.8433214286 | D115: 3.954601279 | E115: 0.5441490468 | F115: -24.68499274 | G115: 333.5
A116: 5 | B116: 2013-02-02 | C116: 0.8568857143 | D116: 3.890833917 | E116: -1.612485245 | F116: -26.52313188 | G116: 333.4
A117: 6 | B117: 2013-02-09 | C117: 0.8573857143 | D117: 4.040188613 | E117: 3.838629445 | F117: -23.58491847 | G117: 346.4
A118: 7 | B118: 2013-02-16 | C118: 0.8582214286 | D118: 4.191226041 | E118: 3.73837565 | F118: -20.94906819 | G118: 359.7
A119: 8 | B119: 2013-02-23 | C119: 0.8638571429 | D119: 4.19976848 | E119: 0.2038172026 | F119: -19.91603952 | G119: 362.8
A120: 9 | B120: 2013-03-02 | C120: 0.8658142857 | D120: 4.275743726 | E120: 1.809034143 | F120: -18.31784736 | G120: 370.2
A121: 10 | B121: 2013-03-09 | C121: 0.8657 | D121: 4.644796119 | E121: 8.631302913 | F121: -11.98917633 | G121: 402.1
A122: 11 | B122: 2013-03-16 | C122: 0.8688785714 | D122: 4.951209687 | E122: 6.596921819 | F122: -7.07025212 | G122: 430.2
A123: 12 | B123: 2013-03-23 | C123: 0.8555 | D123: 5.323202805 | E123: 7.513176405 | F123: -3.309464961 | G123: 455.4
A124: 13 | B124: 2013-03-30 | C124: 0.8479071429 | D124: 5.311902415 | E124: -0.2122855469 | F124: -5.868686754 | G124: 450.4
A125: 14 | B125: 2013-04-06 | C125: 0.84745 | D125: 5.3666883 | E125: 1.031379734 | F125: -5.04888394 | G125: 454.8
A126: 15 | B126: =B125+7 -> 2013-04-13 | C126: 0.8511428571 | D126: 5.531386371 | E126: 3.068895786 | F126: -2.105783672 | G126: 470.8
A127: 16 | B127: 2013-04-20 | C127: 0.8549142857 | D127: 5.339716596 | E127: -3.465130835 | F127: -6.224808334 | G127: 456.5
A128: 17 | B128: 2013-04-27 | C128: 0.8486642857 | D128: 5.363722825 | E128: 0.4495787 | F128: 1.688579217 | G128: 455.2
A129: 18 | B129: 2013-05-04 | C129: 0.8436285714 | D129: 5.463304772 | E129: 1.856582643 | F129: 5.957936804 | G129: 460.9
A130: 19 | B130: 2013-05-11 | C130: 0.8443214286 | D130: 5.590288059 | E130: 2.324294402 | F130: 3.654544657 | G130: 472
A131: 20 | B131: 2013-05-18 | C131: 0.8454214286 | D131: 5.610219755 | E131: 0.3565414888 | F131: 2.639733106 | G131: 474.3
A132: 21 | B132: 2013-05-25 | C132: 0.8520285714 | D132: 6.250964086 | E132: 11.42102018 | F132: 13.92974339 | G132: 532.6
A133: 22 | B133: 2013-06-01 | C133: 0.8554 | D133: 6.024082301 | E133: -3.629548689 | F133: 20.49131549 | G133: 515.3
A134: 23 | B134: 2013-06-08 | C134: 0.852 | D134: 5.865023474 | E134: -2.640382693 | F134: 16.34367889 | G134: 499.7
A135: 24 | B135: 2013-06-15 | C135: 0.8509071429 | D135: 5.764436274 | E135: -1.715034914 | F135: 10.37352638 | G135: 490.5
A136: 25 | B136: 2013-06-22 | C136: 0.8531642857 | D136: 5.62963087 | E136: -2.338570461 | F136: 4.427256775 | G136: 480.3
A137: 26 | B137: 2013-06-29 | C137: 0.8526785714 | D137: 5.795853403 | E137: 2.952636452 | F137: 8.372101668 | G137: 494.2
A138: 27 | B138: 2013-07-06 | C138: 0.85735 | D138: 5.730448475 | E138: -1.128477959 | F138: 12.88695655 | G138: 491.3
A139: 28 | B139: 2013-07-13 | C139: 0.8622357143 | D139: 5.612154449 | E139: -2.064306598 | F139: 8.877763761 | G139: 483.9
A140: 29 | B140: 2013-07-20 | C140: 0.86295 | D140: 5.498580451 | E140: -2.023714765 | F140: 1.62798269 | G140: 474.5
A141: 30 | B141: 2013-07-27 | C141: 0.8609857143 | D141: 4.757337935 | E141: -13.480616 | F141: -13.20564368 | G141: 409.6
A142: 31 | B142: 2013-08-03 | C142: 0.8681714286 | D142: 4.753669453 | E142: -0.07711207271 | F142: -11.56238679 | G142: 412.7
A143: 32 | B143: 2013-08-10 | C143: 0.8636571429 | D143: 4.930197168 | E143: 3.713504208 | F143: -3.507076788 | G143: 425.8
A144: 33 | B144: 2013-08-17 | C144: 0.8562428571 | D144: 4.942522982 | E144: 0.2500065181 | F144: -8.004293186 | G144: 423.2
A145: 34 | B145: 2013-08-24 | C145: 0.8553214286 | D145: 4.933817696 | E145: -0.1761304208 | F145: -8.003276193 | G145: 422
A146: 35 | B146: 2013-08-31 | C146: 0.8577857143 | D146: 4.789074861 | E146: -2.933688359 | F146: -8.897600952 | G146: 410.8
A147: 36 | B147: 2013-09-07 | C147: 0.8457 | D147: 4.73217453 | E147: -1.188127816 | F147: -9.211338544 | G147: 400.2
A148: 37 | B148: 2013-09-14 | C148: 0.8413285714 | D148: 4.683069295 | E148: -1.037688583 | F148: -6.901790047 | G148: 394
A149: 38 | B149: 2013-09-21 | C149: 0.8404428571 | D149: 4.617803539 | E149: -1.393653437 | F149: -4.033419737 | G149: 388.1
A150: 39 | B150: 2013-09-28 | C150: 0.8417871429 | D150: 4.604489428 | E150: -0.2883212924 | F150: -3.182984234 | G150: 387.6
A151: 40 | B151: 2013-10-05 | C151: 0.8396928571 | D151: 4.586200737 | E151: -0.3971926036 | F151: 0.3650847988 | G151: 385.1
A152: 41 | B152: 2013-10-12 | C152: 0.8465357143 | D152: 4.568029363 | E152: -0.3962184461 | F152: 0.9408195887 | G152: 386.7
A153: 42 | B153: 2013-10-19 | C153: 0.8467785714 | D153: 4.670642519 | E153: 2.246333103 | F153: 3.724907888 | G153: 395.5
A154: 43 | B154: 2013-10-26 | C154: 0.8497642857 | D154: 4.64481747 | E154: -0.5529228287 | F154: 2.944165901 | G154: 394.7
A155: 44 | B155: 2013-11-02 | C155: 0.8515428571 | D155: 4.695007382 | E155: 1.080557234 | F155: 5.704850376 | G155: 399.8
A156: 45 | B156: 2013-11-09 | C156: 0.8393071429 | D156: 4.774175978 | E156: 1.686229445 | F156: 5.616626396 | G156: 400.7
A157: 46 | B157: 2013-11-16 | C157: 0.8386428571 | D157: 4.760071544 | E157: -0.2954318062 | F157: 5.388438455 | G157: 399.2
A158: 47 | B158: 2013-11-23 | C158: 0.8366357143 | D158: 4.770295998 | E158: 0.214796231 | F158: 9.600639329 | G158: 399.1
A159: 48 | B159: 2013-11-30 | C159: 0.8341714286 | D159: 4.783189478 | E159: 0.2702867827 | F159: 9.452686144 | G159: 399
A160: 49 | B160: 2013-12-07 | C160: 0.8312571429 | D160: 4.768680828 | E160: -0.3033258543 | F160: 7.606525807 | G160: 396.4
A161: 50 | B161: 2013-12-14 | C161: 0.8396071429 | D161: 4.720064656 | E161: -1.019488897 | F161: 7.331444121 | G161: 396.3
A162: 51 | B162: 2013-12-21 | C162: 0.8396785714 | D162: 4.726808728 | E162: 0.1428809186 | F162: 13.18030114 | G162: 396.9
A163: 52 | B163: 2013-12-28 | C163: 0.83627 | D163: 4.781948414 | E163: 1.166530933 | F163: 15.31060954 | G163: 399.9
A164: 1 | B164: 2014-01-04 | C164: 0.8327928571 | D164: 4.877563448 | E164: 1.999499497 | F164: 18.81164106 | G164: 406.2
A165: 2 | B165: 2014-01-11 | C165: 0.8287642857 | D165: 4.861454661 | E165: -0.3302629899 | F165: 19.37834171 | G165: 402.9
A166: 3 | B166: 2014-01-18 | C166: 0.8294142857 | D166: 4.758779862 | E166: -2.112018042 | F166: 20.9900665 | G166: 394.7
A167: 4 | B167: 2014-01-25 | C167: 0.8250357143 | D167: 4.814337042 | E167: 1.167466902 | F167: 21.74013768 | G167: 397.2
A168: 5 | B168: 2014-02-01 | C168: 0.8236571429 | D168: 4.90859581 | E168: 1.957876383 | F168: 26.15793721 | G168: 404.3
A169: 6 | B169: 2014-02-08 | C169: 0.8285785714 | D169: 4.90599219 | E169: -0.05304205129 | F169: 21.42978112 | G169: 406.5
A170: 7 | B170: 2014-02-15 | C170: 0.8253642857 | D170: 5.019601734 | E170: 2.315730237 | F170: 19.76451963 | G170: 414.3
A171: 8 | B171: 2014-02-22 | C171: 0.8218942857 | D171: 5.140563785 | E171: 2.409793781 | F171: 22.40112304 | G171: 422.5
A172: 9 | B172: 2014-03-01 | C172: 0.8236971429 | D172: 5.141452822 | E172: 0.0172945575 | F172: 20.24698279 | G172: 423.5
A173: 10 | B173: 2014-03-08 | C173: 0.8251428571 | D173: 5.193040166 | E173: 1.003361219 | F173: 11.80340393 | G173: 428.5
A174: 11 | B174: 2014-03-15 | C174: 0.8343642857 | D174: 5.383739545 | E174: 3.672210743 | F174: 8.735842047 | G174: 449.2
A175: 12 | B175: 2014-03-22 | C175: 0.83635 | D175: 5.602917439 | E175: 4.071108789 | F175: 5.254630412 | G175: 468.6
A176: 13 | B176: 2014-03-29 | C176: 0.8316571429 | D176: 5.741548715 | E176: 2.474269481 | F176: 8.088369596 | G176: 477.5
A177: 14 | B177: 2014-04-05 | C177: 0.8279571429 | D177: 5.816726194 | E177: 1.309358888 | F177: 8.385765451 | G177: 481.6
A178: 15 | B178: 2014-04-12 | C178: 0.8267357143 | D178: 5.935391341 | E178: 2.04006762 | F178: 7.303864579 | G178: 490.7
A179: 16 | B179: 2014-04-19 | C179: 0.8253142857 | D179: 5.88866579 | E179: -0.787236238 | F179: 10.28049304 | G179: 486
A180: 17 | B180: 2014-04-26 | C180: 0.8229857143 | D180: 5.845787985 | E180: -0.7281412576 | F180: 8.98751064 | G180: 481.1
A181: 18 | B181: 2014-05-03 | C181: 0.8223785714 | D181: 5.859831673 | E181: 0.2402360205 | F181: 7.258004406 | G181: 481.9
A182: 19 | B182: 2014-05-10 | C182: 0.8205685714 | D182: 5.833759867 | E182: -0.4449241469 | F182: 4.355264083 | G182: 478.7
A183: 20 | B183: 2014-05-17 | C183: 0.81555 | D183: 6.032738643 | E183: 3.410815329 | F183: 7.531235957 | G183: 492
A184: 21 | B184: 2014-05-24 | C184: 0.8117 | D184: 6.451891093 | E184: 6.947963023 | F184: 3.21433629 | G184: 523.7
A185: 22 | B185: 2014-05-31 | C185: 0.8119214286 | D185: 6.436583413 | E185: -0.2372588022 | F185: 6.847534479 | G185: 522.6
A186: 23 | B186: 2014-06-07 | C186: 0.8122285714 | D186: 6.460004221 | E186: 0.3638701846 | F186: 10.14455866 | G186: 524.7
A187: 24 | B187: 2014-06-14 | C187: 0.8049785714 | D187: 6.473464245 | E187: 0.208359363 | F187: 12.30004006 | G187: 521.1
A188: 25 | B188: 2014-06-21 | C188: 0.7985785714 | D188: 6.287421401 | E188: -2.873930206 | F188: 11.68443448 | G188: 502.1
A189: 26 | B189: 2014-06-28 | C189: 0.7998642857 | D189: 5.864744912 | E189: -6.72257292 | F189: 1.188634428 | G189: 469.1
A190: 27 | B190: =B189+7 -> 2014-07-05 | C190: 0.7966785714 | D190: 5.771461873 | E190: -1.59057283 | F190: 0.7157100911 | G190: 459.8
A191: 28 | B191: 2014-07-12 | C191: 0.7941571429 | D191: 5.281070677 | E191: -8.496828132 | F191: -5.899405925 | G191: 419.4
A192: 29 | B192: 2014-07-19 | C192: 0.7925857143 | D192: 4.955930859 | E192: -6.156702638 | F192: -9.868903373 | G192: 392.8
A193: 30 | B193: 2014-07-26 | C193: 0.7912571429 | D193: 5.10579909 | E193: 3.02401779 | F193: 7.3247089 | G193: 404
A194: 31 | B194: 2014-08-02 | C194: 0.7929785714 | D194: 4.817280236 | E194: -5.650807026 | F194: 1.33814065 | G194: 382
A195: 32 | B195: 2014-08-09 | C195: 0.7953428571 | D195: 4.819305241 | E195: 0.04203626873 | F195: -2.249239192 | G195: 383.3
A196: 33 | B196: 2014-08-16 | C196: 0.7993571429 | D196: 4.75757305 | E196: -1.280935495 | F196: -3.742014622 | G196: 380.3
A197: 34 | B197: 2014-08-23 | C197: 0.8004142857 | D197: 4.702564743 | E197: -1.156226209 | F197: -4.687099665 | G197: 376.4
A198: 35 | B198: 2014-08-30 | C198: 0.7958714286 | D198: 4.708046885 | E198: 0.1165776945 | F198: -1.691933788 | G198: 374.7
A199: 36 | B199: 2014-09-06 | C199: 0.7942428571 | D199: 4.652229437 | E199: -1.185575449 | F199: -1.689394434 | G199: 369.5
A200: 37 | B200: 2014-09-13 | C200: 0.7982357143 | D200: 4.467352107 | E200: -3.973951252 | F200: -4.606320656 | G200: 356.6
... 380 more rows

Sheet IRISH FACTORY 2013 (hidden)
A1: Irish Factory Quotation (ex VAT)
E2: % Change | F2: % Change
C3: exchange | E3: on | F3: on
C4: rate | D4: €/kg dw | E4: week | F4: year | G4: p/kg dw
A5: week | B5: Week ending
A6: no | B6: Saturday
A7: 1 | B7: 2011-01-01 | C7: 0 | E7: 0 | F7: -100 | G7: =C7*D7*100 -> 0
A8: 2 | B8: =B7+7 -> 2011-01-08 | C8: 0.85003 | D8: 4.5005 | E8: -3.956550503 | F8: 3.612211069 | G8: 382.5560015
A9: 3 | B9: =B8+7 -> 2011-01-15 | C9: 0.8362428571 | D9: 4.5254 | E9: =D9/D8*100-100 -> 0.5532718587 | F9: 0.3125484893 | G9: 378.4333426
A10: 4 | B10: 2011-01-22 | C10: 0.8424785714 | D10: 4.6 | E10: 1.648473063 | F10: 8.059855764 | G10: 387.5401429
A11: 5 | B11: 2011-01-29 | C11: 0.8580642857 | D11: 4.585 | E11: -0.3260869565 | F11: 6.796794932 | G11: 393.422475
A12: 6 | B12: 2011-02-05 | C12: 0.8529071429 | D12: 4.4691 | E12: -2.52780807 | F12: 2.78046088 | G12: 381.1727312
A13: 7 | B13: 2011-02-12 | C13: 0.8464571429 | D13: 4.5789 | E13: 2.456870511 | F13: 4.481460354 | G13: 387.5842611
A14: 8 | B14: 2011-02-19 | C14: 0.8407142857 | D14: 4.5987 | E14: 0.4324182664 | F14: 5.717241379 | G14: 386.6192786
A15: 9 | B15: 2011-02-26 | C15: 0.8479485714 | D15: 4.6615 | E15: 1.365603323 | F15: 6.431800539 | G15: 395.2712266
A16: 10 | B16: 2011-03-05 | C16: 0.8532428571 | D16: 4.6531 | E16: -0.1801995066 | F16: 7.735586941 | G16: 397.0224339
A17: 11 | B17: 2011-03-12 | C17: 0.8596428571 | D17: 4.9762 | E17: 6.943757925 | F17: 11.09077109 | G17: 427.7754786
A18: 12 | B18: 2011-03-19 | C18: 0.8681214286 | D18: 5.1516 | E18: 3.524777943 | F18: 13.01333801 | G18: 447.2214351
A19: 13 | B19: 2011-03-26 | C19: 0.8732714286 | D19: 5.1758 | E19: 0.4697569687 | F19: 9.943284406 | G19: 451.987826
A20: 14 | B20: 2011-04-02 | C20: 0.8804428571 | D20: 5.3694 | E20: 3.740484563 | F20: 14.89279753 | G20: 472.7449877
A21: 15 | B21: 2011-04-09 | C21: 0.8786571429 | D21: 5.5169 | E21: 2.747048087 | F21: 13.47910153 | G21: 484.7463591
A22: 16 | B22: 2011-04-16 | C22: 0.8847 | D22: na
A23: 17 | B23: 2011-04-23 | C23: 0.8814142857 | D23: 5.847 | F23: 19.00594317 | G23: 515.3629329
A24: 18 | B24: 2011-04-30 | C24: 0.8869071429 | D24: na
A25: 19 | B25: 2011-05-07 | C25: 0.8962428571 | D25: na
A26: 20 | B26: 2011-05-14 | C26: 0.8789428571 | D26: 6.0509 | G26: 531.8395334
A27: 21 | B27: 2011-05-21 | C27: 0.8770571429 | D27: 6.0509 | E27: 0 | F27: 21.77299255 | G27: 530.6985066
A28: 22 | B28: 2011-05-28 | C28: 0.8698642857 | D28: 5.5246 | E28: -8.697879654 | F28: 14.82790156 | G28: 480.5652233
A29: 23 | B29: 2011-06-04 | C29: 0.8772857143 | D29: 5.48 | E29: -0.8072982659 | F29: 16.18785116 | G29: 480.7525714
A30: 24 | B30: 2011-06-11 | C30: 0.8899071429 | D30: 5.103 | E30: -6.879562044 | F30: 6.788599171 | G30: 454.119615
A31: 25 | B31: 2011-06-18 | C31: 0.8814571429 | D31: 4.9152 | E31: -3.680188125 | F31: 4.556477345 | G31: 433.2538149
A32: 26 | B32: 2011-06-25 | C32: 0.8824571429 | D32: 4.7337 | E32: -3.692626953 | F32: 10.82314932 | G32: 417.7287377
A33: 27 | B33: 2011-07-02 | C33: 0.8955857143 | D33: 4.3651 | E33: -7.786720747 | F33: 5.564691657 | G33: 390.9321201
A34: 28 | B34: 2011-07-09 | C34: 0.8968928571 | D34: 4.4239 | E34: 1.347048178 | F34: 9.831425805 | G34: 396.7764311
A35: 29 | B35: 2011-07-16 | C35: 0.8821142857 | D35: 4.5788 | E35: 3.501435385 | F35: 11.38193583 | G35: 403.9024891
A36: 30 | B36: 2011-07-23 | C36: 0.8791857143 | D36: 4.5239 | E36: -1.199004106 | F36: 14.83728487 | G36: 397.7348253
A37: 31 | B37: 2011-07-30 | C37: 0.8791785714 | D37: 4.4917 | E37: -0.7117752382 | F37: 8.784209252 | G37: 394.9006389
A38: 32 | B38: 2011-08-06 | C38: 0.8726142857 | D38: 4.4726 | E38: -0.4252287553 | F38: 6.54628615 | G38: 390.2854654
A39: 33 | B39: 2011-08-13 | C39: 0.87485 | D39: 4.4345 | E39: -0.851853508 | F39: 4.690967468 | G39: 387.9522325
A40: 34 | B40: 2011-08-20 | C40: 0.8741928571 | D40: 4.3721 | E40: -1.407148495 | F40: 3.191012297 | G40: 382.2058591
A41: 35 | B41: 2011-08-27 | C41: 0.8784142857 | D41: 4.3719 | E41: -0.004574460785 | F41: 5.944360975 | G41: 384.0339416
A42: 36 | B42: 2011-09-03 | C42: 0.8826428571 | D42: 4.3773 | E42: 0.1235160914 | F42: 7.629702483 | G42: 386.3592579
A43: 37 | B43: 2011-09-10 | C43: 0.8739428571 | D43: 4.2808 | E43: -2.204555319 | F43: 3.583613618 | G43: 374.1174583
A44: 38 | B44: 2011-09-17 | C44: 0.8678642857 | D44: 4.2758 | E44: -0.116800598 | F44: 8.075727321 | G44: 371.0814113
A45: 39 | B45: 2011-09-24 | C45: 0.8718785714 | D45: 4.1926 | E45: -1.945834698 | F45: 6.265524408 | G45: 365.5438099
A46: 40 | B46: 2011-10-01 | C46: 0.8696357143 | D46: 4.1956 | E46: 0.0715546439 | F46: 4.448704225 | G46: 364.8643603
A47: 41 | B47: 2011-10-08 | C47: 0.8631642857 | D47: 4.2259 | E47: 0.7221851463 | F47: 5.621094726 | G47: 364.7645955
A48: 42 | B48: 2011-10-15 | C48: 0.8721 | D48: 4.2391 | E48: 0.3123594974 | F48: 6.349724034 | G48: 369.691911
A49: 43 | B49: 2011-10-22 | C49: 0.8720642857 | D49: 4.355 | E49: 2.734070911 | F49: 8.000198393 | G49: 379.7839964
A50: 44 | B50: 2011-10-29 | C50: 0.8734071429 | D50: 4.447 | E50: 2.112514351 | F50: 11.00017472 | G50: 388.4041564
A51: 45 | B51: 2011-11-05 | C51: 0.8644714286 | D51: 4.5202 | E51: 1.646053519 | F51: 12.62769721 | G51: 390.7583751
A52: 46 | B52: 2011-11-12 | C52: 0.8566642857 | D52: 4.49 | E52: -0.6681120304 | F52: 6.375417565 | G52: 384.6422643
A53: 47 | B53: 2011-11-19 | C53: 0.8558928571 | D53: 4.46 | E53: -0.6681514477 | F53: 3.614905678 | G53: 381.7282143
A54: 48 | B54: 2011-11-26 | C54: 0.8594785714 | D54: 4.57 | E54: 2.466367713 | F54: 6.042324114 | G54: 392.7817071
A55: 49 | B55: 2011-12-03 | C55: 0.8618571429 | D55: 4.6482 | E55: 1.711159737 | F55: 0.7914651864 | G55: 400.6084371
A56: 50 | B56: 2011-12-10 | C56: 0.8560785714 | D56: 4.6383 | E56: -0.2129856719 | F56: -0.5254353607 | G56: 397.0749238
A57: 51 | B57: 2011-12-17 | C57: 0.8438357143 | D57: 4.6897 | E57: 1.108164629 | G57: 395.7336349
A58: 52 | B58: 2011-12-24 | C58: 0.83545 | D58: 4.6945 | E58: 0.1023519628 | F58: 0.6755307742 | G58: 392.2020025
A59: 53 | B59: 2011-12-31 | C59: 0.8343571429 | D59: na
A60: 1 | B60: 2012-01-07 | C60: 0.8308842857 | D60: 4.8022 | E60: 1.02294174 | F60: 6.703699589 | G60: 399.0072517
A61: 2 | B61: =B60+7 -> 2012-01-14 | C61: 0.8287785714 | D61: 4.8069 | E61: 2.582214729 | F61: 6.220444602 | G61: 398.3855715
A62: 3 | B62: 2012-01-21 | C62: 0.8326214286 | D62: 4.8476 | E62: 0.8466995361 | F62: 5.382608696 | G62: 403.6215637
A63: 4 | B63: 2012-01-28 | C63: 0.8355 | D63: 4.9465 | E63: 2.040184834 | F63: 7.884405671 | G63: 413.280075
A64: 5 | B64: 2012-02-04 | C64: 0.833 | D64: 4.9709 | E64: 0.4932780754 | F64: 11.2282115 | G64: 414.07597
A65: 6 | B65: 2012-02-11 | C65: 0.8335285714 | D65: 4.5533 | E65: -8.400893198 | F65: -0.5590862434 | G65: 379.5305644
A66: 7 | B66: 2012-02-18 | C66: 0.8340357143 | D66: 4.9688 | E66: 9.125249819 | F66: 8.047926588 | G66: 414.4156657
A67: 8 | B67: 2012-02-25 | C67: 0.8415 | D67: 4.9062 | E67: -1.259861536 | F67: 5.249383246 | G67: 412.85673
A68: 9 | B68: 2012-03-03 | C68: 0.84075 | D68: 4.917 | E68: 0.2201296319 | F68: 5.671487825 | G68: 413.396775
A69: 10 | B69: 2012-03-10 | C69: 0.83505 | D69: 4.9785 | E69: 1.25076266 | F69: 0.04622000723 | G69: 415.7296425
A70: 11 | B70: 2012-03-17 | C70: 0.8335357143 | D70: 4.943 | E70: -0.7130661846 | F70: -4.049227424 | G70: 412.0167036
A71: 12 | B71: 2012-03-24 | C71: 0.833 | D71: 5.0004 | E71: 1.161238115 | F71: -3.388848101 | G71: 416.53332
A72: 13 | B72: 2012-03-31 | C72: 0.8357142857 | D72: na
A73: 14 | B73: 2012-04-07 | C73: 0.8283714286 | D73: 5.3476 | F73: -3.068752379 | G73: 442.9799051
A74: 15 | B74: 2012-04-14 | C74: 0.8250785714 | D74: 5.2993 | E74: -0.9032089161 | G74: 437.2338874
A75: 16 | B75: 2012-04-21 | C75: 0.8206642857 | D75: 5.1748 | E75: -2.349366898 | F75: -11.49649393 | G75: 424.6773546
A76: 17 | B76: 2012-04-28 | C76: 0.8167357143 | D76: 5.1458 | E76: -0.5604081317 | G76: 420.2758639
A77: 18 | B77: 2012-05-05 | C77: 0.8126285714 | D77: 4.9935 | E77: -2.959695285 | G77: 405.7860771
A78: 19 | B78: 2012-05-12 | C78: 0.80546 | D78: 4.9313 | E78: -1.245619305 | F78: -18.50303261 | G78: 397.1964898
A79: 20 | B79: 2012-05-19 | C79: 0.8016928571 | D79: 4.9282 | E79: -0.0628637479 | F79: -18.55426465 | G79: 395.0902739
A80: 21 | B80: 2012-05-26 | C80: 0.8037642857 | D80: 4.5714 | E80: -7.23996591 | F80: -17.25373783 | G80: 367.4328056
A81: 22 | B81: 2012-06-02 | C81: 0.8010642857 | D81: 4.554 | E81: -0.3806273789 | F81: -16.89781022 | G81: 364.8046757
A82: 23 | B82: 2012-06-09 | C82: 0.8077571429 | D82: 4.5675 | E82: 0.2964426877 | F82: -10.49382716 | G82: 368.943075
A83: 24 | B83: 2012-06-16 | C83: 0.8084 | D83: 4.5814 | E83: 0.3043240285 | F83: -6.791178385 | G83: 370.360376
A84: 25 | B84: 2012-06-23 | C84: 0.80635 | D84: 4.6457 | E84: 1.403501113 | F84: -1.859010922 | G84: 374.6060195
A85: 26 | B85: 2012-06-30 | C85: 0.8027142857 | D85: 4.6352 | E85: -0.2260154552 | F85: 6.187716204 | G85: 372.0741257
A86: 27 | B86: 2012-07-07 | C86: 0.8011785714 | D86: 4.4159 | E86: -4.731187435 | F86: -0.180835914 | G86: 353.7924454
A87: 28 | B87: 2012-07-14 | C87: 0.7905642857 | D87: 4.2657 | E87: -3.401345139 | F87: -6.838036167 | G87: 337.2310074
A88: 29 | B88: 2012-07-21 | C88: 0.7831071429 | D88: 4.5474 | E88: 6.603839932 | F88: 0.5194632949 | G88: 356.1101421
A89: 30 | B89: 2012-07-28 | C89: 0.7812214286 | D89: 4.5736 | E89: 0.5761534063 | F89: 1.823363092 | G89: 357.2994326
A90: 31 | B90: 2012-08-04 | C90: 0.78565 | D90: 4.586 | E90: 0.2711212174 | F90: 2.535438 | G90: 360.29909
A91: 32 | B91: 2012-08-11 | C91: 0.7891357143 | D91: 4.5521 | E91: -0.73920628 | F91: 2.651933702 | G91: 359.2224685
A92: 33 | B92: 2012-08-18 | C92: 0.7847285714 | D92: 4.5821 | E92: 0.6590364887 | F92: 4.803183825 | G92: 359.5704787
A93: 34 | B93: 2012-08-25 | C93: 0.7878 | D93: 4.5498 | E93: -0.7049169595 | F93: 4.069169011 | G93: 358.433244
A94: 35 | B94: 2012-09-01 | C94: 0.7928771429 | D94: 4.5077 | E94: -0.9253153985 | F94: 2.979005323 | G94: 357.4052297
A95: 36 | B95: 2012-09-08 | C95: 0.7937 | D95: 4.4844 | E95: -0.5168933159 | F95: 4.756120351 | G95: 355.926828
A96: 37 | B96: 2012-09-15 | C96: 0.80175 | D96: 4.3865 | E96: -2.183123718 | F96: 2.588989195 | G96: 351.6876375
A97: 38 | B97: 2012-09-22 | C97: 0.8025957143 | D97: 4.3014 | E97: -1.940043315 | F97: 2.595048419 | G97: 345.2285205
A98: 39 | B98: 2012-09-29 | C98: 0.7967 | D98: 4.2496 | E98: -1.204259078 | F98: 1.287062637 | G98: 338.565632
A99: 40 | B99: 2012-10-06 | C99: 0.8011785714 | D99: 4.2619 | E99: 0.289439006 | F99: 0.8518895383 | G99: 341.4542954
A100: 41 | B100: 2012-10-13 | C100: 0.8061071429 | D100: 4.186 | E100: -1.780895845 | F100: -1.252624378 | G100: 337.43645
A101: 42 | B101: 2012-10-20 | C101: 0.8103642857 | D101: 4.2042 | E101: 0.4347826087 | F101: -3.462686567 | G101: 340.693353
A102: 43 | B102: 2012-10-27 | C102: 0.8080714286 | D102: 4.1955 | E102: -0.2069359212 | F102: -5.655498089 | G102: 339.0263679
A103: 44 | B103: 2012-11-03 | C103: 0.8035357143 | D103: 4.1448 | E103: -1.208437612 | F103: -8.304942259 | G103: 333.0494829
A104: 45 | B104: 2012-11-10 | C104: 0.7988428571 | D104: na
A105: 46 | B105: 2012-11-17 | C105: 0.8016928571 | D105: 4.112 | E105: na | F105: -7.802690583 | G105: 329.6561029
A106: 47 | B106: 2012-11-24 | C106: 0.8059857143 | D106: 4.1305 | E106: 0.4499027237 | F106: -9.617067834 | G106: 332.9123993
A107: 48 | B107: 2012-12-01 | C107: 0.8095928571 | D107: 4.118 | E107: -0.3026268006 | F107: -11.40656598 | G107: 333.3903386
A108: 49 | B108: 2012-12-08 | C108: 0.8100928571 | D108: 4.0863 | E108: -0.7697911608 | F108: -11.90091197 | G108: 331.0282442
A109: 50 | B109: 2012-12-15 | C109: 0.8083857143 | D109: 4.0667 | E109: -0.4796515185 | F109: -13.28443184 | G109: 328.7462184
A110: 51 | B110: 2012-12-22 | C110: 0.8136285714 | D110: 4.1188 | E110: 1.28113704 | F110: -12.26328683 | G110: 335.117336
A111: 52 | B111: 2012-12-29 | C111: 0.8172142857 | D111: 3.9421 | E111: -4.290084491 | F111: -16.02726595 | G111: 322.1540436
A112: 1 | B112: 2013-01-05 | C112: 0.8140714286 | D112: 4.1173 | E112: 4.444331701 | F112: -14.26221315 | G112: 335.1776293
A113: 2 | B113: 2013-01-12 | C113: 0.8167357143 | D113: 4.0898 | E113: -0.6679134384 | F113: -14.91813851 | G113: 334.0285724
A114: 3 | B114: 2013-01-19 | C114: 0.8318928571 | D114: 3.9699 | E114: -2.931683701 | F114: -18.10586682 | G114: 330.2531454
A115: 4 | B115: 2013-01-26 | C115: 0.8433214286 | D115: 3.9732 | E115: 0.08312551953 | F115: -19.67653897 | G115: 335.06847
A116: 5 | B116: 2013-02-02 | C116: 0.8568857143 | D116: 4.0051 | E116: 0.8028792913 | F116: -19.42907723 | G116: 343.1912974
A117: 6 | B117: 2013-02-09 | C117: 0.8573857143 | D117: 4.04 | E117: 0.8713889791 | F117: -11.27314256 | G117: 346.3838286
A118: 7 | B118: 2013-02-16 | C118: 0.8582214286 | D118: 4.1179 | E118: 1.928217822 | F118: -17.12485912 | G118: 353.4070021
A119: 8 | B119: 2013-02-23 | C119: 0.8638571429 | D119: 4.3087 | E119: 4.633429661 | F119: -12.17846806 | G119: 372.2101271
A120: 9 | B120: 2013-03-02 | C120: 0.8658142857 | D120: 4.2081 | E120: -2.334810964 | F120: -14.41732764 | G120: 364.3433096
A121: 10 | B121: 2013-03-09 | C121: 0.8657 | D121: 4.7424 | E121: 12.69694161 | F121: -4.742392287 | G121: 410.549568
A122: 11 | B122: 2013-03-16 | C122: 0.8688785714 | D122: 4.9072 | E122: 3.475033738 | F122: -0.7242565244 | G122: 426.3760926
A123: 12 | B123: 2013-03-23 | C123: 0.8555 | D123: 5.0659 | E123: 3.234023476 | F123: 1.309895208 | G123: 433.387745
A124: 13 | B124: 2013-03-30 | C124: 0.8479071429 | D124: 5.061 | E124: -0.09672516236 | G124: 429.125805
A125: 14 | B125: =B124+7 -> 2013-04-06 | C125: 0.84745 | D125: 5.0469 | E125: -0.278601067 | F125: -5.623083252 | G125: 427.6995405
A126: 15 | B126: 2013-04-13 | C126: 0.8511428571 | D126: 5.1115 | E126: 1.279993659 | F126: -3.543864284 | G126: 435.0616714
A127: 16 | B127: 2013-04-20 | C127: 0.8549142857 | D127: 5.0975 | E127: -0.2738922039 | F127: -1.493777537 | G127: 435.7925571
A128: 17 | B128: 2013-04-27 | C128: 0.8486642857 | D128: 5.1143 | E128: 0.3295733203 | F128: -0.6121497143 | G128: 434.0323756
A129: 18 | B129: 2013-05-04 | C129: 0.8436285714 | D129: 5.1909 | E129: 1.497761179 | F129: 3.953139081 | G129: 437.9191551
A130: 19 | B130: 2013-05-11 | C130: 0.8443214286 | D130: 5.3043 | E130: 2.184592267 | F130: 7.563928376 | G130: 447.8534154
A131: 20 | B131: 2013-05-18 | C131: 0.8454214286 | D131: 5.4624 | E131: 2.980600645 | F131: 10.83965748 | G131: 461.8030011
A132: 21 | B132: 2013-05-25 | C132: 0.8520285714 | D132: 5.4142 | E132: -0.8823960164 | F132: 18.43636523 | G132: 461.3053091
A133: 22 | B133: 2013-06-01 | C133: 0.8554 | D133: 5.2168 | E133: -3.64596801 | F133: 14.55423803 | G133: 446.245072
A134: 23 | B134: 2013-06-08 | C134: 0.852 | D134: 4.9464 | E134: -5.183254102 | F134: 8.295566502 | G134: 421.43328
A135: 24 | B135: 2013-06-15 | C135: 0.8509071429 | D135: 4.9743 | E135: 0.5640465793 | F135: 8.575981141 | G135: 423.2667401
A136: 25 | B136: 2013-06-22 | C136: 0.8531642857 | D136: 5.0475 | E136: 1.471563838 | F136: 8.648858084 | G136: 430.6346732
A137: 26 | B137: 2013-06-29 | C137: 0.8526785714 | D137: 5.1267 | E137: 1.569093611 | F137: 10.6036417 | G137: 437.1427232
A138: 27 | B138: 2013-07-06 | C138: 0.85735 | D138: 5.0521 | E138: -1.45512708 | F138: 14.40702914 | G138: 433.1417935
A139: 28 | B139: 2013-07-13 | C139: 0.8622357143 | D139: 4.9266 | E139: -2.484115516 | F139: 15.49335396 | G139: 424.789047
A140: 29 | B140: 2013-07-20 | C140: 0.86295 | D140: 4.9699 | E140: 0.8789022856 | F140: 9.291023442 | G140: 428.8775205
A141: 30 | B141: 2013-07-27 | C141: 0.8609857143 | D141: 4.6409 | E141: -6.619851506 | F141: 1.471488543 | G141: 399.5748601
A142: 31 | B142: 2013-08-03 | C142: 0.8681714286 | D142: 4.5436 | E142: -2.096576095 | F142: -0.9245529874 | G142: 394.4623703
A143: 32 | B143: 2013-08-10 | C143: 0.8636571429 | D143: 4.5938 | E143: 1.104850779 | F143: 0.9160607192 | G143: 396.7468183
A144: 33 | B144: 2013-08-17 | C144: 0.8562428571 | D144: 4.5565 | E144: -0.8119639514 | F144: -0.5586957945 | G144: 390.1470579
A145: 34 | B145: 2013-08-24 | C145: 0.8553214286 | D145: 4.4773 | E145: -1.738176232 | F145: -1.593476636 | G145: 382.9530632
A146: 35 | B146: 2013-08-31 | C146: 0.8577857143 | D146: 4.3711 | E146: -2.371965247 | F146: -3.030370255 | G146: 374.9467136
A147: 36 | B147: 2013-09-07 | C147: 0.8457 | D147: 4.2922 | E147: -1.805037634 | F147: -4.285969137 | G147: 362.991354
A148: 37 | B148: 2013-09-14 | C148: 0.8413285714 | D148: 4.2025 | E148: -2.089837379 | F148: -4.194688248 | G148: 353.5683321
A149: 38 | B149: 2013-09-21 | C149: 0.8404428571 | D149: 4.2002 | E149: -0.05472932778 | F149: -2.352722369 | G149: 353.0028089
A150: 39 | B150: 2013-09-28 | C150: 0.8417871429 | D150: 4.1469 | E150: -1.268987191 | F150: -2.416698042 | G150: 349.0807103
A151: 40 | B151: 2013-10-05 | C151: 0.8396928571 | D151: 4.1777 | E151: 0.7427234802 | F151: -1.975644666 | G151: 350.7984849
A152: 41 | B152: 2013-10-12 | C152: 0.8465357143 | D152: 4.1714 | E152: -0.1508006798 | F152: -0.3487816531 | G152: 353.1239079
A153: 42 | B153: 2013-10-19 | C153: 0.8467785714 | D153: 4.159 | E153: -0.29726231 | F153: -1.075115361 | G153: 352.1752079
A154: 43 | B154: 2013-10-26 | C154: 0.8497642857 | D154: 4.17777 | E154: 0.4513104112 | F154: -0.4225956382 | G154: 355.011974
A155: 44 | B155: 2013-11-02 | C155: 0.8515428571 | D155: 4.1984 | E155: 0.4938041108 | F155: 1.293186644 | G155: 357.5117531
A156: 45 | B156: 2013-11-09 | C156: 0.8393071429 | D156: 4.19 | E156: -0.2000762195 | G156: 351.6696929
A157: 46 | B157: 2013-11-16 | C157: 0.8386428571 | D157: 4.213 | E157: 0.5489260143 | F157: 2.456225681 | G157: 353.3202357
A158: 47 | B158: 2013-11-23 | C158: 0.8366357143 | D158: 4.2825 | E158: 1.649655827 | F158: 3.679941896 | G158: 358.2892446
A159: 48 | B159: 2013-11-30 | C159: 0.8341714286 | D159: 4.281 | E159: -0.0350262697 | F159: 3.958232152 | G159: 357.1087886
A160: 49 | B160: 2013-12-07 | C160: 0.8312571429 | D160: 4.375 | E160: 2.195748657 | F160: 7.065071091 | G160: 363.675
A161: 50 | B161: 2013-12-14 | C161: 0.8396071429 | D161: 4.2873 | E161: -2.004571429 | F161: 5.4245457 | G161: 359.9647704
A162: 51 | B162: 2013-12-21 | C162: 0.8396785714 | D162: 4.4482 | E162: 3.752944744 | F162: 7.997474993 | G162: 373.5058221
A163: 52 | B163: 2013-12-28 | C163: 0.83627 | D163: 4.5531 | E163: 2.358257273 | F163: 15.49935314 | G163: 380.7620937
A164: 1 | B164: 2014-01-04 | C164: 0.8327928571 | D164: 4.553 | E164: -0.002196305814 | F164: 10.58217764 | G164: 379.1705879
A165: 2 | B165: 2014-01-11 | C165: 0.8287642857 | D165: 4.3862 | E165: -3.663518559 | F165: 7.247298156 | G165: 363.512591
A166: 3 | B166: 2014-01-18 | C166: 0.8294142857 | D166: 4.4503 | E166: 1.461401669 | F166: 12.10106048 | G166: 369.1142396
A167: 4 | B167: 2014-01-25 | C167: 0.8250357143 | D167: 4.4142 | E167: -0.8111812687 | F167: 11.09936575 | G167: 364.187265
A168: 5 | B168: 2014-02-01 | C168: 0.8236571429 | D168: 4.4768 | E168: 1.418150514 | F168: 11.77748371 | G168: 368.7348297
A169: 6 | B169: 2014-02-08 | C169: 0.8285785714 | D169: 4.5171 | E169: 0.900196569 | F169: 11.80940594 | G169: 374.2772265
A170: 7 | B170: 2014-02-15 | C170: 0.8253642857 | D170: 4.5441 | E170: 0.5977286312 | F170: 10.34993565 | G170: 375.0537851
A171: 8 | B171: 2014-02-22 | C171: 0.8218942857 | D171: 4.6711 | E171: 2.79483286 | F171: 8.410889595 | G171: 383.9150398
A172: 9 | B172: 2014-03-01 | C172: 0.8236971429 | D172: 4.7564 | E172: 1.826122327 | F172: 13.02963333 | G172: 391.783309
A173: 10 | B173: 2014-03-08 | C173: 0.8251428571 | D173: 4.8432 | E173: 1.824909595 | F173: 2.125506073 | G173: 399.6331886
A174: 11 | B174: 2014-03-15 | C174: 0.8343642857 | D174: 4.9045 | E174: 1.265692104 | F174: -0.05502119335 | G174: 409.2139639
A175: 12 | B175: 2014-03-22 | C175: 0.83635 | D175: 5.1621 | E175: 5.252319299 | F175: 1.898971555 | G175: 431.7322335
A176: 13 | B176: 2014-03-29 | C176: 0.8316571429 | D176: 5.512 | E176: 6.778249162 | F176: 8.911282355 | G176: 458.4094171
A177: 14 | B177: 2014-04-05 | C177: 0.8279571429 | D177: 5.6387 | E177: 2.29862119 | F177: 11.72601003 | G177: 466.8601941
A178: 15 | B178: 2014-04-12 | C178: 0.8267357143 | D178: 5.5295 | E178: -1.936616596 | F178: 8.177638658 | G178: 457.1435132
A179: 16 | B179: 2014-04-19 | C179: 0.8253142857 | D179: 5.499 | E179: -0.5515869428 | F179: 7.876410005 | G179: 453.8403257
A180: 17 | B180: 2014-04-26 | C180: 0.8229857143 | D180: 5.5623 | E180: 1.151118385 | F180: 8.759752068 | G180: 457.7693439
A181: 18 | B181: 2014-05-03 | C181: 0.8223785714 | D181: 5.5604 | E181: -0.03415853154 | F181: 7.118226126 | G181: 457.2753809
A182: 19 | B182: 2014-05-10 | C182: 0.8205685714 | D182: 5.2905 | E182: -4.85396734 | F182: -0.2601662802 | G182: 434.1218027
A183: 20 | B183: 2014-05-17 | C183: 0.81555 | D183: 5.3776 | E183: 1.646347226 | F183: -1.552431166 | G183: 438.570168
A184: 21 | B184: 2014-05-24 | C184: 0.8117 | D184: 5.5256 | E184: 2.752157096 | F184: 2.057552362 | G184: 448.512952
A185: 22 | B185: 2014-05-31 | C185: 0.8119214286 | D185: 5.445 | E185: -1.458665122 | F185: 4.374329091 | G185: 442.0912179
A186: 23 | B186: 2014-06-07 | C186: 0.8122285714 | D186: 5.3075 | E186: -2.525252525 | F186: 7.300258774 | G186: 431.0903143
A187: 24 | B187: 2014-06-14 | C187: 0.8049785714 | D187: 5.341 | E187: 0.6311822892 | F187: 7.371891522 | G187: 429.939055
A188: 25 | B188: 2014-06-21 | C188: 0.7985785714 | D188: 5.153 | E188: -3.519940086 | F188: 2.090143635 | G188: 411.5075379
A189: 26 | B189: =B188+7 -> 2014-06-28 | C189: 0.7998642857 | D189: 5.1513 | E189: -0.03299049098 | F189: 0.4798408333 | G189: 412.0340895
A190: 27 | B190: 2014-07-05 | C190: 0.7966785714 | D190: 4.6898 | E190: -8.958903578 | F190: -7.171275311 | G190: 373.6263164
A191: 28 | B191: 2014-07-12 | C191: 0.7941571429 | D191: 4.5132 | E191: -3.765619003 | F191: -8.39118256 | G191: 358.4190017
A192: 29 | B192: 2014-07-19 | C192: 0.7925857143 | D192: 4.3739 | E192: -3.086501817 | F192: -11.992193 | G192: 346.6690656
A193: 30 | B193: 2014-07-26 | C193: 0.7912571429 | D193: 4.4299 | E193: 1.28032191 | F193: -4.546531923 | G193: 350.5190017
A194: 31 | B194: 2014-08-02 | C194: 0.7929785714 | D194: 4.3928 | E194: -0.8374906883 | F194: -3.318954133 | G194: 348.3396269
A195: 32 | B195: 2014-08-09 | C195: 0.7953428571 | D195: 4.2533 | E195: -3.175651065 | F195: -7.412164221 | G195: 338.2831774
A196: 33 | B196: 2014-08-16 | C196: 0.7993571429 | D196: 4.3038 | E196: 1.18731338 | F196: -5.545923406 | G196: 344.0273271
A197: 34 | B197: 2014-08-23 | C197: 0.8004142857 | D197: 4.2932 | E197: -0.2462939728 | F197: -4.111853126 | G197: 343.6338611
A198: 35 | B198: 2014-08-30 | C198: 0.7958714286 | D198: 4.2801 | E198: -0.3051336998 | F198: -2.081855826 | G198: 340.6409301
A199: 36 | B199: 2014-09-06 | C199: 0.7942428571 | D199: 4.2853 | E199: 0.1214924885 | F199: -0.1607567215 | G199: 340.3568916
A200: 37 | B200: 2014-09-13 | C200: 0.7982357143 | D200: 4.2183 | E200: -1.56348447 | F200: 0.3759666865 | G200: 336.7197714
... 381 more rows
